Workbook

Sheet Menu
A1: These are the interactive Excel sheets of the paper entitled "Teaching an insurance model: An interactive exercise".
B3: Choose the option: | G3: Figura 1
G4: Function 1
G5: Log
G6: CARA
G7: DARA
A12: Note: The option "Utility function U(w)=w^α" is used in Sections 3 and 4. The option "Utility functions U(w)=ln(w)" and "U(w)=w^(1-σ)/(1-σ)" are presented in Section 5.
A13: The option "Attitudes toward risk" reproduces Figure A in the Appendix with different utility functions representing risk averse, neutral or risk lover agents.

Sheet Figure A (hidden)
C3: Parameters
C4: w1 | D4: 2
C6: w2 | D6: 16
A8: 5 | C8: p1 | D8: =A8/10 -> 0.5
C10: p2 | D10: =1-D8 -> 0.5
A11: 5 | C11: α | D11: =A11/10 -> 0.5
H66: w | I66: u(w)
H67: 0 | I67: =+H67^D$11 -> 0
H68: 1 | I68: =+H68^D$11 -> 1
H69: 2 | I69: 1.414213562
H70: 3 | I70: 1.732050808
H71: 4 | I71: 2
H72: 5 | I72: 2.236067977
H73: 6 | I73: 2.449489743 | P73: (EL) | Q73: U(E(L))
H74: 7 | I74: 2.645751311 | N74: U(wi) | P74: =+P75 -> 9 | Q74: 0 | S74: =+P74 -> 9 | T74: =+Q75 -> 3 | V74: =+L75 -> 2 | W74: 0 | Y74: =+V74 -> 2 | Z74: =+Y74^D11 -> 1.414213562
H75: 8 | I75: 2.828427125 | K75: w1 | L75: =D4 -> 2 | M75: 0 | N75: =+L75^D11 -> 1.414213562 | P75: =+D4*D8+D6*D10 -> 9 | Q75: =+P75^D11 -> 3 | S75: 0 | T75: =+Q75 -> 3 | V75: =+V74 -> 2 | W75: =+V75^D11 -> 1.414213562 | X75: =W75 -> 1.414213562 | Y75: 0 | Z75: =+Z74 -> 1.414213562
H76: 9 | I76: 3 | K76: w2 | L76: =D6 -> 16 | M76: 0 | N76: =+L76^D11 -> 4
H77: 10 | I77: 3.16227766 | P77: =+P75 -> 9 | Q77: 0 | S77: =+P77 -> 9 | T77: =+Q78 -> 2.707106781 | V77: =+L76 -> 16 | W77: 0 | Y77: =+L76 -> 16 | Z77: =+Y77^D11 -> 4
H78: 11 | I78: 3.31662479 | P78: =+P75 -> 9 | Q78: =+D8*N75+D10*N76 -> 2.707106781 | R78: U(L) | S78: 0 | T78: =+Q78 -> 2.707106781 | V78: =+V77 -> 16 | W78: =+V78^D11 -> 4 | Y78: 0 | Z78: =+Z77 -> 4
H79: 12 | I79: 3.464101615
H80: 13 | I80: 3.605551275
H81: 14 | I81: 3.741657387 | P81: =+Q78^(1/D11) -> 7.328427125 | Q81: 0 | S81: =+P81 -> 7.328427125 | T81: =+Q82 -> 2.707106781
H82: 15 | I82: 3.872983346 | P82: =+P81 -> 7.328427125 | Q82: =+Q78 -> 2.707106781 | S82: 0 | T82: =+T81 -> 2.707106781
H83: 16 | I83: 4
H84: 17 | I84: 4.123105626
H85: 18 | I85: 4.242640687
H86: 19 | I86: 4.358898944
H87: 20 | I87: 4.472135955

Sheet Figure B (hidden)
C3: Table I: Initial solution | G3: Table II: Comparative Analysis
C5: Parameters | G5: Parameters
B6: 2 | C6: π | D6: =B6/10 -> 0.2 | F6: 2 | G6: π | H6: =+F6/10 -> 0.2
D7: 0.3
B8: 3 | C8: p | D8: =B8/10 -> 0.3 | F8: 3 | G8: p | H8: =F8/10 -> 0.3
C10: w0 | D10: 1000 | G10: w0 | H10: 1000
B12: 3 | C12: α | D12: =+B12/10 -> 0.3 | F12: 3 | G12: α | H12: =+F12/10 -> 0.3
C14: l | D14: 700 | G14: l | H14: 700
C17: Variables | G17: Variables
C18: w1 | D18: 436.0235112 | G18: w1 | H18: 436.023508
C19: w2 | D19: 941.7042095 | G19: w2 | H19: 941.7042109
C21: Constraints | G21: Constraints
C22: p*w1+(1-p)*w2-w0+pl=0 | D22: =+D8*D18+(1-D8)*D19-D10+D8*D14 -> 0 | G22: p*w1+(1-p)*w2-w0+pl=0 | H22: =+H8*H18+(1-H8)*H19-H10+H8*H14 -> 1.250555215e-11
C23: w0-l-w1≤0 | D23: =+D10-D14-D18 -> -136.0235112 | G23: w0-l-w1≤0 | H23: =+H10-H14-H18 -> -136.023508
C24: wo-w1-p*l≥0 | D24: =+D10-D18-D8*D14 -> 353.9764888 | G24: wo-w1-p*l≥0 | H24: =+H10-H18-H8*H14 -> 353.976492
C25: wo-pl-w2≤0 | D25: =+D10-D8*D14-D19 -> -151.7042095 | G25: wo-pl-w2≤0 | H25: =+H10-H8*H14-H19 -> -151.7042109
C26: w0-w2≥0 | D26: =+D10-D19 -> 58.2957905 | G26: w0-w2≥0 | H26: =+H10-H19 -> 58.29578912
C28: Quantity of q | G28: Quantity of q
C29: q=(w0-w2)/p | D29: =+(D10-D19)/D8 -> 194.3193017 | G29: q=(w0-w2)/p | H29: =+(H10-H19)/H8 -> 194.3192971
C31: Expected utility function | G31: Expected utility function
C32: π*w1^α+(1-π)*w2^α | D32: =+D6*D18^D12+(1-D6)*D19^D12 -> 7.479608781 | G32: π*w1^α+(1-π)*w2^α | H32: =+H6*H18^H12+(1-H6)*H19^H12 -> 7.479608781
C34: Note: This option corresponds to the utility function used in Section 3 of the paper. Use the scroll bars to modify the parameters of the insurance problem.
C35: For example, use the scroll bar below the probability of a robbery π in cell H6, adjusting it from π=0.2 to π=0.4. Then call Solver and, click Solve in the Solver Parameters window.
C36: Change the letter H for D in all cells of the Solver Parameters window if you modify the parameters of Table I.
C37: If Solver shows a message "Solver encountered an error value in the Objective Cell or a Constraint cell" just change the initial values of the variables to, for example 100.
C38: π= probability of robbery
C39: p= insurance premium rate
C40: w0= initial wealth
C41: α= parameter of the expected utility function
C42: l= amount of wealth stolen if robbery
C43: w1= agent’s wealth if robbery
C44: w2= agent’s wealth if no robbery
C45: q= amount of insurance
S87: Initial solution | W87: Final solution
P88: 20 | Q88: w1 | R88: w1prime | S88: w2budget | T88: w2prime | U88: C2utility | W88: w1 | X88: w1prime | Y88: C2utility
Q89: 1 | R89: =IF(Q89<$D$10-$D$14,$D$10-$D$14,IF(Q89>=$D$10-$D$8*$D$14,$D$10-$D$14*$D$8,Q89)) -> 300 | S89: =($D$10-$D$8*$D$14-$D$8*Q89)/($R$150-$D$8) -> 1128.142857 | T89: =IF(Q89<$D$10-$D$14,$D$10,IF(Q89>=$D$10-$D$14*$D$8,$D$10-$D$14*$D$8,S89)) -> 1000 | U89: =(($D$32-$D$6*R89^$D$12)/(1-$D$6))^(1/$D$12) -> 1009.438917 | W89: 1 | X89: =IF(W89<'Figure B'!$H$10-'Figure B'!$H$14,'Figure B'!$H$10-'Figure B'!$H$14,IF('Figure B'!W89>='Figure B'!$H$10-'Figure B'!$H$8*'Figure B'!$H$14,'Figure B'!$H$10-'Figure B'!$H$14*'Figure B'!$H$8,'Figure B'!W89)) -> 300 | Y89: =(($H$32-$H$6*X89^$H$12)/(1-$H$6))^(1/$H$12) -> 1009.438917
Q90: =+Q89+P$88 -> 21 | R90: =IF(Q90<'Figure B'!$D$10-'Figure B'!$D$14,'Figure B'!$D$10-'Figure B'!$D$14,IF('Figure B'!Q90>='Figure B'!$D$10-'Figure B'!$D$8*'Figure B'!$D$14,'Figure B'!$D$10-'Figure B'!$D$14*'Figure B'!$D$8,'Figure B'!Q90)) -> 300 | S90: =('Figure B'!$D$10-'Figure B'!$D$8*'Figure B'!$D$14-'Figure B'!$D$8*'Figure B'!Q90)/('Figure B'!$R$150-'Figure B'!$D$8) -> 1119.571429 | T90: =IF(Q90<'Figure B'!$D$10-'Figure B'!$D$14,'Figure B'!$D$10,IF(Q90>='Figure B'!$D$10-'Figure B'!$D$14*'Figure B'!$D$8,'Figure B'!$D$10-'Figure B'!$D$14*'Figure B'!$D$8,'Figure B'!S90)) -> 1000 | U90: =(($D$32-$D$6*R90^$D$12)/(1-$D$6))^(1/$D$12) -> 1009.438917 | W90: =+W89+P$88 -> 21 | X90: =IF(W90<'Figure B'!$H$10-'Figure B'!$H$14,'Figure B'!$H$10-'Figure B'!$H$14,IF('Figure B'!W90>='Figure B'!$H$10-'Figure B'!$H$8*'Figure B'!$H$14,'Figure B'!$H$10-'Figure B'!$H$14*'Figure B'!$H$8,'Figure B'!W90)) -> 300 | Y90: =(($H$32-$H$6*X90^$H$12)/(1-$H$6))^(1/$H$12) -> 1009.438917
Q91: 41 | R91: =IF(Q91<'Figure B'!$D$10-'Figure B'!$D$14,'Figure B'!$D$10-'Figure B'!$D$14,IF('Figure B'!Q91>='Figure B'!$D$10-'Figure B'!$D$8*'Figure B'!$D$14,'Figure B'!$D$10-'Figure B'!$D$14*'Figure B'!$D$8,'Figure B'!Q91)) -> 300 | S91: =('Figure B'!$D$10-'Figure B'!$D$8*'Figure B'!$D$14-'Figure B'!$D$8*'Figure B'!Q91)/('Figure B'!$R$150-'Figure B'!$D$8) -> 1111 | T91: =IF(Q91<'Figure B'!$D$10-'Figure B'!$D$14,'Figure B'!$D$10,IF(Q91>='Figure B'!$D$10-'Figure B'!$D$14*'Figure B'!$D$8,'Figure B'!$D$10-'Figure B'!$D$14*'Figure B'!$D$8,'Figure B'!S91)) -> 1000 | U91: 1009.438917 | W91: 41 | X91: =IF(W91<'Figure B'!$H$10-'Figure B'!$H$14,'Figure B'!$H$10-'Figure B'!$H$14,IF('Figure B'!W91>='Figure B'!$H$10-'Figure B'!$H$8*'Figure B'!$H$14,'Figure B'!$H$10-'Figure B'!$H$14*'Figure B'!$H$8,'Figure B'!W91)) -> 300 | Y91: 1009.438917
Q92: 61 | R92: =IF(Q92<'Figure B'!$D$10-'Figure B'!$D$14,'Figure B'!$D$10-'Figure B'!$D$14,IF('Figure B'!Q92>='Figure B'!$D$10-'Figure B'!$D$8*'Figure B'!$D$14,'Figure B'!$D$10-'Figure B'!$D$14*'Figure B'!$D$8,'Figure B'!Q92)) -> 300 | S92: =('Figure B'!$D$10-'Figure B'!$D$8*'Figure B'!$D$14-'Figure B'!$D$8*'Figure B'!Q92)/('Figure B'!$R$150-'Figure B'!$D$8) -> 1102.428571 | T92: =IF(Q92<'Figure B'!$D$10-'Figure B'!$D$14,'Figure B'!$D$10,IF(Q92>='Figure B'!$D$10-'Figure B'!$D$14*'Figure B'!$D$8,'Figure B'!$D$10-'Figure B'!$D$14*'Figure B'!$D$8,'Figure B'!S92)) -> 1000 | U92: 1009.438917 | W92: 61 | X92: =IF(W92<'Figure B'!$H$10-'Figure B'!$H$14,'Figure B'!$H$10-'Figure B'!$H$14,IF('Figure B'!W92>='Figure B'!$H$10-'Figure B'!$H$8*'Figure B'!$H$14,'Figure B'!$H$10-'Figure B'!$H$14*'Figure B'!$H$8,'Figure B'!W92)) -> 300 | Y92: 1009.438917
Q93: 81 | R93: =IF(Q93<'Figure B'!$D$10-'Figure B'!$D$14,'Figure B'!$D$10-'Figure B'!$D$14,IF('Figure B'!Q93>='Figure B'!$D$10-'Figure B'!$D$8*'Figure B'!$D$14,'Figure B'!$D$10-'Figure B'!$D$14*'Figure B'!$D$8,'Figure B'!Q93)) -> 300 | S93: =('Figure B'!$D$10-'Figure B'!$D$8*'Figure B'!$D$14-'Figure B'!$D$8*'Figure B'!Q93)/('Figure B'!$R$150-'Figure B'!$D$8) -> 1093.857143 | T93: =IF(Q93<'Figure B'!$D$10-'Figure B'!$D$14,'Figure B'!$D$10,IF(Q93>='Figure B'!$D$10-'Figure B'!$D$14*'Figure B'!$D$8,'Figure B'!$D$10-'Figure B'!$D$14*'Figure B'!$D$8,'Figure B'!S93)) -> 1000 | U93: 1009.438917 | W93: 81 | X93: =IF(W93<'Figure B'!$H$10-'Figure B'!$H$14,'Figure B'!$H$10-'Figure B'!$H$14,IF('Figure B'!W93>='Figure B'!$H$10-'Figure B'!$H$8*'Figure B'!$H$14,'Figure B'!$H$10-'Figure B'!$H$14*'Figure B'!$H$8,'Figure B'!W93)) -> 300 | Y93: 1009.438917
Q94: 101 | R94: =IF(Q94<'Figure B'!$D$10-'Figure B'!$D$14,'Figure B'!$D$10-'Figure B'!$D$14,IF('Figure B'!Q94>='Figure B'!$D$10-'Figure B'!$D$8*'Figure B'!$D$14,'Figure B'!$D$10-'Figure B'!$D$14*'Figure B'!$D$8,'Figure B'!Q94)) -> 300 | S94: =('Figure B'!$D$10-'Figure B'!$D$8*'Figure B'!$D$14-'Figure B'!$D$8*'Figure B'!Q94)/('Figure B'!$R$150-'Figure B'!$D$8) -> 1085.285714 | T94: =IF(Q94<'Figure B'!$D$10-'Figure B'!$D$14,'Figure B'!$D$10,IF(Q94>='Figure B'!$D$10-'Figure B'!$D$14*'Figure B'!$D$8,'Figure B'!$D$10-'Figure B'!$D$14*'Figure B'!$D$8,'Figure B'!S94)) -> 1000 | U94: 1009.438917 | W94: 101 | X94: =IF(W94<'Figure B'!$H$10-'Figure B'!$H$14,'Figure B'!$H$10-'Figure B'!$H$14,IF('Figure B'!W94>='Figure B'!$H$10-'Figure B'!$H$8*'Figure B'!$H$14,'Figure B'!$H$10-'Figure B'!$H$14*'Figure B'!$H$8,'Figure B'!W94)) -> 300 | Y94: 1009.438917
Q95: 121 | R95: =IF(Q95<'Figure B'!$D$10-'Figure B'!$D$14,'Figure B'!$D$10-'Figure B'!$D$14,IF('Figure B'!Q95>='Figure B'!$D$10-'Figure B'!$D$8*'Figure B'!$D$14,'Figure B'!$D$10-'Figure B'!$D$14*'Figure B'!$D$8,'Figure B'!Q95)) -> 300 | S95: =('Figure B'!$D$10-'Figure B'!$D$8*'Figure B'!$D$14-'Figure B'!$D$8*'Figure B'!Q95)/('Figure B'!$R$150-'Figure B'!$D$8) -> 1076.714286 | T95: =IF(Q95<'Figure B'!$D$10-'Figure B'!$D$14,'Figure B'!$D$10,IF(Q95>='Figure B'!$D$10-'Figure B'!$D$14*'Figure B'!$D$8,'Figure B'!$D$10-'Figure B'!$D$14*'Figure B'!$D$8,'Figure B'!S95)) -> 1000 | U95: 1009.438917 | W95: 121 | X95: =IF(W95<'Figure B'!$H$10-'Figure B'!$H$14,'Figure B'!$H$10-'Figure B'!$H$14,IF('Figure B'!W95>='Figure B'!$H$10-'Figure B'!$H$8*'Figure B'!$H$14,'Figure B'!$H$10-'Figure B'!$H$14*'Figure B'!$H$8,'Figure B'!W95)) -> 300 | Y95: 1009.438917
Q96: 141 | R96: =IF(Q96<'Figure B'!$D$10-'Figure B'!$D$14,'Figure B'!$D$10-'Figure B'!$D$14,IF('Figure B'!Q96>='Figure B'!$D$10-'Figure B'!$D$8*'Figure B'!$D$14,'Figure B'!$D$10-'Figure B'!$D$14*'Figure B'!$D$8,'Figure B'!Q96)) -> 300 | S96: =('Figure B'!$D$10-'Figure B'!$D$8*'Figure B'!$D$14-'Figure B'!$D$8*'Figure B'!Q96)/('Figure B'!$R$150-'Figure B'!$D$8) -> 1068.142857 | T96: =IF(Q96<'Figure B'!$D$10-'Figure B'!$D$14,'Figure B'!$D$10,IF(Q96>='Figure B'!$D$10-'Figure B'!$D$14*'Figure B'!$D$8,'Figure B'!$D$10-'Figure B'!$D$14*'Figure B'!$D$8,'Figure B'!S96)) -> 1000 | U96: 1009.438917 | W96: 141 | X96: =IF(W96<'Figure B'!$H$10-'Figure B'!$H$14,'Figure B'!$H$10-'Figure B'!$H$14,IF('Figure B'!W96>='Figure B'!$H$10-'Figure B'!$H$8*'Figure B'!$H$14,'Figure B'!$H$10-'Figure B'!$H$14*'Figure B'!$H$8,'Figure B'!W96)) -> 300 | Y96: 1009.438917
Q97: 161 | R97: =IF(Q97<'Figure B'!$D$10-'Figure B'!$D$14,'Figure B'!$D$10-'Figure B'!$D$14,IF('Figure B'!Q97>='Figure B'!$D$10-'Figure B'!$D$8*'Figure B'!$D$14,'Figure B'!$D$10-'Figure B'!$D$14*'Figure B'!$D$8,'Figure B'!Q97)) -> 300 | S97: =('Figure B'!$D$10-'Figure B'!$D$8*'Figure B'!$D$14-'Figure B'!$D$8*'Figure B'!Q97)/('Figure B'!$R$150-'Figure B'!$D$8) -> 1059.571429 | T97: =IF(Q97<'Figure B'!$D$10-'Figure B'!$D$14,'Figure B'!$D$10,IF(Q97>='Figure B'!$D$10-'Figure B'!$D$14*'Figure B'!$D$8,'Figure B'!$D$10-'Figure B'!$D$14*'Figure B'!$D$8,'Figure B'!S97)) -> 1000 | U97: 1009.438917 | W97: 161 | X97: =IF(W97<'Figure B'!$H$10-'Figure B'!$H$14,'Figure B'!$H$10-'Figure B'!$H$14,IF('Figure B'!W97>='Figure B'!$H$10-'Figure B'!$H$8*'Figure B'!$H$14,'Figure B'!$H$10-'Figure B'!$H$14*'Figure B'!$H$8,'Figure B'!W97)) -> 300 | Y97: 1009.438917
Q98: 181 | R98: =IF(Q98<'Figure B'!$D$10-'Figure B'!$D$14,'Figure B'!$D$10-'Figure B'!$D$14,IF('Figure B'!Q98>='Figure B'!$D$10-'Figure B'!$D$8*'Figure B'!$D$14,'Figure B'!$D$10-'Figure B'!$D$14*'Figure B'!$D$8,'Figure B'!Q98)) -> 300 | S98: =('Figure B'!$D$10-'Figure B'!$D$8*'Figure B'!$D$14-'Figure B'!$D$8*'Figure B'!Q98)/('Figure B'!$R$150-'Figure B'!$D$8) -> 1051 | T98: =IF(Q98<'Figure B'!$D$10-'Figure B'!$D$14,'Figure B'!$D$10,IF(Q98>='Figure B'!$D$10-'Figure B'!$D$14*'Figure B'!$D$8,'Figure B'!$D$10-'Figure B'!$D$14*'Figure B'!$D$8,'Figure B'!S98)) -> 1000 | U98: 1009.438917 | W98: 181 | X98: =IF(W98<'Figure B'!$H$10-'Figure B'!$H$14,'Figure B'!$H$10-'Figure B'!$H$14,IF('Figure B'!W98>='Figure B'!$H$10-'Figure B'!$H$8*'Figure B'!$H$14,'Figure B'!$H$10-'Figure B'!$H$14*'Figure B'!$H$8,'Figure B'!W98)) -> 300 | Y98: 1009.438917
Q99: 201 | R99: =IF(Q99<'Figure B'!$D$10-'Figure B'!$D$14,'Figure B'!$D$10-'Figure B'!$D$14,IF('Figure B'!Q99>='Figure B'!$D$10-'Figure B'!$D$8*'Figure B'!$D$14,'Figure B'!$D$10-'Figure B'!$D$14*'Figure B'!$D$8,'Figure B'!Q99)) -> 300 | S99: =('Figure B'!$D$10-'Figure B'!$D$8*'Figure B'!$D$14-'Figure B'!$D$8*'Figure B'!Q99)/('Figure B'!$R$150-'Figure B'!$D$8) -> 1042.428571 | T99: =IF(Q99<'Figure B'!$D$10-'Figure B'!$D$14,'Figure B'!$D$10,IF(Q99>='Figure B'!$D$10-'Figure B'!$D$14*'Figure B'!$D$8,'Figure B'!$D$10-'Figure B'!$D$14*'Figure B'!$D$8,'Figure B'!S99)) -> 1000 | U99: 1009.438917 | W99: 201 | X99: =IF(W99<'Figure B'!$H$10-'Figure B'!$H$14,'Figure B'!$H$10-'Figure B'!$H$14,IF('Figure B'!W99>='Figure B'!$H$10-'Figure B'!$H$8*'Figure B'!$H$14,'Figure B'!$H$10-'Figure B'!$H$14*'Figure B'!$H$8,'Figure B'!W99)) -> 300 | Y99: 1009.438917
Q100: 221 | R100: =IF(Q100<'Figure B'!$D$10-'Figure B'!$D$14,'Figure B'!$D$10-'Figure B'!$D$14,IF('Figure B'!Q100>='Figure B'!$D$10-'Figure B'!$D$8*'Figure B'!$D$14,'Figure B'!$D$10-'Figure B'!$D$14*'Figure B'!$D$8,'Figure B'!Q100)) -> 300 | S100: =('Figure B'!$D$10-'Figure B'!$D$8*'Figure B'!$D$14-'Figure B'!$D$8*'Figure B'!Q100)/('Figure B'!$R$150-'Figure B'!$D$8) -> 1033.857143 | T100: =IF(Q100<'Figure B'!$D$10-'Figure B'!$D$14,'Figure B'!$D$10,IF(Q100>='Figure B'!$D$10-'Figure B'!$D$14*'Figure B'!$D$8,'Figure B'!$D$10-'Figure B'!$D$14*'Figure B'!$D$8,'Figure B'!S100)) -> 1000 | U100: 1009.438917 | W100: 221 | X100: =IF(W100<'Figure B'!$H$10-'Figure B'!$H$14,'Figure B'!$H$10-'Figure B'!$H$14,IF('Figure B'!W100>='Figure B'!$H$10-'Figure B'!$H$8*'Figure B'!$H$14,'Figure B'!$H$10-'Figure B'!$H$14*'Figure B'!$H$8,'Figure B'!W100)) -> 300 | Y100: 1009.438917
Q101: 241 | R101: =IF(Q101<'Figure B'!$D$10-'Figure B'!$D$14,'Figure B'!$D$10-'Figure B'!$D$14,IF('Figure B'!Q101>='Figure B'!$D$10-'Figure B'!$D$8*'Figure B'!$D$14,'Figure B'!$D$10-'Figure B'!$D$14*'Figure B'!$D$8,'Figure B'!Q101)) -> 300 | S101: =('Figure B'!$D$10-'Figure B'!$D$8*'Figure B'!$D$14-'Figure B'!$D$8*'Figure B'!Q101)/('Figure B'!$R$150-'Figure B'!$D$8) -> 1025.285714 | T101: =IF(Q101<'Figure B'!$D$10-'Figure B'!$D$14,'Figure B'!$D$10,IF(Q101>='Figure B'!$D$10-'Figure B'!$D$14*'Figure B'!$D$8,'Figure B'!$D$10-'Figure B'!$D$14*'Figure B'!$D$8,'Figure B'!S101)) -> 1000 | U101: 1009.438917 | W101: 241 | X101: =IF(W101<'Figure B'!$H$10-'Figure B'!$H$14,'Figure B'!$H$10-'Figure B'!$H$14,IF('Figure B'!W101>='Figure B'!$H$10-'Figure B'!$H$8*'Figure B'!$H$14,'Figure B'!$H$10-'Figure B'!$H$14*'Figure B'!$H$8,'Figure B'!W101)) -> 300 | Y101: 1009.438917
Q102: 261 | R102: =IF(Q102<'Figure B'!$D$10-'Figure B'!$D$14,'Figure B'!$D$10-'Figure B'!$D$14,IF('Figure B'!Q102>='Figure B'!$D$10-'Figure B'!$D$8*'Figure B'!$D$14,'Figure B'!$D$10-'Figure B'!$D$14*'Figure B'!$D$8,'Figure B'!Q102)) -> 300 | S102: =('Figure B'!$D$10-'Figure B'!$D$8*'Figure B'!$D$14-'Figure B'!$D$8*'Figure B'!Q102)/('Figure B'!$R$150-'Figure B'!$D$8) -> 1016.714286 | T102: =IF(Q102<'Figure B'!$D$10-'Figure B'!$D$14,'Figure B'!$D$10,IF(Q102>='Figure B'!$D$10-'Figure B'!$D$14*'Figure B'!$D$8,'Figure B'!$D$10-'Figure B'!$D$14*'Figure B'!$D$8,'Figure B'!S102)) -> 1000 | U102: 1009.438917 | W102: 261 | X102: =IF(W102<'Figure B'!$H$10-'Figure B'!$H$14,'Figure B'!$H$10-'Figure B'!$H$14,IF('Figure B'!W102>='Figure B'!$H$10-'Figure B'!$H$8*'Figure B'!$H$14,'Figure B'!$H$10-'Figure B'!$H$14*'Figure B'!$H$8,'Figure B'!W102)) -> 300 | Y102: 1009.438917
Q103: 281 | R103: =IF(Q103<'Figure B'!$D$10-'Figure B'!$D$14,'Figure B'!$D$10-'Figure B'!$D$14,IF('Figure B'!Q103>='Figure B'!$D$10-'Figure B'!$D$8*'Figure B'!$D$14,'Figure B'!$D$10-'Figure B'!$D$14*'Figure B'!$D$8,'Figure B'!Q103)) -> 300 | S103: =('Figure B'!$D$10-'Figure B'!$D$8*'Figure B'!$D$14-'Figure B'!$D$8*'Figure B'!Q103)/('Figure B'!$R$150-'Figure B'!$D$8) -> 1008.142857 | T103: =IF(Q103<'Figure B'!$D$10-'Figure B'!$D$14,'Figure B'!$D$10,IF(Q103>='Figure B'!$D$10-'Figure B'!$D$14*'Figure B'!$D$8,'Figure B'!$D$10-'Figure B'!$D$14*'Figure B'!$D$8,'Figure B'!S103)) -> 1000 | U103: 1009.438917 | W103: 281 | X103: =IF(W103<'Figure B'!$H$10-'Figure B'!$H$14,'Figure B'!$H$10-'Figure B'!$H$14,IF('Figure B'!W103>='Figure B'!$H$10-'Figure B'!$H$8*'Figure B'!$H$14,'Figure B'!$H$10-'Figure B'!$H$14*'Figure B'!$H$8,'Figure B'!W103)) -> 300 | Y103: 1009.438917
Q104: 301 | R104: =IF(Q104<'Figure B'!$D$10-'Figure B'!$D$14,'Figure B'!$D$10-'Figure B'!$D$14,IF('Figure B'!Q104>='Figure B'!$D$10-'Figure B'!$D$8*'Figure B'!$D$14,'Figure B'!$D$10-'Figure B'!$D$14*'Figure B'!$D$8,'Figure B'!Q104)) -> 301 | S104: =('Figure B'!$D$10-'Figure B'!$D$8*'Figure B'!$D$14-'Figure B'!$D$8*'Figure B'!Q104)/('Figure B'!$R$150-'Figure B'!$D$8) -> 999.5714286 | T104: =IF(Q104<'Figure B'!$D$10-'Figure B'!$D$14,'Figure B'!$D$10,IF(Q104>='Figure B'!$D$10-'Figure B'!$D$14*'Figure B'!$D$8,'Figure B'!$D$10-'Figure B'!$D$14*'Figure B'!$D$8,'Figure B'!S104)) -> 999.5714286 | U104: 1008.85518 | W104: 301 | X104: =IF(W104<'Figure B'!$H$10-'Figure B'!$H$14,'Figure B'!$H$10-'Figure B'!$H$14,IF('Figure B'!W104>='Figure B'!$H$10-'Figure B'!$H$8*'Figure B'!$H$14,'Figure B'!$H$10-'Figure B'!$H$14*'Figure B'!$H$8,'Figure B'!W104)) -> 301 | Y104: 1008.85518
Q105: 321 | R105: =IF(Q105<'Figure B'!$D$10-'Figure B'!$D$14,'Figure B'!$D$10-'Figure B'!$D$14,IF('Figure B'!Q105>='Figure B'!$D$10-'Figure B'!$D$8*'Figure B'!$D$14,'Figure B'!$D$10-'Figure B'!$D$14*'Figure B'!$D$8,'Figure B'!Q105)) -> 321 | S105: =('Figure B'!$D$10-'Figure B'!$D$8*'Figure B'!$D$14-'Figure B'!$D$8*'Figure B'!Q105)/('Figure B'!$R$150-'Figure B'!$D$8) -> 991 | T105: =IF(Q105<'Figure B'!$D$10-'Figure B'!$D$14,'Figure B'!$D$10,IF(Q105>='Figure B'!$D$10-'Figure B'!$D$14*'Figure B'!$D$8,'Figure B'!$D$10-'Figure B'!$D$14*'Figure B'!$D$8,'Figure B'!S105)) -> 991 | U105: 997.502747 | W105: 321 | X105: =IF(W105<'Figure B'!$H$10-'Figure B'!$H$14,'Figure B'!$H$10-'Figure B'!$H$14,IF('Figure B'!W105>='Figure B'!$H$10-'Figure B'!$H$8*'Figure B'!$H$14,'Figure B'!$H$10-'Figure B'!$H$14*'Figure B'!$H$8,'Figure B'!W105)) -> 321 | Y105: 997.502747
Q106: 341 | R106: =IF(Q106<'Figure B'!$D$10-'Figure B'!$D$14,'Figure B'!$D$10-'Figure B'!$D$14,IF('Figure B'!Q106>='Figure B'!$D$10-'Figure B'!$D$8*'Figure B'!$D$14,'Figure B'!$D$10-'Figure B'!$D$14*'Figure B'!$D$8,'Figure B'!Q106)) -> 341 | S106: =('Figure B'!$D$10-'Figure B'!$D$8*'Figure B'!$D$14-'Figure B'!$D$8*'Figure B'!Q106)/('Figure B'!$R$150-'Figure B'!$D$8) -> 982.4285714 | T106: =IF(Q106<'Figure B'!$D$10-'Figure B'!$D$14,'Figure B'!$D$10,IF(Q106>='Figure B'!$D$10-'Figure B'!$D$14*'Figure B'!$D$8,'Figure B'!$D$10-'Figure B'!$D$14*'Figure B'!$D$8,'Figure B'!S106)) -> 982.4285714 | U106: 986.7192729 | W106: 341 | X106: =IF(W106<'Figure B'!$H$10-'Figure B'!$H$14,'Figure B'!$H$10-'Figure B'!$H$14,IF('Figure B'!W106>='Figure B'!$H$10-'Figure B'!$H$8*'Figure B'!$H$14,'Figure B'!$H$10-'Figure B'!$H$14*'Figure B'!$H$8,'Figure B'!W106)) -> 341 | Y106: 986.7192729
Q107: 361 | R107: =IF(Q107<'Figure B'!$D$10-'Figure B'!$D$14,'Figure B'!$D$10-'Figure B'!$D$14,IF('Figure B'!Q107>='Figure B'!$D$10-'Figure B'!$D$8*'Figure B'!$D$14,'Figure B'!$D$10-'Figure B'!$D$14*'Figure B'!$D$8,'Figure B'!Q107)) -> 361 | S107: =('Figure B'!$D$10-'Figure B'!$D$8*'Figure B'!$D$14-'Figure B'!$D$8*'Figure B'!Q107)/('Figure B'!$R$150-'Figure B'!$D$8) -> 973.8571429 | T107: =IF(Q107<'Figure B'!$D$10-'Figure B'!$D$14,'Figure B'!$D$10,IF(Q107>='Figure B'!$D$10-'Figure B'!$D$14*'Figure B'!$D$8,'Figure B'!$D$10-'Figure B'!$D$14*'Figure B'!$D$8,'Figure B'!S107)) -> 973.8571429 | U107: 976.4468818 | W107: 361 | X107: =IF(W107<'Figure B'!$H$10-'Figure B'!$H$14,'Figure B'!$H$10-'Figure B'!$H$14,IF('Figure B'!W107>='Figure B'!$H$10-'Figure B'!$H$8*'Figure B'!$H$14,'Figure B'!$H$10-'Figure B'!$H$14*'Figure B'!$H$8,'Figure B'!W107)) -> 361 | Y107: 976.4468818
Q108: 381 | R108: =IF(Q108<'Figure B'!$D$10-'Figure B'!$D$14,'Figure B'!$D$10-'Figure B'!$D$14,IF('Figure B'!Q108>='Figure B'!$D$10-'Figure B'!$D$8*'Figure B'!$D$14,'Figure B'!$D$10-'Figure B'!$D$14*'Figure B'!$D$8,'Figure B'!Q108)) -> 381 | S108: =('Figure B'!$D$10-'Figure B'!$D$8*'Figure B'!$D$14-'Figure B'!$D$8*'Figure B'!Q108)/('Figure B'!$R$150-'Figure B'!$D$8) -> 965.2857143 | T108: =IF(Q108<'Figure B'!$D$10-'Figure B'!$D$14,'Figure B'!$D$10,IF(Q108>='Figure B'!$D$10-'Figure B'!$D$14*'Figure B'!$D$8,'Figure B'!$D$10-'Figure B'!$D$14*'Figure B'!$D$8,'Figure B'!S108)) -> 965.2857143 | U108: 966.6363701 | W108: 381 | X108: =IF(W108<'Figure B'!$H$10-'Figure B'!$H$14,'Figure B'!$H$10-'Figure B'!$H$14,IF('Figure B'!W108>='Figure B'!$H$10-'Figure B'!$H$8*'Figure B'!$H$14,'Figure B'!$H$10-'Figure B'!$H$14*'Figure B'!$H$8,'Figure B'!W108)) -> 381 | Y108: 966.6363701
Q109: 401 | R109: =IF(Q109<'Figure B'!$D$10-'Figure B'!$D$14,'Figure B'!$D$10-'Figure B'!$D$14,IF('Figure B'!Q109>='Figure B'!$D$10-'Figure B'!$D$8*'Figure B'!$D$14,'Figure B'!$D$10-'Figure B'!$D$14*'Figure B'!$D$8,'Figure B'!Q109)) -> 401 | S109: =('Figure B'!$D$10-'Figure B'!$D$8*'Figure B'!$D$14-'Figure B'!$D$8*'Figure B'!Q109)/('Figure B'!$R$150-'Figure B'!$D$8) -> 956.7142857 | T109: =IF(Q109<'Figure B'!$D$10-'Figure B'!$D$14,'Figure B'!$D$10,IF(Q109>='Figure B'!$D$10-'Figure B'!$D$14*'Figure B'!$D$8,'Figure B'!$D$10-'Figure B'!$D$14*'Figure B'!$D$8,'Figure B'!S109)) -> 956.7142857 | U109: 957.2455296 | W109: 401 | X109: =IF(W109<'Figure B'!$H$10-'Figure B'!$H$14,'Figure B'!$H$10-'Figure B'!$H$14,IF('Figure B'!W109>='Figure B'!$H$10-'Figure B'!$H$8*'Figure B'!$H$14,'Figure B'!$H$10-'Figure B'!$H$14*'Figure B'!$H$8,'Figure B'!W109)) -> 401 | Y109: 957.2455296
Q110: 421 | R110: =IF(Q110<'Figure B'!$D$10-'Figure B'!$D$14,'Figure B'!$D$10-'Figure B'!$D$14,IF('Figure B'!Q110>='Figure B'!$D$10-'Figure B'!$D$8*'Figure B'!$D$14,'Figure B'!$D$10-'Figure B'!$D$14*'Figure B'!$D$8,'Figure B'!Q110)) -> 421 | S110: =('Figure B'!$D$10-'Figure B'!$D$8*'Figure B'!$D$14-'Figure B'!$D$8*'Figure B'!Q110)/('Figure B'!$R$150-'Figure B'!$D$8) -> 948.1428571 | T110: =IF(Q110<'Figure B'!$D$10-'Figure B'!$D$14,'Figure B'!$D$10,IF(Q110>='Figure B'!$D$10-'Figure B'!$D$14*'Figure B'!$D$8,'Figure B'!$D$10-'Figure B'!$D$14*'Figure B'!$D$8,'Figure B'!S110)) -> 948.1428571 | U110: 948.2378604 | W110: 421 | X110: =IF(W110<'Figure B'!$H$10-'Figure B'!$H$14,'Figure B'!$H$10-'Figure B'!$H$14,IF('Figure B'!W110>='Figure B'!$H$10-'Figure B'!$H$8*'Figure B'!$H$14,'Figure B'!$H$10-'Figure B'!$H$14*'Figure B'!$H$8,'Figure B'!W110)) -> 421 | Y110: 948.2378604
Q111: 441 | R111: =IF(Q111<'Figure B'!$D$10-'Figure B'!$D$14,'Figure B'!$D$10-'Figure B'!$D$14,IF('Figure B'!Q111>='Figure B'!$D$10-'Figure B'!$D$8*'Figure B'!$D$14,'Figure B'!$D$10-'Figure B'!$D$14*'Figure B'!$D$8,'Figure B'!Q111)) -> 441 | S111: =('Figure B'!$D$10-'Figure B'!$D$8*'Figure B'!$D$14-'Figure B'!$D$8*'Figure B'!Q111)/('Figure B'!$R$150-'Figure B'!$D$8) -> 939.5714286 | T111: =IF(Q111<'Figure B'!$D$10-'Figure B'!$D$14,'Figure B'!$D$10,IF(Q111>='Figure B'!$D$10-'Figure B'!$D$14*'Figure B'!$D$8,'Figure B'!$D$10-'Figure B'!$D$14*'Figure B'!$D$8,'Figure B'!S111)) -> 939.5714286 | U111: 939.5815703 | W111: 441 | X111: =IF(W111<'Figure B'!$H$10-'Figure B'!$H$14,'Figure B'!$H$10-'Figure B'!$H$14,IF('Figure B'!W111>='Figure B'!$H$10-'Figure B'!$H$8*'Figure B'!$H$14,'Figure B'!$H$10-'Figure B'!$H$14*'Figure B'!$H$8,'Figure B'!W111)) -> 441 | Y111: 939.5815703
Q112: 461 | R112: =IF(Q112<'Figure B'!$D$10-'Figure B'!$D$14,'Figure B'!$D$10-'Figure B'!$D$14,IF('Figure B'!Q112>='Figure B'!$D$10-'Figure B'!$D$8*'Figure B'!$D$14,'Figure B'!$D$10-'Figure B'!$D$14*'Figure B'!$D$8,'Figure B'!Q112)) -> 461 | S112: =('Figure B'!$D$10-'Figure B'!$D$8*'Figure B'!$D$14-'Figure B'!$D$8*'Figure B'!Q112)/('Figure B'!$R$150-'Figure B'!$D$8) -> 931 | T112: =IF(Q112<'Figure B'!$D$10-'Figure B'!$D$14,'Figure B'!$D$10,IF(Q112>='Figure B'!$D$10-'Figure B'!$D$14*'Figure B'!$D$8,'Figure B'!$D$10-'Figure B'!$D$14*'Figure B'!$D$8,'Figure B'!S112)) -> 931 | U112: 931.2487856 | W112: 461 | X112: =IF(W112<'Figure B'!$H$10-'Figure B'!$H$14,'Figure B'!$H$10-'Figure B'!$H$14,IF('Figure B'!W112>='Figure B'!$H$10-'Figure B'!$H$8*'Figure B'!$H$14,'Figure B'!$H$10-'Figure B'!$H$14*'Figure B'!$H$8,'Figure B'!W112)) -> 461 | Y112: 931.2487856
Q113: 481 | R113: =IF(Q113<'Figure B'!$D$10-'Figure B'!$D$14,'Figure B'!$D$10-'Figure B'!$D$14,IF('Figure B'!Q113>='Figure B'!$D$10-'Figure B'!$D$8*'Figure B'!$D$14,'Figure B'!$D$10-'Figure B'!$D$14*'Figure B'!$D$8,'Figure B'!Q113)) -> 481 | S113: =('Figure B'!$D$10-'Figure B'!$D$8*'Figure B'!$D$14-'Figure B'!$D$8*'Figure B'!Q113)/('Figure B'!$R$150-'Figure B'!$D$8) -> 922.4285714 | T113: =IF(Q113<'Figure B'!$D$10-'Figure B'!$D$14,'Figure B'!$D$10,IF(Q113>='Figure B'!$D$10-'Figure B'!$D$14*'Figure B'!$D$8,'Figure B'!$D$10-'Figure B'!$D$14*'Figure B'!$D$8,'Figure B'!S113)) -> 922.4285714 | U113: 923.2149225 | W113: 481 | X113: =IF(W113<'Figure B'!$H$10-'Figure B'!$H$14,'Figure B'!$H$10-'Figure B'!$H$14,IF('Figure B'!W113>='Figure B'!$H$10-'Figure B'!$H$8*'Figure B'!$H$14,'Figure B'!$H$10-'Figure B'!$H$14*'Figure B'!$H$8,'Figure B'!W113)) -> 481 | Y113: 923.2149225
Q114: 501 | R114: =IF(Q114<'Figure B'!$D$10-'Figure B'!$D$14,'Figure B'!$D$10-'Figure B'!$D$14,IF('Figure B'!Q114>='Figure B'!$D$10-'Figure B'!$D$8*'Figure B'!$D$14,'Figure B'!$D$10-'Figure B'!$D$14*'Figure B'!$D$8,'Figure B'!Q114)) -> 501 | S114: =('Figure B'!$D$10-'Figure B'!$D$8*'Figure B'!$D$14-'Figure B'!$D$8*'Figure B'!Q114)/('Figure B'!$R$150-'Figure B'!$D$8) -> 913.8571429 | T114: =IF(Q114<'Figure B'!$D$10-'Figure B'!$D$14,'Figure B'!$D$10,IF(Q114>='Figure B'!$D$10-'Figure B'!$D$14*'Figure B'!$D$8,'Figure B'!$D$10-'Figure B'!$D$14*'Figure B'!$D$8,'Figure B'!S114)) -> 913.8571429 | U114: 915.4581808 | W114: 501 | X114: =IF(W114<'Figure B'!$H$10-'Figure B'!$H$14,'Figure B'!$H$10-'Figure B'!$H$14,IF('Figure B'!W114>='Figure B'!$H$10-'Figure B'!$H$8*'Figure B'!$H$14,'Figure B'!$H$10-'Figure B'!$H$14*'Figure B'!$H$8,'Figure B'!W114)) -> 501 | Y114: 915.4581808
Q115: 521 | R115: =IF(Q115<'Figure B'!$D$10-'Figure B'!$D$14,'Figure B'!$D$10-'Figure B'!$D$14,IF('Figure B'!Q115>='Figure B'!$D$10-'Figure B'!$D$8*'Figure B'!$D$14,'Figure B'!$D$10-'Figure B'!$D$14*'Figure B'!$D$8,'Figure B'!Q115)) -> 521 | S115: =('Figure B'!$D$10-'Figure B'!$D$8*'Figure B'!$D$14-'Figure B'!$D$8*'Figure B'!Q115)/('Figure B'!$R$150-'Figure B'!$D$8) -> 905.2857143 | T115: =IF(Q115<'Figure B'!$D$10-'Figure B'!$D$14,'Figure B'!$D$10,IF(Q115>='Figure B'!$D$10-'Figure B'!$D$14*'Figure B'!$D$8,'Figure B'!$D$10-'Figure B'!$D$14*'Figure B'!$D$8,'Figure B'!S115)) -> 905.2857143 | U115: 907.9591322 | W115: 521 | X115: =IF(W115<'Figure B'!$H$10-'Figure B'!$H$14,'Figure B'!$H$10-'Figure B'!$H$14,IF('Figure B'!W115>='Figure B'!$H$10-'Figure B'!$H$8*'Figure B'!$H$14,'Figure B'!$H$10-'Figure B'!$H$14*'Figure B'!$H$8,'Figure B'!W115)) -> 521 | Y115: 907.9591322
Q116: 541 | R116: =IF(Q116<'Figure B'!$D$10-'Figure B'!$D$14,'Figure B'!$D$10-'Figure B'!$D$14,IF('Figure B'!Q116>='Figure B'!$D$10-'Figure B'!$D$8*'Figure B'!$D$14,'Figure B'!$D$10-'Figure B'!$D$14*'Figure B'!$D$8,'Figure B'!Q116)) -> 541 | S116: =('Figure B'!$D$10-'Figure B'!$D$8*'Figure B'!$D$14-'Figure B'!$D$8*'Figure B'!Q116)/('Figure B'!$R$150-'Figure B'!$D$8) -> 896.7142857 | T116: =IF(Q116<'Figure B'!$D$10-'Figure B'!$D$14,'Figure B'!$D$10,IF(Q116>='Figure B'!$D$10-'Figure B'!$D$14*'Figure B'!$D$8,'Figure B'!$D$10-'Figure B'!$D$14*'Figure B'!$D$8,'Figure B'!S116)) -> 896.7142857 | U116: 900.7003832 | W116: 541 | X116: =IF(W116<'Figure B'!$H$10-'Figure B'!$H$14,'Figure B'!$H$10-'Figure B'!$H$14,IF('Figure B'!W116>='Figure B'!$H$10-'Figure B'!$H$8*'Figure B'!$H$14,'Figure B'!$H$10-'Figure B'!$H$14*'Figure B'!$H$8,'Figure B'!W116)) -> 541 | Y116: 900.7003832
Q117: 561 | R117: =IF(Q117<'Figure B'!$D$10-'Figure B'!$D$14,'Figure B'!$D$10-'Figure B'!$D$14,IF('Figure B'!Q117>='Figure B'!$D$10-'Figure B'!$D$8*'Figure B'!$D$14,'Figure B'!$D$10-'Figure B'!$D$14*'Figure B'!$D$8,'Figure B'!Q117)) -> 561 | S117: =('Figure B'!$D$10-'Figure B'!$D$8*'Figure B'!$D$14-'Figure B'!$D$8*'Figure B'!Q117)/('Figure B'!$R$150-'Figure B'!$D$8) -> 888.1428571 | T117: =IF(Q117<'Figure B'!$D$10-'Figure B'!$D$14,'Figure B'!$D$10,IF(Q117>='Figure B'!$D$10-'Figure B'!$D$14*'Figure B'!$D$8,'Figure B'!$D$10-'Figure B'!$D$14*'Figure B'!$D$8,'Figure B'!S117)) -> 888.1428571 | U117: 893.6662956 | W117: 561 | X117: =IF(W117<'Figure B'!$H$10-'Figure B'!$H$14,'Figure B'!$H$10-'Figure B'!$H$14,IF('Figure B'!W117>='Figure B'!$H$10-'Figure B'!$H$8*'Figure B'!$H$14,'Figure B'!$H$10-'Figure B'!$H$14*'Figure B'!$H$8,'Figure B'!W117)) -> 561 | Y117: 893.6662956
Q118: 581 | R118: =IF(Q118<'Figure B'!$D$10-'Figure B'!$D$14,'Figure B'!$D$10-'Figure B'!$D$14,IF('Figure B'!Q118>='Figure B'!$D$10-'Figure B'!$D$8*'Figure B'!$D$14,'Figure B'!$D$10-'Figure B'!$D$14*'Figure B'!$D$8,'Figure B'!Q118)) -> 581 | S118: =('Figure B'!$D$10-'Figure B'!$D$8*'Figure B'!$D$14-'Figure B'!$D$8*'Figure B'!Q118)/('Figure B'!$R$150-'Figure B'!$D$8) -> 879.5714286 | T118: =IF(Q118<'Figure B'!$D$10-'Figure B'!$D$14,'Figure B'!$D$10,IF(Q118>='Figure B'!$D$10-'Figure B'!$D$14*'Figure B'!$D$8,'Figure B'!$D$10-'Figure B'!$D$14*'Figure B'!$D$8,'Figure B'!S118)) -> 879.5714286 | U118: 886.8427544 | W118: 581 | X118: =IF(W118<'Figure B'!$H$10-'Figure B'!$H$14,'Figure B'!$H$10-'Figure B'!$H$14,IF('Figure B'!W118>='Figure B'!$H$10-'Figure B'!$H$8*'Figure B'!$H$14,'Figure B'!$H$10-'Figure B'!$H$14*'Figure B'!$H$8,'Figure B'!W118)) -> 581 | Y118: 886.8427544
Q119: 601 | R119: =IF(Q119<'Figure B'!$D$10-'Figure B'!$D$14,'Figure B'!$D$10-'Figure B'!$D$14,IF('Figure B'!Q119>='Figure B'!$D$10-'Figure B'!$D$8*'Figure B'!$D$14,'Figure B'!$D$10-'Figure B'!$D$14*'Figure B'!$D$8,'Figure B'!Q119)) -> 601 | S119: =('Figure B'!$D$10-'Figure B'!$D$8*'Figure B'!$D$14-'Figure B'!$D$8*'Figure B'!Q119)/('Figure B'!$R$150-'Figure B'!$D$8) -> 871 | T119: =IF(Q119<'Figure B'!$D$10-'Figure B'!$D$14,'Figure B'!$D$10,IF(Q119>='Figure B'!$D$10-'Figure B'!$D$14*'Figure B'!$D$8,'Figure B'!$D$10-'Figure B'!$D$14*'Figure B'!$D$8,'Figure B'!S119)) -> 871 | U119: 880.2169733 | W119: 601 | X119: =IF(W119<'Figure B'!$H$10-'Figure B'!$H$14,'Figure B'!$H$10-'Figure B'!$H$14,IF('Figure B'!W119>='Figure B'!$H$10-'Figure B'!$H$8*'Figure B'!$H$14,'Figure B'!$H$10-'Figure B'!$H$14*'Figure B'!$H$8,'Figure B'!W119)) -> 601 | Y119: 880.2169733
Q120: 621 | R120: =IF(Q120<'Figure B'!$D$10-'Figure B'!$D$14,'Figure B'!$D$10-'Figure B'!$D$14,IF('Figure B'!Q120>='Figure B'!$D$10-'Figure B'!$D$8*'Figure B'!$D$14,'Figure B'!$D$10-'Figure B'!$D$14*'Figure B'!$D$8,'Figure B'!Q120)) -> 621 | S120: =('Figure B'!$D$10-'Figure B'!$D$8*'Figure B'!$D$14-'Figure B'!$D$8*'Figure B'!Q120)/('Figure B'!$R$150-'Figure B'!$D$8) -> 862.4285714 | T120: =IF(Q120<'Figure B'!$D$10-'Figure B'!$D$14,'Figure B'!$D$10,IF(Q120>='Figure B'!$D$10-'Figure B'!$D$14*'Figure B'!$D$8,'Figure B'!$D$10-'Figure B'!$D$14*'Figure B'!$D$8,'Figure B'!S120)) -> 862.4285714 | U120: 873.7773301 | W120: 621 | X120: =IF(W120<'Figure B'!$H$10-'Figure B'!$H$14,'Figure B'!$H$10-'Figure B'!$H$14,IF('Figure B'!W120>='Figure B'!$H$10-'Figure B'!$H$8*'Figure B'!$H$14,'Figure B'!$H$10-'Figure B'!$H$14*'Figure B'!$H$8,'Figure B'!W120)) -> 621 | Y120: 873.7773301
Q121: 641 | R121: =IF(Q121<'Figure B'!$D$10-'Figure B'!$D$14,'Figure B'!$D$10-'Figure B'!$D$14,IF('Figure B'!Q121>='Figure B'!$D$10-'Figure B'!$D$8*'Figure B'!$D$14,'Figure B'!$D$10-'Figure B'!$D$14*'Figure B'!$D$8,'Figure B'!Q121)) -> 641 | S121: =('Figure B'!$D$10-'Figure B'!$D$8*'Figure B'!$D$14-'Figure B'!$D$8*'Figure B'!Q121)/('Figure B'!$R$150-'Figure B'!$D$8) -> 853.8571429 | T121: =IF(Q121<'Figure B'!$D$10-'Figure B'!$D$14,'Figure B'!$D$10,IF(Q121>='Figure B'!$D$10-'Figure B'!$D$14*'Figure B'!$D$8,'Figure B'!$D$10-'Figure B'!$D$14*'Figure B'!$D$8,'Figure B'!S121)) -> 853.8571429 | U121: 867.5132278 | W121: 641 | X121: =IF(W121<'Figure B'!$H$10-'Figure B'!$H$14,'Figure B'!$H$10-'Figure B'!$H$14,IF('Figure B'!W121>='Figure B'!$H$10-'Figure B'!$H$8*'Figure B'!$H$14,'Figure B'!$H$10-'Figure B'!$H$14*'Figure B'!$H$8,'Figure B'!W121)) -> 641 | Y121: 867.5132278
Q122: =+Q121+P$88 -> 661 | R122: =IF(Q122<'Figure B'!$D$10-'Figure B'!$D$14,'Figure B'!$D$10-'Figure B'!$D$14,IF('Figure B'!Q122>='Figure B'!$D$10-'Figure B'!$D$8*'Figure B'!$D$14,'Figure B'!$D$10-'Figure B'!$D$14*'Figure B'!$D$8,'Figure B'!Q122)) -> 661 | S122: =('Figure B'!$D$10-'Figure B'!$D$8*'Figure B'!$D$14-'Figure B'!$D$8*'Figure B'!Q122)/('Figure B'!$R$150-'Figure B'!$D$8) -> 845.2857143 | T122: =IF(Q122<'Figure B'!$D$10-'Figure B'!$D$14,'Figure B'!$D$10,IF(Q122>='Figure B'!$D$10-'Figure B'!$D$14*'Figure B'!$D$8,'Figure B'!$D$10-'Figure B'!$D$14*'Figure B'!$D$8,'Figure B'!S122)) -> 845.2857143 | U122: 861.4149747 | W122: =+W121+P$88 -> 661 | X122: =IF(W122<'Figure B'!$H$10-'Figure B'!$H$14,'Figure B'!$H$10-'Figure B'!$H$14,IF('Figure B'!W122>='Figure B'!$H$10-'Figure B'!$H$8*'Figure B'!$H$14,'Figure B'!$H$10-'Figure B'!$H$14*'Figure B'!$H$8,'Figure B'!W122)) -> 661 | Y122: 861.4149747
Q123: 681 | R123: =IF(Q123<'Figure B'!$D$10-'Figure B'!$D$14,'Figure B'!$D$10-'Figure B'!$D$14,IF('Figure B'!Q123>='Figure B'!$D$10-'Figure B'!$D$8*'Figure B'!$D$14,'Figure B'!$D$10-'Figure B'!$D$14*'Figure B'!$D$8,'Figure B'!Q123)) -> 681 | S123: =('Figure B'!$D$10-'Figure B'!$D$8*'Figure B'!$D$14-'Figure B'!$D$8*'Figure B'!Q123)/('Figure B'!$R$150-'Figure B'!$D$8) -> 836.7142857 | T123: =IF(Q123<'Figure B'!$D$10-'Figure B'!$D$14,'Figure B'!$D$10,IF(Q123>='Figure B'!$D$10-'Figure B'!$D$14*'Figure B'!$D$8,'Figure B'!$D$10-'Figure B'!$D$14*'Figure B'!$D$8,'Figure B'!S123)) -> 836.7142857 | U123: 855.4736835 | W123: 681 | X123: =IF(W123<'Figure B'!$H$10-'Figure B'!$H$14,'Figure B'!$H$10-'Figure B'!$H$14,IF('Figure B'!W123>='Figure B'!$H$10-'Figure B'!$H$8*'Figure B'!$H$14,'Figure B'!$H$10-'Figure B'!$H$14*'Figure B'!$H$8,'Figure B'!W123)) -> 681 | Y123: 855.4736835
Q124: 701 | R124: =IF(Q124<'Figure B'!$D$10-'Figure B'!$D$14,'Figure B'!$D$10-'Figure B'!$D$14,IF('Figure B'!Q124>='Figure B'!$D$10-'Figure B'!$D$8*'Figure B'!$D$14,'Figure B'!$D$10-'Figure B'!$D$14*'Figure B'!$D$8,'Figure B'!Q124)) -> 701 | S124: =('Figure B'!$D$10-'Figure B'!$D$8*'Figure B'!$D$14-'Figure B'!$D$8*'Figure B'!Q124)/('Figure B'!$R$150-'Figure B'!$D$8) -> 828.1428571 | T124: =IF(Q124<'Figure B'!$D$10-'Figure B'!$D$14,'Figure B'!$D$10,IF(Q124>='Figure B'!$D$10-'Figure B'!$D$14*'Figure B'!$D$8,'Figure B'!$D$10-'Figure B'!$D$14*'Figure B'!$D$8,'Figure B'!S124)) -> 828.1428571 | U124: 849.6811828 | W124: 701 | X124: =IF(W124<'Figure B'!$H$10-'Figure B'!$H$14,'Figure B'!$H$10-'Figure B'!$H$14,IF('Figure B'!W124>='Figure B'!$H$10-'Figure B'!$H$8*'Figure B'!$H$14,'Figure B'!$H$10-'Figure B'!$H$14*'Figure B'!$H$8,'Figure B'!W124)) -> 701 | Y124: 849.6811828
Q125: 721 | R125: =IF(Q125<'Figure B'!$D$10-'Figure B'!$D$14,'Figure B'!$D$10-'Figure B'!$D$14,IF('Figure B'!Q125>='Figure B'!$D$10-'Figure B'!$D$8*'Figure B'!$D$14,'Figure B'!$D$10-'Figure B'!$D$14*'Figure B'!$D$8,'Figure B'!Q125)) -> 721 | S125: =('Figure B'!$D$10-'Figure B'!$D$8*'Figure B'!$D$14-'Figure B'!$D$8*'Figure B'!Q125)/('Figure B'!$R$150-'Figure B'!$D$8) -> 819.5714286 | T125: =IF(Q125<'Figure B'!$D$10-'Figure B'!$D$14,'Figure B'!$D$10,IF(Q125>='Figure B'!$D$10-'Figure B'!$D$14*'Figure B'!$D$8,'Figure B'!$D$10-'Figure B'!$D$14*'Figure B'!$D$8,'Figure B'!S125)) -> 819.5714286 | U125: 844.0299407 | W125: 721 | X125: =IF(W125<'Figure B'!$H$10-'Figure B'!$H$14,'Figure B'!$H$10-'Figure B'!$H$14,IF('Figure B'!W125>='Figure B'!$H$10-'Figure B'!$H$8*'Figure B'!$H$14,'Figure B'!$H$10-'Figure B'!$H$14*'Figure B'!$H$8,'Figure B'!W125)) -> 721 | Y125: 844.0299407
Q126: 741 | R126: =IF(Q126<'Figure B'!$D$10-'Figure B'!$D$14,'Figure B'!$D$10-'Figure B'!$D$14,IF('Figure B'!Q126>='Figure B'!$D$10-'Figure B'!$D$8*'Figure B'!$D$14,'Figure B'!$D$10-'Figure B'!$D$14*'Figure B'!$D$8,'Figure B'!Q126)) -> 741 | S126: =('Figure B'!$D$10-'Figure B'!$D$8*'Figure B'!$D$14-'Figure B'!$D$8*'Figure B'!Q126)/('Figure B'!$R$150-'Figure B'!$D$8) -> 811 | T126: =IF(Q126<'Figure B'!$D$10-'Figure B'!$D$14,'Figure B'!$D$10,IF(Q126>='Figure B'!$D$10-'Figure B'!$D$14*'Figure B'!$D$8,'Figure B'!$D$10-'Figure B'!$D$14*'Figure B'!$D$8,'Figure B'!S126)) -> 811 | U126: 838.5129996 | W126: 741 | X126: =IF(W126<'Figure B'!$H$10-'Figure B'!$H$14,'Figure B'!$H$10-'Figure B'!$H$14,IF('Figure B'!W126>='Figure B'!$H$10-'Figure B'!$H$8*'Figure B'!$H$14,'Figure B'!$H$10-'Figure B'!$H$14*'Figure B'!$H$8,'Figure B'!W126)) -> 741 | Y126: 838.5129996
Q127: 761 | R127: =IF(Q127<'Figure B'!$D$10-'Figure B'!$D$14,'Figure B'!$D$10-'Figure B'!$D$14,IF('Figure B'!Q127>='Figure B'!$D$10-'Figure B'!$D$8*'Figure B'!$D$14,'Figure B'!$D$10-'Figure B'!$D$14*'Figure B'!$D$8,'Figure B'!Q127)) -> 761 | S127: =('Figure B'!$D$10-'Figure B'!$D$8*'Figure B'!$D$14-'Figure B'!$D$8*'Figure B'!Q127)/('Figure B'!$R$150-'Figure B'!$D$8) -> 802.4285714 | T127: =IF(Q127<'Figure B'!$D$10-'Figure B'!$D$14,'Figure B'!$D$10,IF(Q127>='Figure B'!$D$10-'Figure B'!$D$14*'Figure B'!$D$8,'Figure B'!$D$10-'Figure B'!$D$14*'Figure B'!$D$8,'Figure B'!S127)) -> 802.4285714 | U127: 833.1239176 | W127: 761 | X127: =IF(W127<'Figure B'!$H$10-'Figure B'!$H$14,'Figure B'!$H$10-'Figure B'!$H$14,IF('Figure B'!W127>='Figure B'!$H$10-'Figure B'!$H$8*'Figure B'!$H$14,'Figure B'!$H$10-'Figure B'!$H$14*'Figure B'!$H$8,'Figure B'!W127)) -> 761 | Y127: 833.1239176
Q128: 781 | R128: =IF(Q128<'Figure B'!$D$10-'Figure B'!$D$14,'Figure B'!$D$10-'Figure B'!$D$14,IF('Figure B'!Q128>='Figure B'!$D$10-'Figure B'!$D$8*'Figure B'!$D$14,'Figure B'!$D$10-'Figure B'!$D$14*'Figure B'!$D$8,'Figure B'!Q128)) -> 781 | S128: =('Figure B'!$D$10-'Figure B'!$D$8*'Figure B'!$D$14-'Figure B'!$D$8*'Figure B'!Q128)/('Figure B'!$R$150-'Figure B'!$D$8) -> 793.8571429 | T128: =IF(Q128<'Figure B'!$D$10-'Figure B'!$D$14,'Figure B'!$D$10,IF(Q128>='Figure B'!$D$10-'Figure B'!$D$14*'Figure B'!$D$8,'Figure B'!$D$10-'Figure B'!$D$14*'Figure B'!$D$8,'Figure B'!S128)) -> 793.8571429 | U128: 827.8567181 | W128: 781 | X128: =IF(W128<'Figure B'!$H$10-'Figure B'!$H$14,'Figure B'!$H$10-'Figure B'!$H$14,IF('Figure B'!W128>='Figure B'!$H$10-'Figure B'!$H$8*'Figure B'!$H$14,'Figure B'!$H$10-'Figure B'!$H$14*'Figure B'!$H$8,'Figure B'!W128)) -> 781 | Y128: 827.8567181
Q129: 801 | R129: =IF(Q129<'Figure B'!$D$10-'Figure B'!$D$14,'Figure B'!$D$10-'Figure B'!$D$14,IF('Figure B'!Q129>='Figure B'!$D$10-'Figure B'!$D$8*'Figure B'!$D$14,'Figure B'!$D$10-'Figure B'!$D$14*'Figure B'!$D$8,'Figure B'!Q129)) -> 790 | S129: =('Figure B'!$D$10-'Figure B'!$D$8*'Figure B'!$D$14-'Figure B'!$D$8*'Figure B'!Q129)/('Figure B'!$R$150-'Figure B'!$D$8) -> 785.2857143 | T129: =IF(Q129<'Figure B'!$D$10-'Figure B'!$D$14,'Figure B'!$D$10,IF(Q129>='Figure B'!$D$10-'Figure B'!$D$14*'Figure B'!$D$8,'Figure B'!$D$10-'Figure B'!$D$14*'Figure B'!$D$8,'Figure B'!S129)) -> 790 | U129: 825.5247479 | W129: 801 | X129: =IF(W129<'Figure B'!$H$10-'Figure B'!$H$14,'Figure B'!$H$10-'Figure B'!$H$14,IF('Figure B'!W129>='Figure B'!$H$10-'Figure B'!$H$8*'Figure B'!$H$14,'Figure B'!$H$10-'Figure B'!$H$14*'Figure B'!$H$8,'Figure B'!W129)) -> 790 | Y129: 825.5247479
Q130: 821 | R130: =IF(Q130<'Figure B'!$D$10-'Figure B'!$D$14,'Figure B'!$D$10-'Figure B'!$D$14,IF('Figure B'!Q130>='Figure B'!$D$10-'Figure B'!$D$8*'Figure B'!$D$14,'Figure B'!$D$10-'Figure B'!$D$14*'Figure B'!$D$8,'Figure B'!Q130)) -> 790 | S130: =('Figure B'!$D$10-'Figure B'!$D$8*'Figure B'!$D$14-'Figure B'!$D$8*'Figure B'!Q130)/('Figure B'!$R$150-'Figure B'!$D$8) -> 776.7142857 | T130: =IF(Q130<'Figure B'!$D$10-'Figure B'!$D$14,'Figure B'!$D$10,IF(Q130>='Figure B'!$D$10-'Figure B'!$D$14*'Figure B'!$D$8,'Figure B'!$D$10-'Figure B'!$D$14*'Figure B'!$D$8,'Figure B'!S130)) -> 790 | U130: 825.5247479 | W130: 821 | X130: =IF(W130<'Figure B'!$H$10-'Figure B'!$H$14,'Figure B'!$H$10-'Figure B'!$H$14,IF('Figure B'!W130>='Figure B'!$H$10-'Figure B'!$H$8*'Figure B'!$H$14,'Figure B'!$H$10-'Figure B'!$H$14*'Figure B'!$H$8,'Figure B'!W130)) -> 790 | Y130: 825.5247479
Q131: 841 | R131: =IF(Q131<'Figure B'!$D$10-'Figure B'!$D$14,'Figure B'!$D$10-'Figure B'!$D$14,IF('Figure B'!Q131>='Figure B'!$D$10-'Figure B'!$D$8*'Figure B'!$D$14,'Figure B'!$D$10-'Figure B'!$D$14*'Figure B'!$D$8,'Figure B'!Q131)) -> 790 | S131: =('Figure B'!$D$10-'Figure B'!$D$8*'Figure B'!$D$14-'Figure B'!$D$8*'Figure B'!Q131)/('Figure B'!$R$150-'Figure B'!$D$8) -> 768.1428571 | T131: =IF(Q131<'Figure B'!$D$10-'Figure B'!$D$14,'Figure B'!$D$10,IF(Q131>='Figure B'!$D$10-'Figure B'!$D$14*'Figure B'!$D$8,'Figure B'!$D$10-'Figure B'!$D$14*'Figure B'!$D$8,'Figure B'!S131)) -> 790 | U131: 825.5247479 | W131: 841 | X131: =IF(W131<'Figure B'!$H$10-'Figure B'!$H$14,'Figure B'!$H$10-'Figure B'!$H$14,IF('Figure B'!W131>='Figure B'!$H$10-'Figure B'!$H$8*'Figure B'!$H$14,'Figure B'!$H$10-'Figure B'!$H$14*'Figure B'!$H$8,'Figure B'!W131)) -> 790 | Y131: 825.5247479
Q132: 861 | R132: =IF(Q132<'Figure B'!$D$10-'Figure B'!$D$14,'Figure B'!$D$10-'Figure B'!$D$14,IF('Figure B'!Q132>='Figure B'!$D$10-'Figure B'!$D$8*'Figure B'!$D$14,'Figure B'!$D$10-'Figure B'!$D$14*'Figure B'!$D$8,'Figure B'!Q132)) -> 790 | S132: =('Figure B'!$D$10-'Figure B'!$D$8*'Figure B'!$D$14-'Figure B'!$D$8*'Figure B'!Q132)/('Figure B'!$R$150-'Figure B'!$D$8) -> 759.5714286 | T132: =IF(Q132<'Figure B'!$D$10-'Figure B'!$D$14,'Figure B'!$D$10,IF(Q132>='Figure B'!$D$10-'Figure B'!$D$14*'Figure B'!$D$8,'Figure B'!$D$10-'Figure B'!$D$14*'Figure B'!$D$8,'Figure B'!S132)) -> 790 | U132: 825.5247479 | W132: 861 | X132: =IF(W132<'Figure B'!$H$10-'Figure B'!$H$14,'Figure B'!$H$10-'Figure B'!$H$14,IF('Figure B'!W132>='Figure B'!$H$10-'Figure B'!$H$8*'Figure B'!$H$14,'Figure B'!$H$10-'Figure B'!$H$14*'Figure B'!$H$8,'Figure B'!W132)) -> 790 | Y132: 825.5247479
Q133: 881 | R133: =IF(Q133<'Figure B'!$D$10-'Figure B'!$D$14,'Figure B'!$D$10-'Figure B'!$D$14,IF('Figure B'!Q133>='Figure B'!$D$10-'Figure B'!$D$8*'Figure B'!$D$14,'Figure B'!$D$10-'Figure B'!$D$14*'Figure B'!$D$8,'Figure B'!Q133)) -> 790 | S133: =('Figure B'!$D$10-'Figure B'!$D$8*'Figure B'!$D$14-'Figure B'!$D$8*'Figure B'!Q133)/('Figure B'!$R$150-'Figure B'!$D$8) -> 751 | T133: =IF(Q133<'Figure B'!$D$10-'Figure B'!$D$14,'Figure B'!$D$10,IF(Q133>='Figure B'!$D$10-'Figure B'!$D$14*'Figure B'!$D$8,'Figure B'!$D$10-'Figure B'!$D$14*'Figure B'!$D$8,'Figure B'!S133)) -> 790 | U133: 825.5247479 | W133: 881 | X133: =IF(W133<'Figure B'!$H$10-'Figure B'!$H$14,'Figure B'!$H$10-'Figure B'!$H$14,IF('Figure B'!W133>='Figure B'!$H$10-'Figure B'!$H$8*'Figure B'!$H$14,'Figure B'!$H$10-'Figure B'!$H$14*'Figure B'!$H$8,'Figure B'!W133)) -> 790 | Y133: 825.5247479
Q134: 901 | R134: =IF(Q134<'Figure B'!$D$10-'Figure B'!$D$14,'Figure B'!$D$10-'Figure B'!$D$14,IF('Figure B'!Q134>='Figure B'!$D$10-'Figure B'!$D$8*'Figure B'!$D$14,'Figure B'!$D$10-'Figure B'!$D$14*'Figure B'!$D$8,'Figure B'!Q134)) -> 790 | S134: =('Figure B'!$D$10-'Figure B'!$D$8*'Figure B'!$D$14-'Figure B'!$D$8*'Figure B'!Q134)/('Figure B'!$R$150-'Figure B'!$D$8) -> 742.4285714 | T134: =IF(Q134<'Figure B'!$D$10-'Figure B'!$D$14,'Figure B'!$D$10,IF(Q134>='Figure B'!$D$10-'Figure B'!$D$14*'Figure B'!$D$8,'Figure B'!$D$10-'Figure B'!$D$14*'Figure B'!$D$8,'Figure B'!S134)) -> 790 | U134: 825.5247479 | W134: 901 | X134: =IF(W134<'Figure B'!$H$10-'Figure B'!$H$14,'Figure B'!$H$10-'Figure B'!$H$14,IF('Figure B'!W134>='Figure B'!$H$10-'Figure B'!$H$8*'Figure B'!$H$14,'Figure B'!$H$10-'Figure B'!$H$14*'Figure B'!$H$8,'Figure B'!W134)) -> 790 | Y134: 825.5247479
Q135: 921 | R135: =IF(Q135<'Figure B'!$D$10-'Figure B'!$D$14,'Figure B'!$D$10-'Figure B'!$D$14,IF('Figure B'!Q135>='Figure B'!$D$10-'Figure B'!$D$8*'Figure B'!$D$14,'Figure B'!$D$10-'Figure B'!$D$14*'Figure B'!$D$8,'Figure B'!Q135)) -> 790 | S135: =('Figure B'!$D$10-'Figure B'!$D$8*'Figure B'!$D$14-'Figure B'!$D$8*'Figure B'!Q135)/('Figure B'!$R$150-'Figure B'!$D$8) -> 733.8571429 | T135: =IF(Q135<'Figure B'!$D$10-'Figure B'!$D$14,'Figure B'!$D$10,IF(Q135>='Figure B'!$D$10-'Figure B'!$D$14*'Figure B'!$D$8,'Figure B'!$D$10-'Figure B'!$D$14*'Figure B'!$D$8,'Figure B'!S135)) -> 790 | U135: 825.5247479 | W135: 921 | X135: =IF(W135<'Figure B'!$H$10-'Figure B'!$H$14,'Figure B'!$H$10-'Figure B'!$H$14,IF('Figure B'!W135>='Figure B'!$H$10-'Figure B'!$H$8*'Figure B'!$H$14,'Figure B'!$H$10-'Figure B'!$H$14*'Figure B'!$H$8,'Figure B'!W135)) -> 790 | Y135: 825.5247479
Q136: 941 | R136: =IF(Q136<'Figure B'!$D$10-'Figure B'!$D$14,'Figure B'!$D$10-'Figure B'!$D$14,IF('Figure B'!Q136>='Figure B'!$D$10-'Figure B'!$D$8*'Figure B'!$D$14,'Figure B'!$D$10-'Figure B'!$D$14*'Figure B'!$D$8,'Figure B'!Q136)) -> 790 | S136: =('Figure B'!$D$10-'Figure B'!$D$8*'Figure B'!$D$14-'Figure B'!$D$8*'Figure B'!Q136)/('Figure B'!$R$150-'Figure B'!$D$8) -> 725.2857143 | T136: =IF(Q136<'Figure B'!$D$10-'Figure B'!$D$14,'Figure B'!$D$10,IF(Q136>='Figure B'!$D$10-'Figure B'!$D$14*'Figure B'!$D$8,'Figure B'!$D$10-'Figure B'!$D$14*'Figure B'!$D$8,'Figure B'!S136)) -> 790 | U136: 825.5247479 | W136: 941 | X136: =IF(W136<'Figure B'!$H$10-'Figure B'!$H$14,'Figure B'!$H$10-'Figure B'!$H$14,IF('Figure B'!W136>='Figure B'!$H$10-'Figure B'!$H$8*'Figure B'!$H$14,'Figure B'!$H$10-'Figure B'!$H$14*'Figure B'!$H$8,'Figure B'!W136)) -> 790 | Y136: 825.5247479
Q137: 961 | R137: =IF(Q137<'Figure B'!$D$10-'Figure B'!$D$14,'Figure B'!$D$10-'Figure B'!$D$14,IF('Figure B'!Q137>='Figure B'!$D$10-'Figure B'!$D$8*'Figure B'!$D$14,'Figure B'!$D$10-'Figure B'!$D$14*'Figure B'!$D$8,'Figure B'!Q137)) -> 790 | S137: =('Figure B'!$D$10-'Figure B'!$D$8*'Figure B'!$D$14-'Figure B'!$D$8*'Figure B'!Q137)/('Figure B'!$R$150-'Figure B'!$D$8) -> 716.7142857 | T137: =IF(Q137<'Figure B'!$D$10-'Figure B'!$D$14,'Figure B'!$D$10,IF(Q137>='Figure B'!$D$10-'Figure B'!$D$14*'Figure B'!$D$8,'Figure B'!$D$10-'Figure B'!$D$14*'Figure B'!$D$8,'Figure B'!S137)) -> 790 | U137: 825.5247479 | W137: 961 | X137: =IF(W137<'Figure B'!$H$10-'Figure B'!$H$14,'Figure B'!$H$10-'Figure B'!$H$14,IF('Figure B'!W137>='Figure B'!$H$10-'Figure B'!$H$8*'Figure B'!$H$14,'Figure B'!$H$10-'Figure B'!$H$14*'Figure B'!$H$8,'Figure B'!W137)) -> 790 | Y137: 825.5247479
Q138: 981 | R138: =IF(Q138<'Figure B'!$D$10-'Figure B'!$D$14,'Figure B'!$D$10-'Figure B'!$D$14,IF('Figure B'!Q138>='Figure B'!$D$10-'Figure B'!$D$8*'Figure B'!$D$14,'Figure B'!$D$10-'Figure B'!$D$14*'Figure B'!$D$8,'Figure B'!Q138)) -> 790 | S138: =('Figure B'!$D$10-'Figure B'!$D$8*'Figure B'!$D$14-'Figure B'!$D$8*'Figure B'!Q138)/('Figure B'!$R$150-'Figure B'!$D$8) -> 708.1428571 | T138: =IF(Q138<'Figure B'!$D$10-'Figure B'!$D$14,'Figure B'!$D$10,IF(Q138>='Figure B'!$D$10-'Figure B'!$D$14*'Figure B'!$D$8,'Figure B'!$D$10-'Figure B'!$D$14*'Figure B'!$D$8,'Figure B'!S138)) -> 790 | U138: 825.5247479 | W138: 981 | X138: =IF(W138<'Figure B'!$H$10-'Figure B'!$H$14,'Figure B'!$H$10-'Figure B'!$H$14,IF('Figure B'!W138>='Figure B'!$H$10-'Figure B'!$H$8*'Figure B'!$H$14,'Figure B'!$H$10-'Figure B'!$H$14*'Figure B'!$H$8,'Figure B'!W138)) -> 790 | Y138: 825.5247479
Q139: 1001 | R139: =IF(Q139<'Figure B'!$D$10-'Figure B'!$D$14,'Figure B'!$D$10-'Figure B'!$D$14,IF('Figure B'!Q139>='Figure B'!$D$10-'Figure B'!$D$8*'Figure B'!$D$14,'Figure B'!$D$10-'Figure B'!$D$14*'Figure B'!$D$8,'Figure B'!Q139)) -> 790 | S139: =('Figure B'!$D$10-'Figure B'!$D$8*'Figure B'!$D$14-'Figure B'!$D$8*'Figure B'!Q139)/('Figure B'!$R$150-'Figure B'!$D$8) -> 699.5714286 | T139: =IF(Q139<'Figure B'!$D$10-'Figure B'!$D$14,'Figure B'!$D$10,IF(Q139>='Figure B'!$D$10-'Figure B'!$D$14*'Figure B'!$D$8,'Figure B'!$D$10-'Figure B'!$D$14*'Figure B'!$D$8,'Figure B'!S139)) -> 790 | U139: 825.5247479 | W139: 1001 | X139: =IF(W139<'Figure B'!$H$10-'Figure B'!$H$14,'Figure B'!$H$10-'Figure B'!$H$14,IF('Figure B'!W139>='Figure B'!$H$10-'Figure B'!$H$8*'Figure B'!$H$14,'Figure B'!$H$10-'Figure B'!$H$14*'Figure B'!$H$8,'Figure B'!W139)) -> 790 | Y139: 825.5247479
Q140: 1021 | R140: =IF(Q140<'Figure B'!$D$10-'Figure B'!$D$14,'Figure B'!$D$10-'Figure B'!$D$14,IF('Figure B'!Q140>='Figure B'!$D$10-'Figure B'!$D$8*'Figure B'!$D$14,'Figure B'!$D$10-'Figure B'!$D$14*'Figure B'!$D$8,'Figure B'!Q140)) -> 790 | S140: =('Figure B'!$D$10-'Figure B'!$D$8*'Figure B'!$D$14-'Figure B'!$D$8*'Figure B'!Q140)/('Figure B'!$R$150-'Figure B'!$D$8) -> 691 | T140: =IF(Q140<'Figure B'!$D$10-'Figure B'!$D$14,'Figure B'!$D$10,IF(Q140>='Figure B'!$D$10-'Figure B'!$D$14*'Figure B'!$D$8,'Figure B'!$D$10-'Figure B'!$D$14*'Figure B'!$D$8,'Figure B'!S140)) -> 790 | U140: 825.5247479 | W140: 1021 | X140: =IF(W140<'Figure B'!$H$10-'Figure B'!$H$14,'Figure B'!$H$10-'Figure B'!$H$14,IF('Figure B'!W140>='Figure B'!$H$10-'Figure B'!$H$8*'Figure B'!$H$14,'Figure B'!$H$10-'Figure B'!$H$14*'Figure B'!$H$8,'Figure B'!W140)) -> 790 | Y140: 825.5247479
Q141: 1041 | R141: =IF(Q141<'Figure B'!$D$10-'Figure B'!$D$14,'Figure B'!$D$10-'Figure B'!$D$14,IF('Figure B'!Q141>='Figure B'!$D$10-'Figure B'!$D$8*'Figure B'!$D$14,'Figure B'!$D$10-'Figure B'!$D$14*'Figure B'!$D$8,'Figure B'!Q141)) -> 790 | S141: =('Figure B'!$D$10-'Figure B'!$D$8*'Figure B'!$D$14-'Figure B'!$D$8*'Figure B'!Q141)/('Figure B'!$R$150-'Figure B'!$D$8) -> 682.4285714 | T141: =IF(Q141<'Figure B'!$D$10-'Figure B'!$D$14,'Figure B'!$D$10,IF(Q141>='Figure B'!$D$10-'Figure B'!$D$14*'Figure B'!$D$8,'Figure B'!$D$10-'Figure B'!$D$14*'Figure B'!$D$8,'Figure B'!S141)) -> 790 | U141: 825.5247479 | W141: 1041 | X141: =IF(W141<'Figure B'!$H$10-'Figure B'!$H$14,'Figure B'!$H$10-'Figure B'!$H$14,IF('Figure B'!W141>='Figure B'!$H$10-'Figure B'!$H$8*'Figure B'!$H$14,'Figure B'!$H$10-'Figure B'!$H$14*'Figure B'!$H$8,'Figure B'!W141)) -> 790 | Y141: 825.5247479
Q142: 1061 | R142: =IF(Q142<'Figure B'!$D$10-'Figure B'!$D$14,'Figure B'!$D$10-'Figure B'!$D$14,IF('Figure B'!Q142>='Figure B'!$D$10-'Figure B'!$D$8*'Figure B'!$D$14,'Figure B'!$D$10-'Figure B'!$D$14*'Figure B'!$D$8,'Figure B'!Q142)) -> 790 | S142: =('Figure B'!$D$10-'Figure B'!$D$8*'Figure B'!$D$14-'Figure B'!$D$8*'Figure B'!Q142)/('Figure B'!$R$150-'Figure B'!$D$8) -> 673.8571429 | T142: =IF(Q142<'Figure B'!$D$10-'Figure B'!$D$14,'Figure B'!$D$10,IF(Q142>='Figure B'!$D$10-'Figure B'!$D$14*'Figure B'!$D$8,'Figure B'!$D$10-'Figure B'!$D$14*'Figure B'!$D$8,'Figure B'!S142)) -> 790 | U142: 825.5247479 | W142: 1061 | X142: =IF(W142<'Figure B'!$H$10-'Figure B'!$H$14,'Figure B'!$H$10-'Figure B'!$H$14,IF('Figure B'!W142>='Figure B'!$H$10-'Figure B'!$H$8*'Figure B'!$H$14,'Figure B'!$H$10-'Figure B'!$H$14*'Figure B'!$H$8,'Figure B'!W142)) -> 790 | Y142: 825.5247479
Q143: 1081 | R143: =IF(Q143<'Figure B'!$D$10-'Figure B'!$D$14,'Figure B'!$D$10-'Figure B'!$D$14,IF('Figure B'!Q143>='Figure B'!$D$10-'Figure B'!$D$8*'Figure B'!$D$14,'Figure B'!$D$10-'Figure B'!$D$14*'Figure B'!$D$8,'Figure B'!Q143)) -> 790 | S143: =('Figure B'!$D$10-'Figure B'!$D$8*'Figure B'!$D$14-'Figure B'!$D$8*'Figure B'!Q143)/('Figure B'!$R$150-'Figure B'!$D$8) -> 665.2857143 | T143: =IF(Q143<'Figure B'!$D$10-'Figure B'!$D$14,'Figure B'!$D$10,IF(Q143>='Figure B'!$D$10-'Figure B'!$D$14*'Figure B'!$D$8,'Figure B'!$D$10-'Figure B'!$D$14*'Figure B'!$D$8,'Figure B'!S143)) -> 790 | U143: 825.5247479 | W143: 1081 | X143: =IF(W143<'Figure B'!$H$10-'Figure B'!$H$14,'Figure B'!$H$10-'Figure B'!$H$14,IF('Figure B'!W143>='Figure B'!$H$10-'Figure B'!$H$8*'Figure B'!$H$14,'Figure B'!$H$10-'Figure B'!$H$14*'Figure B'!$H$8,'Figure B'!W143)) -> 790 | Y143: 825.5247479
Q144: 1101 | R144: =IF(Q144<'Figure B'!$D$10-'Figure B'!$D$14,'Figure B'!$D$10-'Figure B'!$D$14,IF('Figure B'!Q144>='Figure B'!$D$10-'Figure B'!$D$8*'Figure B'!$D$14,'Figure B'!$D$10-'Figure B'!$D$14*'Figure B'!$D$8,'Figure B'!Q144)) -> 790 | S144: =('Figure B'!$D$10-'Figure B'!$D$8*'Figure B'!$D$14-'Figure B'!$D$8*'Figure B'!Q144)/('Figure B'!$R$150-'Figure B'!$D$8) -> 656.7142857 | T144: =IF(Q144<'Figure B'!$D$10-'Figure B'!$D$14,'Figure B'!$D$10,IF(Q144>='Figure B'!$D$10-'Figure B'!$D$14*'Figure B'!$D$8,'Figure B'!$D$10-'Figure B'!$D$14*'Figure B'!$D$8,'Figure B'!S144)) -> 790 | U144: 825.5247479 | W144: 1101 | X144: =IF(W144<'Figure B'!$H$10-'Figure B'!$H$14,'Figure B'!$H$10-'Figure B'!$H$14,IF('Figure B'!W144>='Figure B'!$H$10-'Figure B'!$H$8*'Figure B'!$H$14,'Figure B'!$H$10-'Figure B'!$H$14*'Figure B'!$H$8,'Figure B'!W144)) -> 790 | Y144: 825.5247479
Q145: 1121 | R145: =IF(Q145<'Figure B'!$D$10-'Figure B'!$D$14,'Figure B'!$D$10-'Figure B'!$D$14,IF('Figure B'!Q145>='Figure B'!$D$10-'Figure B'!$D$8*'Figure B'!$D$14,'Figure B'!$D$10-'Figure B'!$D$14*'Figure B'!$D$8,'Figure B'!Q145)) -> 790 | S145: =('Figure B'!$D$10-'Figure B'!$D$8*'Figure B'!$D$14-'Figure B'!$D$8*'Figure B'!Q145)/('Figure B'!$R$150-'Figure B'!$D$8) -> 648.1428571 | T145: =IF(Q145<'Figure B'!$D$10-'Figure B'!$D$14,'Figure B'!$D$10,IF(Q145>='Figure B'!$D$10-'Figure B'!$D$14*'Figure B'!$D$8,'Figure B'!$D$10-'Figure B'!$D$14*'Figure B'!$D$8,'Figure B'!S145)) -> 790 | U145: 825.5247479 | W145: 1121 | X145: =IF(W145<'Figure B'!$H$10-'Figure B'!$H$14,'Figure B'!$H$10-'Figure B'!$H$14,IF('Figure B'!W145>='Figure B'!$H$10-'Figure B'!$H$8*'Figure B'!$H$14,'Figure B'!$H$10-'Figure B'!$H$14*'Figure B'!$H$8,'Figure B'!W145)) -> 790 | Y145: 825.5247479
Q146: 1141 | R146: =IF(Q146<'Figure B'!$D$10-'Figure B'!$D$14,'Figure B'!$D$10-'Figure B'!$D$14,IF('Figure B'!Q146>='Figure B'!$D$10-'Figure B'!$D$8*'Figure B'!$D$14,'Figure B'!$D$10-'Figure B'!$D$14*'Figure B'!$D$8,'Figure B'!Q146)) -> 790 | S146: =('Figure B'!$D$10-'Figure B'!$D$8*'Figure B'!$D$14-'Figure B'!$D$8*'Figure B'!Q146)/('Figure B'!$R$150-'Figure B'!$D$8) -> 639.5714286 | T146: =IF(Q146<'Figure B'!$D$10-'Figure B'!$D$14,'Figure B'!$D$10,IF(Q146>='Figure B'!$D$10-'Figure B'!$D$14*'Figure B'!$D$8,'Figure B'!$D$10-'Figure B'!$D$14*'Figure B'!$D$8,'Figure B'!S146)) -> 790 | U146: 825.5247479 | W146: 1141 | X146: =IF(W146<'Figure B'!$H$10-'Figure B'!$H$14,'Figure B'!$H$10-'Figure B'!$H$14,IF('Figure B'!W146>='Figure B'!$H$10-'Figure B'!$H$8*'Figure B'!$H$14,'Figure B'!$H$10-'Figure B'!$H$14*'Figure B'!$H$8,'Figure B'!W146)) -> 790 | Y146: 825.5247479
Q147: 1161 | R147: =IF(Q147<'Figure B'!$D$10-'Figure B'!$D$14,'Figure B'!$D$10-'Figure B'!$D$14,IF('Figure B'!Q147>='Figure B'!$D$10-'Figure B'!$D$8*'Figure B'!$D$14,'Figure B'!$D$10-'Figure B'!$D$14*'Figure B'!$D$8,'Figure B'!Q147)) -> 790 | S147: =('Figure B'!$D$10-'Figure B'!$D$8*'Figure B'!$D$14-'Figure B'!$D$8*'Figure B'!Q147)/('Figure B'!$R$150-'Figure B'!$D$8) -> 631 | T147: =IF(Q147<'Figure B'!$D$10-'Figure B'!$D$14,'Figure B'!$D$10,IF(Q147>='Figure B'!$D$10-'Figure B'!$D$14*'Figure B'!$D$8,'Figure B'!$D$10-'Figure B'!$D$14*'Figure B'!$D$8,'Figure B'!S147)) -> 790 | U147: 825.5247479 | W147: 1161 | X147: =IF(W147<'Figure B'!$H$10-'Figure B'!$H$14,'Figure B'!$H$10-'Figure B'!$H$14,IF('Figure B'!W147>='Figure B'!$H$10-'Figure B'!$H$8*'Figure B'!$H$14,'Figure B'!$H$10-'Figure B'!$H$14*'Figure B'!$H$8,'Figure B'!W147)) -> 790 | Y147: 825.5247479
Q148: 1181 | R148: =IF(Q148<'Figure B'!$D$10-'Figure B'!$D$14,'Figure B'!$D$10-'Figure B'!$D$14,IF('Figure B'!Q148>='Figure B'!$D$10-'Figure B'!$D$8*'Figure B'!$D$14,'Figure B'!$D$10-'Figure B'!$D$14*'Figure B'!$D$8,'Figure B'!Q148)) -> 790 | S148: =('Figure B'!$D$10-'Figure B'!$D$8*'Figure B'!$D$14-'Figure B'!$D$8*'Figure B'!Q148)/('Figure B'!$R$150-'Figure B'!$D$8) -> 622.4285714 | T148: =IF(Q148<'Figure B'!$D$10-'Figure B'!$D$14,'Figure B'!$D$10,IF(Q148>='Figure B'!$D$10-'Figure B'!$D$14*'Figure B'!$D$8,'Figure B'!$D$10-'Figure B'!$D$14*'Figure B'!$D$8,'Figure B'!S148)) -> 790 | U148: 825.5247479 | W148: 1181 | X148: =IF(W148<'Figure B'!$H$10-'Figure B'!$H$14,'Figure B'!$H$10-'Figure B'!$H$14,IF('Figure B'!W148>='Figure B'!$H$10-'Figure B'!$H$8*'Figure B'!$H$14,'Figure B'!$H$10-'Figure B'!$H$14*'Figure B'!$H$8,'Figure B'!W148)) -> 790 | Y148: 825.5247479
Q150: β | R150: 1
R151: c1 | S151: c2 | W151: c1 | X151: c2 | Z151: restriccion
R152: ='Figure B'!D18 -> 436.0235112 | S152: 0 | W152: ='Figure B'!$H$18 -> 436.023508 | X152: 0 | Z152: ='Figure B'!H10-'Figure B'!H14 -> 300 | AA152: ='Figure B'!H10 -> 1000
R153: ='Figure B'!D18 -> 436.0235112 | S153: ='Figure B'!D19 -> 941.7042095 | W153: ='Figure B'!$H$18 -> 436.023508 | X153: ='Figure B'!$H$19 -> 941.7042109 | Z153: ='Figure B'!H10-'Figure B'!H14*'Figure B'!H8 -> 790 | AA153: ='Figure B'!H10-'Figure B'!H14*'Figure B'!H8 -> 790
R155: c1 | S155: c2 | W155: c1 | X155: c2
R156: 0 | S156: ='Figure B'!D19 -> 941.7042095 | W156: 0 | X156: ='Figure B'!$H$19 -> 941.7042109
R157: ='Figure B'!D18 -> 436.0235112 | S157: ='Figure B'!D19 -> 941.7042095 | W157: ='Figure B'!$H$18 -> 436.023508 | X157: ='Figure B'!$H$19 -> 941.7042109
R160: y1 | S160: y2
R161: ='Figure B'!#REF! ->  | S161: ='Figure B'!D10 -> 1000 | W161: y1 | X161: y2
R162: ='Figure B'!D8 -> 0.3 | S162: ='Figure B'!D10 -> 1000 | W162: 0 | X162: ='Figure B'!$H$10 -> 1000
W163: ='Figure B'!$H$8 -> 0.3 | X163: ='Figure B'!$H$10 -> 1000
R164: y1 | S164: y2
R165: ='Figure B'!D8 -> 0.3 | S165: 0 | W165: y1 | X165: y2
R166: ='Figure B'!D8 -> 0.3 | S166: ='Figure B'!D10 -> 1000 | W166: ='Figure B'!$H$8 -> 0.3 | X166: 0
W167: ='Figure B'!$H$8 -> 0.3 | X167: ='Figure B'!$H$10 -> 1000

Sheet Figure C (hidden)
C3: Table I: Initial solution | G3: Table II: Comparative Analysis
C5: Parameters | G5: Parameters
B6: 2 | C6: π | D6: =B6/10 -> 0.2 | F6: 2 | G6: π | H6: =+F6/10 -> 0.2
D7: 0.3
B8: 3 | C8: p | D8: =+B8/10 -> 0.3 | F8: 3 | G8: p | H8: =F8/10 -> 0.3
C10: w0 | D10: 1000 | G10: w0 | H10: 1000
C12: l | D12: 700 | G12: l | H12: 700
C15: Variables | G15: Variables
C16: w1 | D16: 526.6666708 | G16: w1 | H16: 526.6666627
C17: w2 | D17: 902.8571411 | G17: w2 | H17: 902.8571445
C19: Constraints | G19: Constraints
C20: p*w1+(1-p)*w2-w0+pl=0 | D20: =+D8*D16+(1-D8)*D17-D10+D8*D12 -> -9.993073036e-11 | G20: p*w1+(1-p)*w2-w0+pl=0 | H20: =+H8*H16+(1-H8)*H17-H10+H8*H12 -> -4.866933523e-10
C21: w0-l-w1≤0 | D21: =+D10-D12-D16 -> -226.6666708 | G21: w0-l-w1≤0 | H21: =+H10-H12-H16 -> -226.6666627
C22: wo-w1-p*l≥0 | D22: =+D10-D16-D8*D12 -> 263.3333292 | G22: wo-w1-p*l≥0 | H22: =+H10-H16-H8*H12 -> 263.3333373
C23: wo-pl-w2≤0 | D23: =+D10-D8*D12-D17 -> -112.8571411 | G23: wo-pl-w2≤0 | H23: =+H10-H8*H12-H17 -> -112.8571445
C24: w0-w2≥0 | D24: =+D10-D17 -> 97.1428589 | G24: w0-w2≥0 | H24: =+H10-H17 -> 97.14285545
C26: Quantity of q | G26: Quantity of q
C27: q=(w0-w2)/p | D27: =+(D10-D17)/D8 -> 323.8095297 | G27: q=(w0-w2)/p | H27: =+(H10-H17)/H8 -> 323.8095182
C29: Expected utility function | G29: Expected utility function
C30: π*ln(w1)+(1-π)*ln(w2) | D30: =D6*LN(D16)+(1-D6)*LN(D17) -> 6.697765038 | G30: π*ln(w1)+(1-π)*ln(w2) | H30: =H6*LN(H16)+(1-H6)*LN(H17) -> 6.697765038
C32: Note: This option presents a logarithmic utility function u(w)=ln(w). Use the scroll bars to modify the parameters of the insurance problem. Then, call Solver and click Solve in the Solver Parameters window.
C33: For example, use the scroll bar below the probability of a robbery π in cell H6, adjusting it from π=0.2 to π=0.4. Then call Solver and, click Solve in the Solver Parameters window.
C34: Change the letter H for D in all cells of the Solver Parameters window if you modify the parameters of Table I.
C35: If Solver shows a message "Solver encountered an error value in the Objective Cell or a Constraint cell" just change the initial values of the variables to, for example 100.
C36: π= probability of robbery
C37: p= insurance premium rate
C38: w0= initial wealth
C39: l= amount of wealth stolen if robbery
C40: w1= agent’s wealth if robbery
C41: w2= agent’s wealth if no robbery
C42: q= amount of insurance
S85: Initial solution | W85: Final solution
P86: 20 | Q86: w1 | R86: w1prime | S86: w2budget | T86: w2prime | U86: C2utility | W86: w1 | X86: w1prime | Y86: C2utility
Q87: 1 | R87: =IF(Q87<'Figure C'!$D$10-'Figure C'!$D$12,'Figure C'!$D$10-'Figure C'!$D$12,IF('Figure C'!Q87>='Figure C'!$D$10-'Figure C'!$D$8*'Figure C'!$D$12,'Figure C'!$D$10-'Figure C'!$D$12*'Figure C'!$D$8,'Figure C'!Q87)) -> 300 | S87: =('Figure C'!$D$10-'Figure C'!$D$8*'Figure C'!$D$12-'Figure C'!$D$8*'Figure C'!Q87)/('Figure C'!$R$148-'Figure C'!$D$8) -> 1128.142857 | T87: =IF(Q87<'Figure C'!$D$10-'Figure C'!$D$12,'Figure C'!$D$10,IF(Q87>='Figure C'!$D$10-'Figure C'!$D$12*'Figure C'!$D$8,'Figure C'!$D$10-'Figure C'!$D$12*'Figure C'!$D$8,'Figure C'!S87)) -> 1000 | U87: =EXP((D$30-D$6*LN(R87))/(1-D$6)) -> 1039.25634 | W87: 1 | X87: =IF(W87<'Figure C'!$H$10-'Figure C'!$H$12,'Figure C'!$H$10-'Figure C'!$H$12,IF('Figure C'!W87>='Figure C'!$H$10-'Figure C'!$H$8*'Figure C'!$H$12,'Figure C'!$H$10-'Figure C'!$H$12*'Figure C'!$H$8,'Figure C'!W87)) -> 300 | Y87: =EXP((H$30-H$6*LN(X87))/(1-H$6)) -> 1039.25634
Q88: =+Q87+P$86 -> 21 | R88: =IF(Q88<'Figure C'!$D$10-'Figure C'!$D$12,'Figure C'!$D$10-'Figure C'!$D$12,IF('Figure C'!Q88>='Figure C'!$D$10-'Figure C'!$D$8*'Figure C'!$D$12,'Figure C'!$D$10-'Figure C'!$D$12*'Figure C'!$D$8,'Figure C'!Q88)) -> 300 | S88: =('Figure C'!$D$10-'Figure C'!$D$8*'Figure C'!$D$12-'Figure C'!$D$8*'Figure C'!Q88)/('Figure C'!$R$148-'Figure C'!$D$8) -> 1119.571429 | T88: =IF(Q88<'Figure C'!$D$10-'Figure C'!$D$12,'Figure C'!$D$10,IF(Q88>='Figure C'!$D$10-'Figure C'!$D$12*'Figure C'!$D$8,'Figure C'!$D$10-'Figure C'!$D$12*'Figure C'!$D$8,'Figure C'!S88)) -> 1000 | U88: =EXP((D$30-D$6*LN(R88))/(1-D$6)) -> 1039.25634 | W88: =+W87+P$86 -> 21 | X88: =IF(W88<'Figure C'!$H$10-'Figure C'!$H$12,'Figure C'!$H$10-'Figure C'!$H$12,IF('Figure C'!W88>='Figure C'!$H$10-'Figure C'!$H$8*'Figure C'!$H$12,'Figure C'!$H$10-'Figure C'!$H$12*'Figure C'!$H$8,'Figure C'!W88)) -> 300 | Y88: =EXP((H$30-H$6*LN(X88))/(1-H$6)) -> 1039.25634
Q89: 41 | R89: =IF(Q89<'Figure C'!$D$10-'Figure C'!$D$12,'Figure C'!$D$10-'Figure C'!$D$12,IF('Figure C'!Q89>='Figure C'!$D$10-'Figure C'!$D$8*'Figure C'!$D$12,'Figure C'!$D$10-'Figure C'!$D$12*'Figure C'!$D$8,'Figure C'!Q89)) -> 300 | S89: =('Figure C'!$D$10-'Figure C'!$D$8*'Figure C'!$D$12-'Figure C'!$D$8*'Figure C'!Q89)/('Figure C'!$R$148-'Figure C'!$D$8) -> 1111 | T89: =IF(Q89<'Figure C'!$D$10-'Figure C'!$D$12,'Figure C'!$D$10,IF(Q89>='Figure C'!$D$10-'Figure C'!$D$12*'Figure C'!$D$8,'Figure C'!$D$10-'Figure C'!$D$12*'Figure C'!$D$8,'Figure C'!S89)) -> 1000 | U89: 1039.25634 | W89: 41 | X89: =IF(W89<'Figure C'!$H$10-'Figure C'!$H$12,'Figure C'!$H$10-'Figure C'!$H$12,IF('Figure C'!W89>='Figure C'!$H$10-'Figure C'!$H$8*'Figure C'!$H$12,'Figure C'!$H$10-'Figure C'!$H$12*'Figure C'!$H$8,'Figure C'!W89)) -> 300 | Y89: 1039.25634
Q90: 61 | R90: =IF(Q90<'Figure C'!$D$10-'Figure C'!$D$12,'Figure C'!$D$10-'Figure C'!$D$12,IF('Figure C'!Q90>='Figure C'!$D$10-'Figure C'!$D$8*'Figure C'!$D$12,'Figure C'!$D$10-'Figure C'!$D$12*'Figure C'!$D$8,'Figure C'!Q90)) -> 300 | S90: =('Figure C'!$D$10-'Figure C'!$D$8*'Figure C'!$D$12-'Figure C'!$D$8*'Figure C'!Q90)/('Figure C'!$R$148-'Figure C'!$D$8) -> 1102.428571 | T90: =IF(Q90<'Figure C'!$D$10-'Figure C'!$D$12,'Figure C'!$D$10,IF(Q90>='Figure C'!$D$10-'Figure C'!$D$12*'Figure C'!$D$8,'Figure C'!$D$10-'Figure C'!$D$12*'Figure C'!$D$8,'Figure C'!S90)) -> 1000 | U90: 1039.25634 | W90: 61 | X90: =IF(W90<'Figure C'!$H$10-'Figure C'!$H$12,'Figure C'!$H$10-'Figure C'!$H$12,IF('Figure C'!W90>='Figure C'!$H$10-'Figure C'!$H$8*'Figure C'!$H$12,'Figure C'!$H$10-'Figure C'!$H$12*'Figure C'!$H$8,'Figure C'!W90)) -> 300 | Y90: 1039.25634
Q91: 81 | R91: =IF(Q91<'Figure C'!$D$10-'Figure C'!$D$12,'Figure C'!$D$10-'Figure C'!$D$12,IF('Figure C'!Q91>='Figure C'!$D$10-'Figure C'!$D$8*'Figure C'!$D$12,'Figure C'!$D$10-'Figure C'!$D$12*'Figure C'!$D$8,'Figure C'!Q91)) -> 300 | S91: =('Figure C'!$D$10-'Figure C'!$D$8*'Figure C'!$D$12-'Figure C'!$D$8*'Figure C'!Q91)/('Figure C'!$R$148-'Figure C'!$D$8) -> 1093.857143 | T91: =IF(Q91<'Figure C'!$D$10-'Figure C'!$D$12,'Figure C'!$D$10,IF(Q91>='Figure C'!$D$10-'Figure C'!$D$12*'Figure C'!$D$8,'Figure C'!$D$10-'Figure C'!$D$12*'Figure C'!$D$8,'Figure C'!S91)) -> 1000 | U91: 1039.25634 | W91: 81 | X91: =IF(W91<'Figure C'!$H$10-'Figure C'!$H$12,'Figure C'!$H$10-'Figure C'!$H$12,IF('Figure C'!W91>='Figure C'!$H$10-'Figure C'!$H$8*'Figure C'!$H$12,'Figure C'!$H$10-'Figure C'!$H$12*'Figure C'!$H$8,'Figure C'!W91)) -> 300 | Y91: 1039.25634
Q92: 101 | R92: =IF(Q92<'Figure C'!$D$10-'Figure C'!$D$12,'Figure C'!$D$10-'Figure C'!$D$12,IF('Figure C'!Q92>='Figure C'!$D$10-'Figure C'!$D$8*'Figure C'!$D$12,'Figure C'!$D$10-'Figure C'!$D$12*'Figure C'!$D$8,'Figure C'!Q92)) -> 300 | S92: =('Figure C'!$D$10-'Figure C'!$D$8*'Figure C'!$D$12-'Figure C'!$D$8*'Figure C'!Q92)/('Figure C'!$R$148-'Figure C'!$D$8) -> 1085.285714 | T92: =IF(Q92<'Figure C'!$D$10-'Figure C'!$D$12,'Figure C'!$D$10,IF(Q92>='Figure C'!$D$10-'Figure C'!$D$12*'Figure C'!$D$8,'Figure C'!$D$10-'Figure C'!$D$12*'Figure C'!$D$8,'Figure C'!S92)) -> 1000 | U92: 1039.25634 | W92: 101 | X92: =IF(W92<'Figure C'!$H$10-'Figure C'!$H$12,'Figure C'!$H$10-'Figure C'!$H$12,IF('Figure C'!W92>='Figure C'!$H$10-'Figure C'!$H$8*'Figure C'!$H$12,'Figure C'!$H$10-'Figure C'!$H$12*'Figure C'!$H$8,'Figure C'!W92)) -> 300 | Y92: 1039.25634
Q93: 121 | R93: =IF(Q93<'Figure C'!$D$10-'Figure C'!$D$12,'Figure C'!$D$10-'Figure C'!$D$12,IF('Figure C'!Q93>='Figure C'!$D$10-'Figure C'!$D$8*'Figure C'!$D$12,'Figure C'!$D$10-'Figure C'!$D$12*'Figure C'!$D$8,'Figure C'!Q93)) -> 300 | S93: =('Figure C'!$D$10-'Figure C'!$D$8*'Figure C'!$D$12-'Figure C'!$D$8*'Figure C'!Q93)/('Figure C'!$R$148-'Figure C'!$D$8) -> 1076.714286 | T93: =IF(Q93<'Figure C'!$D$10-'Figure C'!$D$12,'Figure C'!$D$10,IF(Q93>='Figure C'!$D$10-'Figure C'!$D$12*'Figure C'!$D$8,'Figure C'!$D$10-'Figure C'!$D$12*'Figure C'!$D$8,'Figure C'!S93)) -> 1000 | U93: 1039.25634 | W93: 121 | X93: =IF(W93<'Figure C'!$H$10-'Figure C'!$H$12,'Figure C'!$H$10-'Figure C'!$H$12,IF('Figure C'!W93>='Figure C'!$H$10-'Figure C'!$H$8*'Figure C'!$H$12,'Figure C'!$H$10-'Figure C'!$H$12*'Figure C'!$H$8,'Figure C'!W93)) -> 300 | Y93: 1039.25634
Q94: 141 | R94: =IF(Q94<'Figure C'!$D$10-'Figure C'!$D$12,'Figure C'!$D$10-'Figure C'!$D$12,IF('Figure C'!Q94>='Figure C'!$D$10-'Figure C'!$D$8*'Figure C'!$D$12,'Figure C'!$D$10-'Figure C'!$D$12*'Figure C'!$D$8,'Figure C'!Q94)) -> 300 | S94: =('Figure C'!$D$10-'Figure C'!$D$8*'Figure C'!$D$12-'Figure C'!$D$8*'Figure C'!Q94)/('Figure C'!$R$148-'Figure C'!$D$8) -> 1068.142857 | T94: =IF(Q94<'Figure C'!$D$10-'Figure C'!$D$12,'Figure C'!$D$10,IF(Q94>='Figure C'!$D$10-'Figure C'!$D$12*'Figure C'!$D$8,'Figure C'!$D$10-'Figure C'!$D$12*'Figure C'!$D$8,'Figure C'!S94)) -> 1000 | U94: 1039.25634 | W94: 141 | X94: =IF(W94<'Figure C'!$H$10-'Figure C'!$H$12,'Figure C'!$H$10-'Figure C'!$H$12,IF('Figure C'!W94>='Figure C'!$H$10-'Figure C'!$H$8*'Figure C'!$H$12,'Figure C'!$H$10-'Figure C'!$H$12*'Figure C'!$H$8,'Figure C'!W94)) -> 300 | Y94: 1039.25634
Q95: 161 | R95: =IF(Q95<'Figure C'!$D$10-'Figure C'!$D$12,'Figure C'!$D$10-'Figure C'!$D$12,IF('Figure C'!Q95>='Figure C'!$D$10-'Figure C'!$D$8*'Figure C'!$D$12,'Figure C'!$D$10-'Figure C'!$D$12*'Figure C'!$D$8,'Figure C'!Q95)) -> 300 | S95: =('Figure C'!$D$10-'Figure C'!$D$8*'Figure C'!$D$12-'Figure C'!$D$8*'Figure C'!Q95)/('Figure C'!$R$148-'Figure C'!$D$8) -> 1059.571429 | T95: =IF(Q95<'Figure C'!$D$10-'Figure C'!$D$12,'Figure C'!$D$10,IF(Q95>='Figure C'!$D$10-'Figure C'!$D$12*'Figure C'!$D$8,'Figure C'!$D$10-'Figure C'!$D$12*'Figure C'!$D$8,'Figure C'!S95)) -> 1000 | U95: 1039.25634 | W95: 161 | X95: =IF(W95<'Figure C'!$H$10-'Figure C'!$H$12,'Figure C'!$H$10-'Figure C'!$H$12,IF('Figure C'!W95>='Figure C'!$H$10-'Figure C'!$H$8*'Figure C'!$H$12,'Figure C'!$H$10-'Figure C'!$H$12*'Figure C'!$H$8,'Figure C'!W95)) -> 300 | Y95: 1039.25634
Q96: 181 | R96: =IF(Q96<'Figure C'!$D$10-'Figure C'!$D$12,'Figure C'!$D$10-'Figure C'!$D$12,IF('Figure C'!Q96>='Figure C'!$D$10-'Figure C'!$D$8*'Figure C'!$D$12,'Figure C'!$D$10-'Figure C'!$D$12*'Figure C'!$D$8,'Figure C'!Q96)) -> 300 | S96: =('Figure C'!$D$10-'Figure C'!$D$8*'Figure C'!$D$12-'Figure C'!$D$8*'Figure C'!Q96)/('Figure C'!$R$148-'Figure C'!$D$8) -> 1051 | T96: =IF(Q96<'Figure C'!$D$10-'Figure C'!$D$12,'Figure C'!$D$10,IF(Q96>='Figure C'!$D$10-'Figure C'!$D$12*'Figure C'!$D$8,'Figure C'!$D$10-'Figure C'!$D$12*'Figure C'!$D$8,'Figure C'!S96)) -> 1000 | U96: 1039.25634 | W96: 181 | X96: =IF(W96<'Figure C'!$H$10-'Figure C'!$H$12,'Figure C'!$H$10-'Figure C'!$H$12,IF('Figure C'!W96>='Figure C'!$H$10-'Figure C'!$H$8*'Figure C'!$H$12,'Figure C'!$H$10-'Figure C'!$H$12*'Figure C'!$H$8,'Figure C'!W96)) -> 300 | Y96: 1039.25634
Q97: 201 | R97: =IF(Q97<'Figure C'!$D$10-'Figure C'!$D$12,'Figure C'!$D$10-'Figure C'!$D$12,IF('Figure C'!Q97>='Figure C'!$D$10-'Figure C'!$D$8*'Figure C'!$D$12,'Figure C'!$D$10-'Figure C'!$D$12*'Figure C'!$D$8,'Figure C'!Q97)) -> 300 | S97: =('Figure C'!$D$10-'Figure C'!$D$8*'Figure C'!$D$12-'Figure C'!$D$8*'Figure C'!Q97)/('Figure C'!$R$148-'Figure C'!$D$8) -> 1042.428571 | T97: =IF(Q97<'Figure C'!$D$10-'Figure C'!$D$12,'Figure C'!$D$10,IF(Q97>='Figure C'!$D$10-'Figure C'!$D$12*'Figure C'!$D$8,'Figure C'!$D$10-'Figure C'!$D$12*'Figure C'!$D$8,'Figure C'!S97)) -> 1000 | U97: 1039.25634 | W97: 201 | X97: =IF(W97<'Figure C'!$H$10-'Figure C'!$H$12,'Figure C'!$H$10-'Figure C'!$H$12,IF('Figure C'!W97>='Figure C'!$H$10-'Figure C'!$H$8*'Figure C'!$H$12,'Figure C'!$H$10-'Figure C'!$H$12*'Figure C'!$H$8,'Figure C'!W97)) -> 300 | Y97: 1039.25634
Q98: 221 | R98: =IF(Q98<'Figure C'!$D$10-'Figure C'!$D$12,'Figure C'!$D$10-'Figure C'!$D$12,IF('Figure C'!Q98>='Figure C'!$D$10-'Figure C'!$D$8*'Figure C'!$D$12,'Figure C'!$D$10-'Figure C'!$D$12*'Figure C'!$D$8,'Figure C'!Q98)) -> 300 | S98: =('Figure C'!$D$10-'Figure C'!$D$8*'Figure C'!$D$12-'Figure C'!$D$8*'Figure C'!Q98)/('Figure C'!$R$148-'Figure C'!$D$8) -> 1033.857143 | T98: =IF(Q98<'Figure C'!$D$10-'Figure C'!$D$12,'Figure C'!$D$10,IF(Q98>='Figure C'!$D$10-'Figure C'!$D$12*'Figure C'!$D$8,'Figure C'!$D$10-'Figure C'!$D$12*'Figure C'!$D$8,'Figure C'!S98)) -> 1000 | U98: 1039.25634 | W98: 221 | X98: =IF(W98<'Figure C'!$H$10-'Figure C'!$H$12,'Figure C'!$H$10-'Figure C'!$H$12,IF('Figure C'!W98>='Figure C'!$H$10-'Figure C'!$H$8*'Figure C'!$H$12,'Figure C'!$H$10-'Figure C'!$H$12*'Figure C'!$H$8,'Figure C'!W98)) -> 300 | Y98: 1039.25634
Q99: 241 | R99: =IF(Q99<'Figure C'!$D$10-'Figure C'!$D$12,'Figure C'!$D$10-'Figure C'!$D$12,IF('Figure C'!Q99>='Figure C'!$D$10-'Figure C'!$D$8*'Figure C'!$D$12,'Figure C'!$D$10-'Figure C'!$D$12*'Figure C'!$D$8,'Figure C'!Q99)) -> 300 | S99: =('Figure C'!$D$10-'Figure C'!$D$8*'Figure C'!$D$12-'Figure C'!$D$8*'Figure C'!Q99)/('Figure C'!$R$148-'Figure C'!$D$8) -> 1025.285714 | T99: =IF(Q99<'Figure C'!$D$10-'Figure C'!$D$12,'Figure C'!$D$10,IF(Q99>='Figure C'!$D$10-'Figure C'!$D$12*'Figure C'!$D$8,'Figure C'!$D$10-'Figure C'!$D$12*'Figure C'!$D$8,'Figure C'!S99)) -> 1000 | U99: 1039.25634 | W99: 241 | X99: =IF(W99<'Figure C'!$H$10-'Figure C'!$H$12,'Figure C'!$H$10-'Figure C'!$H$12,IF('Figure C'!W99>='Figure C'!$H$10-'Figure C'!$H$8*'Figure C'!$H$12,'Figure C'!$H$10-'Figure C'!$H$12*'Figure C'!$H$8,'Figure C'!W99)) -> 300 | Y99: 1039.25634
Q100: 261 | R100: =IF(Q100<'Figure C'!$D$10-'Figure C'!$D$12,'Figure C'!$D$10-'Figure C'!$D$12,IF('Figure C'!Q100>='Figure C'!$D$10-'Figure C'!$D$8*'Figure C'!$D$12,'Figure C'!$D$10-'Figure C'!$D$12*'Figure C'!$D$8,'Figure C'!Q100)) -> 300 | S100: =('Figure C'!$D$10-'Figure C'!$D$8*'Figure C'!$D$12-'Figure C'!$D$8*'Figure C'!Q100)/('Figure C'!$R$148-'Figure C'!$D$8) -> 1016.714286 | T100: =IF(Q100<'Figure C'!$D$10-'Figure C'!$D$12,'Figure C'!$D$10,IF(Q100>='Figure C'!$D$10-'Figure C'!$D$12*'Figure C'!$D$8,'Figure C'!$D$10-'Figure C'!$D$12*'Figure C'!$D$8,'Figure C'!S100)) -> 1000 | U100: 1039.25634 | W100: 261 | X100: =IF(W100<'Figure C'!$H$10-'Figure C'!$H$12,'Figure C'!$H$10-'Figure C'!$H$12,IF('Figure C'!W100>='Figure C'!$H$10-'Figure C'!$H$8*'Figure C'!$H$12,'Figure C'!$H$10-'Figure C'!$H$12*'Figure C'!$H$8,'Figure C'!W100)) -> 300 | Y100: 1039.25634
Q101: 281 | R101: =IF(Q101<'Figure C'!$D$10-'Figure C'!$D$12,'Figure C'!$D$10-'Figure C'!$D$12,IF('Figure C'!Q101>='Figure C'!$D$10-'Figure C'!$D$8*'Figure C'!$D$12,'Figure C'!$D$10-'Figure C'!$D$12*'Figure C'!$D$8,'Figure C'!Q101)) -> 300 | S101: =('Figure C'!$D$10-'Figure C'!$D$8*'Figure C'!$D$12-'Figure C'!$D$8*'Figure C'!Q101)/('Figure C'!$R$148-'Figure C'!$D$8) -> 1008.142857 | T101: =IF(Q101<'Figure C'!$D$10-'Figure C'!$D$12,'Figure C'!$D$10,IF(Q101>='Figure C'!$D$10-'Figure C'!$D$12*'Figure C'!$D$8,'Figure C'!$D$10-'Figure C'!$D$12*'Figure C'!$D$8,'Figure C'!S101)) -> 1000 | U101: 1039.25634 | W101: 281 | X101: =IF(W101<'Figure C'!$H$10-'Figure C'!$H$12,'Figure C'!$H$10-'Figure C'!$H$12,IF('Figure C'!W101>='Figure C'!$H$10-'Figure C'!$H$8*'Figure C'!$H$12,'Figure C'!$H$10-'Figure C'!$H$12*'Figure C'!$H$8,'Figure C'!W101)) -> 300 | Y101: 1039.25634
Q102: 301 | R102: =IF(Q102<'Figure C'!$D$10-'Figure C'!$D$12,'Figure C'!$D$10-'Figure C'!$D$12,IF('Figure C'!Q102>='Figure C'!$D$10-'Figure C'!$D$8*'Figure C'!$D$12,'Figure C'!$D$10-'Figure C'!$D$12*'Figure C'!$D$8,'Figure C'!Q102)) -> 301 | S102: =('Figure C'!$D$10-'Figure C'!$D$8*'Figure C'!$D$12-'Figure C'!$D$8*'Figure C'!Q102)/('Figure C'!$R$148-'Figure C'!$D$8) -> 999.5714286 | T102: =IF(Q102<'Figure C'!$D$10-'Figure C'!$D$12,'Figure C'!$D$10,IF(Q102>='Figure C'!$D$10-'Figure C'!$D$12*'Figure C'!$D$8,'Figure C'!$D$10-'Figure C'!$D$12*'Figure C'!$D$8,'Figure C'!S102)) -> 999.5714286 | U102: 1038.392093 | W102: 301 | X102: =IF(W102<'Figure C'!$H$10-'Figure C'!$H$12,'Figure C'!$H$10-'Figure C'!$H$12,IF('Figure C'!W102>='Figure C'!$H$10-'Figure C'!$H$8*'Figure C'!$H$12,'Figure C'!$H$10-'Figure C'!$H$12*'Figure C'!$H$8,'Figure C'!W102)) -> 301 | Y102: 1038.392093
Q103: 321 | R103: =IF(Q103<'Figure C'!$D$10-'Figure C'!$D$12,'Figure C'!$D$10-'Figure C'!$D$12,IF('Figure C'!Q103>='Figure C'!$D$10-'Figure C'!$D$8*'Figure C'!$D$12,'Figure C'!$D$10-'Figure C'!$D$12*'Figure C'!$D$8,'Figure C'!Q103)) -> 321 | S103: =('Figure C'!$D$10-'Figure C'!$D$8*'Figure C'!$D$12-'Figure C'!$D$8*'Figure C'!Q103)/('Figure C'!$R$148-'Figure C'!$D$8) -> 991 | T103: =IF(Q103<'Figure C'!$D$10-'Figure C'!$D$12,'Figure C'!$D$10,IF(Q103>='Figure C'!$D$10-'Figure C'!$D$12*'Figure C'!$D$8,'Figure C'!$D$10-'Figure C'!$D$12*'Figure C'!$D$8,'Figure C'!S103)) -> 991 | U103: 1021.825504 | W103: 321 | X103: =IF(W103<'Figure C'!$H$10-'Figure C'!$H$12,'Figure C'!$H$10-'Figure C'!$H$12,IF('Figure C'!W103>='Figure C'!$H$10-'Figure C'!$H$8*'Figure C'!$H$12,'Figure C'!$H$10-'Figure C'!$H$12*'Figure C'!$H$8,'Figure C'!W103)) -> 321 | Y103: 1021.825504
Q104: 341 | R104: =IF(Q104<'Figure C'!$D$10-'Figure C'!$D$12,'Figure C'!$D$10-'Figure C'!$D$12,IF('Figure C'!Q104>='Figure C'!$D$10-'Figure C'!$D$8*'Figure C'!$D$12,'Figure C'!$D$10-'Figure C'!$D$12*'Figure C'!$D$8,'Figure C'!Q104)) -> 341 | S104: =('Figure C'!$D$10-'Figure C'!$D$8*'Figure C'!$D$12-'Figure C'!$D$8*'Figure C'!Q104)/('Figure C'!$R$148-'Figure C'!$D$8) -> 982.4285714 | T104: =IF(Q104<'Figure C'!$D$10-'Figure C'!$D$12,'Figure C'!$D$10,IF(Q104>='Figure C'!$D$10-'Figure C'!$D$12*'Figure C'!$D$8,'Figure C'!$D$10-'Figure C'!$D$12*'Figure C'!$D$8,'Figure C'!S104)) -> 982.4285714 | U104: 1006.501442 | W104: 341 | X104: =IF(W104<'Figure C'!$H$10-'Figure C'!$H$12,'Figure C'!$H$10-'Figure C'!$H$12,IF('Figure C'!W104>='Figure C'!$H$10-'Figure C'!$H$8*'Figure C'!$H$12,'Figure C'!$H$10-'Figure C'!$H$12*'Figure C'!$H$8,'Figure C'!W104)) -> 341 | Y104: 1006.501442
Q105: 361 | R105: =IF(Q105<'Figure C'!$D$10-'Figure C'!$D$12,'Figure C'!$D$10-'Figure C'!$D$12,IF('Figure C'!Q105>='Figure C'!$D$10-'Figure C'!$D$8*'Figure C'!$D$12,'Figure C'!$D$10-'Figure C'!$D$12*'Figure C'!$D$8,'Figure C'!Q105)) -> 361 | S105: =('Figure C'!$D$10-'Figure C'!$D$8*'Figure C'!$D$12-'Figure C'!$D$8*'Figure C'!Q105)/('Figure C'!$R$148-'Figure C'!$D$8) -> 973.8571429 | T105: =IF(Q105<'Figure C'!$D$10-'Figure C'!$D$12,'Figure C'!$D$10,IF(Q105>='Figure C'!$D$10-'Figure C'!$D$12*'Figure C'!$D$8,'Figure C'!$D$10-'Figure C'!$D$12*'Figure C'!$D$8,'Figure C'!S105)) -> 973.8571429 | U105: 992.2616254 | W105: 361 | X105: =IF(W105<'Figure C'!$H$10-'Figure C'!$H$12,'Figure C'!$H$10-'Figure C'!$H$12,IF('Figure C'!W105>='Figure C'!$H$10-'Figure C'!$H$8*'Figure C'!$H$12,'Figure C'!$H$10-'Figure C'!$H$12*'Figure C'!$H$8,'Figure C'!W105)) -> 361 | Y105: 992.2616254
Q106: 381 | R106: =IF(Q106<'Figure C'!$D$10-'Figure C'!$D$12,'Figure C'!$D$10-'Figure C'!$D$12,IF('Figure C'!Q106>='Figure C'!$D$10-'Figure C'!$D$8*'Figure C'!$D$12,'Figure C'!$D$10-'Figure C'!$D$12*'Figure C'!$D$8,'Figure C'!Q106)) -> 381 | S106: =('Figure C'!$D$10-'Figure C'!$D$8*'Figure C'!$D$12-'Figure C'!$D$8*'Figure C'!Q106)/('Figure C'!$R$148-'Figure C'!$D$8) -> 965.2857143 | T106: =IF(Q106<'Figure C'!$D$10-'Figure C'!$D$12,'Figure C'!$D$10,IF(Q106>='Figure C'!$D$10-'Figure C'!$D$12*'Figure C'!$D$8,'Figure C'!$D$10-'Figure C'!$D$12*'Figure C'!$D$8,'Figure C'!S106)) -> 965.2857143 | U106: 978.9753404 | W106: 381 | X106: =IF(W106<'Figure C'!$H$10-'Figure C'!$H$12,'Figure C'!$H$10-'Figure C'!$H$12,IF('Figure C'!W106>='Figure C'!$H$10-'Figure C'!$H$8*'Figure C'!$H$12,'Figure C'!$H$10-'Figure C'!$H$12*'Figure C'!$H$8,'Figure C'!W106)) -> 381 | Y106: 978.9753404
Q107: 401 | R107: =IF(Q107<'Figure C'!$D$10-'Figure C'!$D$12,'Figure C'!$D$10-'Figure C'!$D$12,IF('Figure C'!Q107>='Figure C'!$D$10-'Figure C'!$D$8*'Figure C'!$D$12,'Figure C'!$D$10-'Figure C'!$D$12*'Figure C'!$D$8,'Figure C'!Q107)) -> 401 | S107: =('Figure C'!$D$10-'Figure C'!$D$8*'Figure C'!$D$12-'Figure C'!$D$8*'Figure C'!Q107)/('Figure C'!$R$148-'Figure C'!$D$8) -> 956.7142857 | T107: =IF(Q107<'Figure C'!$D$10-'Figure C'!$D$12,'Figure C'!$D$10,IF(Q107>='Figure C'!$D$10-'Figure C'!$D$12*'Figure C'!$D$8,'Figure C'!$D$10-'Figure C'!$D$12*'Figure C'!$D$8,'Figure C'!S107)) -> 956.7142857 | U107: 966.533482 | W107: 401 | X107: =IF(W107<'Figure C'!$H$10-'Figure C'!$H$12,'Figure C'!$H$10-'Figure C'!$H$12,IF('Figure C'!W107>='Figure C'!$H$10-'Figure C'!$H$8*'Figure C'!$H$12,'Figure C'!$H$10-'Figure C'!$H$12*'Figure C'!$H$8,'Figure C'!W107)) -> 401 | Y107: 966.533482
Q108: 421 | R108: =IF(Q108<'Figure C'!$D$10-'Figure C'!$D$12,'Figure C'!$D$10-'Figure C'!$D$12,IF('Figure C'!Q108>='Figure C'!$D$10-'Figure C'!$D$8*'Figure C'!$D$12,'Figure C'!$D$10-'Figure C'!$D$12*'Figure C'!$D$8,'Figure C'!Q108)) -> 421 | S108: =('Figure C'!$D$10-'Figure C'!$D$8*'Figure C'!$D$12-'Figure C'!$D$8*'Figure C'!Q108)/('Figure C'!$R$148-'Figure C'!$D$8) -> 948.1428571 | T108: =IF(Q108<'Figure C'!$D$10-'Figure C'!$D$12,'Figure C'!$D$10,IF(Q108>='Figure C'!$D$10-'Figure C'!$D$12*'Figure C'!$D$8,'Figure C'!$D$10-'Figure C'!$D$12*'Figure C'!$D$8,'Figure C'!S108)) -> 948.1428571 | U108: 954.8441076 | W108: 421 | X108: =IF(W108<'Figure C'!$H$10-'Figure C'!$H$12,'Figure C'!$H$10-'Figure C'!$H$12,IF('Figure C'!W108>='Figure C'!$H$10-'Figure C'!$H$8*'Figure C'!$H$12,'Figure C'!$H$10-'Figure C'!$H$12*'Figure C'!$H$8,'Figure C'!W108)) -> 421 | Y108: 954.8441076
Q109: 441 | R109: =IF(Q109<'Figure C'!$D$10-'Figure C'!$D$12,'Figure C'!$D$10-'Figure C'!$D$12,IF('Figure C'!Q109>='Figure C'!$D$10-'Figure C'!$D$8*'Figure C'!$D$12,'Figure C'!$D$10-'Figure C'!$D$12*'Figure C'!$D$8,'Figure C'!Q109)) -> 441 | S109: =('Figure C'!$D$10-'Figure C'!$D$8*'Figure C'!$D$12-'Figure C'!$D$8*'Figure C'!Q109)/('Figure C'!$R$148-'Figure C'!$D$8) -> 939.5714286 | T109: =IF(Q109<'Figure C'!$D$10-'Figure C'!$D$12,'Figure C'!$D$10,IF(Q109>='Figure C'!$D$10-'Figure C'!$D$12*'Figure C'!$D$8,'Figure C'!$D$10-'Figure C'!$D$12*'Figure C'!$D$8,'Figure C'!S109)) -> 939.5714286 | U109: 943.8290688 | W109: 441 | X109: =IF(W109<'Figure C'!$H$10-'Figure C'!$H$12,'Figure C'!$H$10-'Figure C'!$H$12,IF('Figure C'!W109>='Figure C'!$H$10-'Figure C'!$H$8*'Figure C'!$H$12,'Figure C'!$H$10-'Figure C'!$H$12*'Figure C'!$H$8,'Figure C'!W109)) -> 441 | Y109: 943.8290688
Q110: 461 | R110: =IF(Q110<'Figure C'!$D$10-'Figure C'!$D$12,'Figure C'!$D$10-'Figure C'!$D$12,IF('Figure C'!Q110>='Figure C'!$D$10-'Figure C'!$D$8*'Figure C'!$D$12,'Figure C'!$D$10-'Figure C'!$D$12*'Figure C'!$D$8,'Figure C'!Q110)) -> 461 | S110: =('Figure C'!$D$10-'Figure C'!$D$8*'Figure C'!$D$12-'Figure C'!$D$8*'Figure C'!Q110)/('Figure C'!$R$148-'Figure C'!$D$8) -> 931 | T110: =IF(Q110<'Figure C'!$D$10-'Figure C'!$D$12,'Figure C'!$D$10,IF(Q110>='Figure C'!$D$10-'Figure C'!$D$12*'Figure C'!$D$8,'Figure C'!$D$10-'Figure C'!$D$12*'Figure C'!$D$8,'Figure C'!S110)) -> 931 | U110: 933.4214247 | W110: 461 | X110: =IF(W110<'Figure C'!$H$10-'Figure C'!$H$12,'Figure C'!$H$10-'Figure C'!$H$12,IF('Figure C'!W110>='Figure C'!$H$10-'Figure C'!$H$8*'Figure C'!$H$12,'Figure C'!$H$10-'Figure C'!$H$12*'Figure C'!$H$8,'Figure C'!W110)) -> 461 | Y110: 933.4214247
Q111: 481 | R111: =IF(Q111<'Figure C'!$D$10-'Figure C'!$D$12,'Figure C'!$D$10-'Figure C'!$D$12,IF('Figure C'!Q111>='Figure C'!$D$10-'Figure C'!$D$8*'Figure C'!$D$12,'Figure C'!$D$10-'Figure C'!$D$12*'Figure C'!$D$8,'Figure C'!Q111)) -> 481 | S111: =('Figure C'!$D$10-'Figure C'!$D$8*'Figure C'!$D$12-'Figure C'!$D$8*'Figure C'!Q111)/('Figure C'!$R$148-'Figure C'!$D$8) -> 922.4285714 | T111: =IF(Q111<'Figure C'!$D$10-'Figure C'!$D$12,'Figure C'!$D$10,IF(Q111>='Figure C'!$D$10-'Figure C'!$D$12*'Figure C'!$D$8,'Figure C'!$D$10-'Figure C'!$D$12*'Figure C'!$D$8,'Figure C'!S111)) -> 922.4285714 | U111: 923.5634284 | W111: 481 | X111: =IF(W111<'Figure C'!$H$10-'Figure C'!$H$12,'Figure C'!$H$10-'Figure C'!$H$12,IF('Figure C'!W111>='Figure C'!$H$10-'Figure C'!$H$8*'Figure C'!$H$12,'Figure C'!$H$10-'Figure C'!$H$12*'Figure C'!$H$8,'Figure C'!W111)) -> 481 | Y111: 923.5634284
Q112: 501 | R112: =IF(Q112<'Figure C'!$D$10-'Figure C'!$D$12,'Figure C'!$D$10-'Figure C'!$D$12,IF('Figure C'!Q112>='Figure C'!$D$10-'Figure C'!$D$8*'Figure C'!$D$12,'Figure C'!$D$10-'Figure C'!$D$12*'Figure C'!$D$8,'Figure C'!Q112)) -> 501 | S112: =('Figure C'!$D$10-'Figure C'!$D$8*'Figure C'!$D$12-'Figure C'!$D$8*'Figure C'!Q112)/('Figure C'!$R$148-'Figure C'!$D$8) -> 913.8571429 | T112: =IF(Q112<'Figure C'!$D$10-'Figure C'!$D$12,'Figure C'!$D$10,IF(Q112>='Figure C'!$D$10-'Figure C'!$D$12*'Figure C'!$D$8,'Figure C'!$D$10-'Figure C'!$D$12*'Figure C'!$D$8,'Figure C'!S112)) -> 913.8571429 | U112: 914.2049424 | W112: 501 | X112: =IF(W112<'Figure C'!$H$10-'Figure C'!$H$12,'Figure C'!$H$10-'Figure C'!$H$12,IF('Figure C'!W112>='Figure C'!$H$10-'Figure C'!$H$8*'Figure C'!$H$12,'Figure C'!$H$10-'Figure C'!$H$12*'Figure C'!$H$8,'Figure C'!W112)) -> 501 | Y112: 914.2049424
Q113: 521 | R113: =IF(Q113<'Figure C'!$D$10-'Figure C'!$D$12,'Figure C'!$D$10-'Figure C'!$D$12,IF('Figure C'!Q113>='Figure C'!$D$10-'Figure C'!$D$8*'Figure C'!$D$12,'Figure C'!$D$10-'Figure C'!$D$12*'Figure C'!$D$8,'Figure C'!Q113)) -> 521 | S113: =('Figure C'!$D$10-'Figure C'!$D$8*'Figure C'!$D$12-'Figure C'!$D$8*'Figure C'!Q113)/('Figure C'!$R$148-'Figure C'!$D$8) -> 905.2857143 | T113: =IF(Q113<'Figure C'!$D$10-'Figure C'!$D$12,'Figure C'!$D$10,IF(Q113>='Figure C'!$D$10-'Figure C'!$D$12*'Figure C'!$D$8,'Figure C'!$D$10-'Figure C'!$D$12*'Figure C'!$D$8,'Figure C'!S113)) -> 905.2857143 | U113: 905.3021786 | W113: 521 | X113: =IF(W113<'Figure C'!$H$10-'Figure C'!$H$12,'Figure C'!$H$10-'Figure C'!$H$12,IF('Figure C'!W113>='Figure C'!$H$10-'Figure C'!$H$8*'Figure C'!$H$12,'Figure C'!$H$10-'Figure C'!$H$12*'Figure C'!$H$8,'Figure C'!W113)) -> 521 | Y113: 905.3021786
Q114: 541 | R114: =IF(Q114<'Figure C'!$D$10-'Figure C'!$D$12,'Figure C'!$D$10-'Figure C'!$D$12,IF('Figure C'!Q114>='Figure C'!$D$10-'Figure C'!$D$8*'Figure C'!$D$12,'Figure C'!$D$10-'Figure C'!$D$12*'Figure C'!$D$8,'Figure C'!Q114)) -> 541 | S114: =('Figure C'!$D$10-'Figure C'!$D$8*'Figure C'!$D$12-'Figure C'!$D$8*'Figure C'!Q114)/('Figure C'!$R$148-'Figure C'!$D$8) -> 896.7142857 | T114: =IF(Q114<'Figure C'!$D$10-'Figure C'!$D$12,'Figure C'!$D$10,IF(Q114>='Figure C'!$D$10-'Figure C'!$D$12*'Figure C'!$D$8,'Figure C'!$D$10-'Figure C'!$D$12*'Figure C'!$D$8,'Figure C'!S114)) -> 896.7142857 | U114: 896.816686 | W114: 541 | X114: =IF(W114<'Figure C'!$H$10-'Figure C'!$H$12,'Figure C'!$H$10-'Figure C'!$H$12,IF('Figure C'!W114>='Figure C'!$H$10-'Figure C'!$H$8*'Figure C'!$H$12,'Figure C'!$H$10-'Figure C'!$H$12*'Figure C'!$H$8,'Figure C'!W114)) -> 541 | Y114: 896.816686
Q115: 561 | R115: =IF(Q115<'Figure C'!$D$10-'Figure C'!$D$12,'Figure C'!$D$10-'Figure C'!$D$12,IF('Figure C'!Q115>='Figure C'!$D$10-'Figure C'!$D$8*'Figure C'!$D$12,'Figure C'!$D$10-'Figure C'!$D$12*'Figure C'!$D$8,'Figure C'!Q115)) -> 561 | S115: =('Figure C'!$D$10-'Figure C'!$D$8*'Figure C'!$D$12-'Figure C'!$D$8*'Figure C'!Q115)/('Figure C'!$R$148-'Figure C'!$D$8) -> 888.1428571 | T115: =IF(Q115<'Figure C'!$D$10-'Figure C'!$D$12,'Figure C'!$D$10,IF(Q115>='Figure C'!$D$10-'Figure C'!$D$12*'Figure C'!$D$8,'Figure C'!$D$10-'Figure C'!$D$12*'Figure C'!$D$8,'Figure C'!S115)) -> 888.1428571 | U115: 888.7145306 | W115: 561 | X115: =IF(W115<'Figure C'!$H$10-'Figure C'!$H$12,'Figure C'!$H$10-'Figure C'!$H$12,IF('Figure C'!W115>='Figure C'!$H$10-'Figure C'!$H$8*'Figure C'!$H$12,'Figure C'!$H$10-'Figure C'!$H$12*'Figure C'!$H$8,'Figure C'!W115)) -> 561 | Y115: 888.7145306
Q116: 581 | R116: =IF(Q116<'Figure C'!$D$10-'Figure C'!$D$12,'Figure C'!$D$10-'Figure C'!$D$12,IF('Figure C'!Q116>='Figure C'!$D$10-'Figure C'!$D$8*'Figure C'!$D$12,'Figure C'!$D$10-'Figure C'!$D$12*'Figure C'!$D$8,'Figure C'!Q116)) -> 581 | S116: =('Figure C'!$D$10-'Figure C'!$D$8*'Figure C'!$D$12-'Figure C'!$D$8*'Figure C'!Q116)/('Figure C'!$R$148-'Figure C'!$D$8) -> 879.5714286 | T116: =IF(Q116<'Figure C'!$D$10-'Figure C'!$D$12,'Figure C'!$D$10,IF(Q116>='Figure C'!$D$10-'Figure C'!$D$12*'Figure C'!$D$8,'Figure C'!$D$10-'Figure C'!$D$12*'Figure C'!$D$8,'Figure C'!S116)) -> 879.5714286 | U116: 880.9656261 | W116: 581 | X116: =IF(W116<'Figure C'!$H$10-'Figure C'!$H$12,'Figure C'!$H$10-'Figure C'!$H$12,IF('Figure C'!W116>='Figure C'!$H$10-'Figure C'!$H$8*'Figure C'!$H$12,'Figure C'!$H$10-'Figure C'!$H$12*'Figure C'!$H$8,'Figure C'!W116)) -> 581 | Y116: 880.9656261
Q117: 601 | R117: =IF(Q117<'Figure C'!$D$10-'Figure C'!$D$12,'Figure C'!$D$10-'Figure C'!$D$12,IF('Figure C'!Q117>='Figure C'!$D$10-'Figure C'!$D$8*'Figure C'!$D$12,'Figure C'!$D$10-'Figure C'!$D$12*'Figure C'!$D$8,'Figure C'!Q117)) -> 601 | S117: =('Figure C'!$D$10-'Figure C'!$D$8*'Figure C'!$D$12-'Figure C'!$D$8*'Figure C'!Q117)/('Figure C'!$R$148-'Figure C'!$D$8) -> 871 | T117: =IF(Q117<'Figure C'!$D$10-'Figure C'!$D$12,'Figure C'!$D$10,IF(Q117>='Figure C'!$D$10-'Figure C'!$D$12*'Figure C'!$D$8,'Figure C'!$D$10-'Figure C'!$D$12*'Figure C'!$D$8,'Figure C'!S117)) -> 871 | U117: 873.5431819 | W117: 601 | X117: =IF(W117<'Figure C'!$H$10-'Figure C'!$H$12,'Figure C'!$H$10-'Figure C'!$H$12,IF('Figure C'!W117>='Figure C'!$H$10-'Figure C'!$H$8*'Figure C'!$H$12,'Figure C'!$H$10-'Figure C'!$H$12*'Figure C'!$H$8,'Figure C'!W117)) -> 601 | Y117: 873.5431819
Q118: 621 | R118: =IF(Q118<'Figure C'!$D$10-'Figure C'!$D$12,'Figure C'!$D$10-'Figure C'!$D$12,IF('Figure C'!Q118>='Figure C'!$D$10-'Figure C'!$D$8*'Figure C'!$D$12,'Figure C'!$D$10-'Figure C'!$D$12*'Figure C'!$D$8,'Figure C'!Q118)) -> 621 | S118: =('Figure C'!$D$10-'Figure C'!$D$8*'Figure C'!$D$12-'Figure C'!$D$8*'Figure C'!Q118)/('Figure C'!$R$148-'Figure C'!$D$8) -> 862.4285714 | T118: =IF(Q118<'Figure C'!$D$10-'Figure C'!$D$12,'Figure C'!$D$10,IF(Q118>='Figure C'!$D$10-'Figure C'!$D$12*'Figure C'!$D$8,'Figure C'!$D$10-'Figure C'!$D$12*'Figure C'!$D$8,'Figure C'!S118)) -> 862.4285714 | U118: 866.4232469 | W118: 621 | X118: =IF(W118<'Figure C'!$H$10-'Figure C'!$H$12,'Figure C'!$H$10-'Figure C'!$H$12,IF('Figure C'!W118>='Figure C'!$H$10-'Figure C'!$H$8*'Figure C'!$H$12,'Figure C'!$H$10-'Figure C'!$H$12*'Figure C'!$H$8,'Figure C'!W118)) -> 621 | Y118: 866.4232469
Q119: 641 | R119: =IF(Q119<'Figure C'!$D$10-'Figure C'!$D$12,'Figure C'!$D$10-'Figure C'!$D$12,IF('Figure C'!Q119>='Figure C'!$D$10-'Figure C'!$D$8*'Figure C'!$D$12,'Figure C'!$D$10-'Figure C'!$D$12*'Figure C'!$D$8,'Figure C'!Q119)) -> 641 | S119: =('Figure C'!$D$10-'Figure C'!$D$8*'Figure C'!$D$12-'Figure C'!$D$8*'Figure C'!Q119)/('Figure C'!$R$148-'Figure C'!$D$8) -> 853.8571429 | T119: =IF(Q119<'Figure C'!$D$10-'Figure C'!$D$12,'Figure C'!$D$10,IF(Q119>='Figure C'!$D$10-'Figure C'!$D$12*'Figure C'!$D$8,'Figure C'!$D$10-'Figure C'!$D$12*'Figure C'!$D$8,'Figure C'!S119)) -> 853.8571429 | U119: 859.5843283 | W119: 641 | X119: =IF(W119<'Figure C'!$H$10-'Figure C'!$H$12,'Figure C'!$H$10-'Figure C'!$H$12,IF('Figure C'!W119>='Figure C'!$H$10-'Figure C'!$H$8*'Figure C'!$H$12,'Figure C'!$H$10-'Figure C'!$H$12*'Figure C'!$H$8,'Figure C'!W119)) -> 641 | Y119: 859.5843283
Q120: 661 | R120: =IF(Q120<'Figure C'!$D$10-'Figure C'!$D$12,'Figure C'!$D$10-'Figure C'!$D$12,IF('Figure C'!Q120>='Figure C'!$D$10-'Figure C'!$D$8*'Figure C'!$D$12,'Figure C'!$D$10-'Figure C'!$D$12*'Figure C'!$D$8,'Figure C'!Q120)) -> 661 | S120: =('Figure C'!$D$10-'Figure C'!$D$8*'Figure C'!$D$12-'Figure C'!$D$8*'Figure C'!Q120)/('Figure C'!$R$148-'Figure C'!$D$8) -> 845.2857143 | T120: =IF(Q120<'Figure C'!$D$10-'Figure C'!$D$12,'Figure C'!$D$10,IF(Q120>='Figure C'!$D$10-'Figure C'!$D$12*'Figure C'!$D$8,'Figure C'!$D$10-'Figure C'!$D$12*'Figure C'!$D$8,'Figure C'!S120)) -> 845.2857143 | U120: 853.0070714 | W120: 661 | X120: =IF(W120<'Figure C'!$H$10-'Figure C'!$H$12,'Figure C'!$H$10-'Figure C'!$H$12,IF('Figure C'!W120>='Figure C'!$H$10-'Figure C'!$H$8*'Figure C'!$H$12,'Figure C'!$H$10-'Figure C'!$H$12*'Figure C'!$H$8,'Figure C'!W120)) -> 661 | Y120: 853.0070714
Q121: 681 | R121: =IF(Q121<'Figure C'!$D$10-'Figure C'!$D$12,'Figure C'!$D$10-'Figure C'!$D$12,IF('Figure C'!Q121>='Figure C'!$D$10-'Figure C'!$D$8*'Figure C'!$D$12,'Figure C'!$D$10-'Figure C'!$D$12*'Figure C'!$D$8,'Figure C'!Q121)) -> 681 | S121: =('Figure C'!$D$10-'Figure C'!$D$8*'Figure C'!$D$12-'Figure C'!$D$8*'Figure C'!Q121)/('Figure C'!$R$148-'Figure C'!$D$8) -> 836.7142857 | T121: =IF(Q121<'Figure C'!$D$10-'Figure C'!$D$12,'Figure C'!$D$10,IF(Q121>='Figure C'!$D$10-'Figure C'!$D$12*'Figure C'!$D$8,'Figure C'!$D$10-'Figure C'!$D$12*'Figure C'!$D$8,'Figure C'!S121)) -> 836.7142857 | U121: 846.67399 | W121: 681 | X121: =IF(W121<'Figure C'!$H$10-'Figure C'!$H$12,'Figure C'!$H$10-'Figure C'!$H$12,IF('Figure C'!W121>='Figure C'!$H$10-'Figure C'!$H$8*'Figure C'!$H$12,'Figure C'!$H$10-'Figure C'!$H$12*'Figure C'!$H$8,'Figure C'!W121)) -> 681 | Y121: 846.67399
Q122: 701 | R122: =IF(Q122<'Figure C'!$D$10-'Figure C'!$D$12,'Figure C'!$D$10-'Figure C'!$D$12,IF('Figure C'!Q122>='Figure C'!$D$10-'Figure C'!$D$8*'Figure C'!$D$12,'Figure C'!$D$10-'Figure C'!$D$12*'Figure C'!$D$8,'Figure C'!Q122)) -> 701 | S122: =('Figure C'!$D$10-'Figure C'!$D$8*'Figure C'!$D$12-'Figure C'!$D$8*'Figure C'!Q122)/('Figure C'!$R$148-'Figure C'!$D$8) -> 828.1428571 | T122: =IF(Q122<'Figure C'!$D$10-'Figure C'!$D$12,'Figure C'!$D$10,IF(Q122>='Figure C'!$D$10-'Figure C'!$D$12*'Figure C'!$D$8,'Figure C'!$D$10-'Figure C'!$D$12*'Figure C'!$D$8,'Figure C'!S122)) -> 828.1428571 | U122: 840.5692372 | W122: 701 | X122: =IF(W122<'Figure C'!$H$10-'Figure C'!$H$12,'Figure C'!$H$10-'Figure C'!$H$12,IF('Figure C'!W122>='Figure C'!$H$10-'Figure C'!$H$8*'Figure C'!$H$12,'Figure C'!$H$10-'Figure C'!$H$12*'Figure C'!$H$8,'Figure C'!W122)) -> 701 | Y122: 840.5692372
Q123: 721 | R123: =IF(Q123<'Figure C'!$D$10-'Figure C'!$D$12,'Figure C'!$D$10-'Figure C'!$D$12,IF('Figure C'!Q123>='Figure C'!$D$10-'Figure C'!$D$8*'Figure C'!$D$12,'Figure C'!$D$10-'Figure C'!$D$12*'Figure C'!$D$8,'Figure C'!Q123)) -> 721 | S123: =('Figure C'!$D$10-'Figure C'!$D$8*'Figure C'!$D$12-'Figure C'!$D$8*'Figure C'!Q123)/('Figure C'!$R$148-'Figure C'!$D$8) -> 819.5714286 | T123: =IF(Q123<'Figure C'!$D$10-'Figure C'!$D$12,'Figure C'!$D$10,IF(Q123>='Figure C'!$D$10-'Figure C'!$D$12*'Figure C'!$D$8,'Figure C'!$D$10-'Figure C'!$D$12*'Figure C'!$D$8,'Figure C'!S123)) -> 819.5714286 | U123: 834.6784101 | W123: 721 | X123: =IF(W123<'Figure C'!$H$10-'Figure C'!$H$12,'Figure C'!$H$10-'Figure C'!$H$12,IF('Figure C'!W123>='Figure C'!$H$10-'Figure C'!$H$8*'Figure C'!$H$12,'Figure C'!$H$10-'Figure C'!$H$12*'Figure C'!$H$8,'Figure C'!W123)) -> 721 | Y123: 834.6784101
Q124: 741 | R124: =IF(Q124<'Figure C'!$D$10-'Figure C'!$D$12,'Figure C'!$D$10-'Figure C'!$D$12,IF('Figure C'!Q124>='Figure C'!$D$10-'Figure C'!$D$8*'Figure C'!$D$12,'Figure C'!$D$10-'Figure C'!$D$12*'Figure C'!$D$8,'Figure C'!Q124)) -> 741 | S124: =('Figure C'!$D$10-'Figure C'!$D$8*'Figure C'!$D$12-'Figure C'!$D$8*'Figure C'!Q124)/('Figure C'!$R$148-'Figure C'!$D$8) -> 811 | T124: =IF(Q124<'Figure C'!$D$10-'Figure C'!$D$12,'Figure C'!$D$10,IF(Q124>='Figure C'!$D$10-'Figure C'!$D$12*'Figure C'!$D$8,'Figure C'!$D$10-'Figure C'!$D$12*'Figure C'!$D$8,'Figure C'!S124)) -> 811 | U124: 828.9883824 | W124: 741 | X124: =IF(W124<'Figure C'!$H$10-'Figure C'!$H$12,'Figure C'!$H$10-'Figure C'!$H$12,IF('Figure C'!W124>='Figure C'!$H$10-'Figure C'!$H$8*'Figure C'!$H$12,'Figure C'!$H$10-'Figure C'!$H$12*'Figure C'!$H$8,'Figure C'!W124)) -> 741 | Y124: 828.9883824
Q125: 761 | R125: =IF(Q125<'Figure C'!$D$10-'Figure C'!$D$12,'Figure C'!$D$10-'Figure C'!$D$12,IF('Figure C'!Q125>='Figure C'!$D$10-'Figure C'!$D$8*'Figure C'!$D$12,'Figure C'!$D$10-'Figure C'!$D$12*'Figure C'!$D$8,'Figure C'!Q125)) -> 761 | S125: =('Figure C'!$D$10-'Figure C'!$D$8*'Figure C'!$D$12-'Figure C'!$D$8*'Figure C'!Q125)/('Figure C'!$R$148-'Figure C'!$D$8) -> 802.4285714 | T125: =IF(Q125<'Figure C'!$D$10-'Figure C'!$D$12,'Figure C'!$D$10,IF(Q125>='Figure C'!$D$10-'Figure C'!$D$12*'Figure C'!$D$8,'Figure C'!$D$10-'Figure C'!$D$12*'Figure C'!$D$8,'Figure C'!S125)) -> 802.4285714 | U125: 823.4871604 | W125: 761 | X125: =IF(W125<'Figure C'!$H$10-'Figure C'!$H$12,'Figure C'!$H$10-'Figure C'!$H$12,IF('Figure C'!W125>='Figure C'!$H$10-'Figure C'!$H$8*'Figure C'!$H$12,'Figure C'!$H$10-'Figure C'!$H$12*'Figure C'!$H$8,'Figure C'!W125)) -> 761 | Y125: 823.4871604
Q126: 781 | R126: =IF(Q126<'Figure C'!$D$10-'Figure C'!$D$12,'Figure C'!$D$10-'Figure C'!$D$12,IF('Figure C'!Q126>='Figure C'!$D$10-'Figure C'!$D$8*'Figure C'!$D$12,'Figure C'!$D$10-'Figure C'!$D$12*'Figure C'!$D$8,'Figure C'!Q126)) -> 781 | S126: =('Figure C'!$D$10-'Figure C'!$D$8*'Figure C'!$D$12-'Figure C'!$D$8*'Figure C'!Q126)/('Figure C'!$R$148-'Figure C'!$D$8) -> 793.8571429 | T126: =IF(Q126<'Figure C'!$D$10-'Figure C'!$D$12,'Figure C'!$D$10,IF(Q126>='Figure C'!$D$10-'Figure C'!$D$12*'Figure C'!$D$8,'Figure C'!$D$10-'Figure C'!$D$12*'Figure C'!$D$8,'Figure C'!S126)) -> 793.8571429 | U126: 818.1637582 | W126: 781 | X126: =IF(W126<'Figure C'!$H$10-'Figure C'!$H$12,'Figure C'!$H$10-'Figure C'!$H$12,IF('Figure C'!W126>='Figure C'!$H$10-'Figure C'!$H$8*'Figure C'!$H$12,'Figure C'!$H$10-'Figure C'!$H$12*'Figure C'!$H$8,'Figure C'!W126)) -> 781 | Y126: 818.1637582
Q127: 801 | R127: =IF(Q127<'Figure C'!$D$10-'Figure C'!$D$12,'Figure C'!$D$10-'Figure C'!$D$12,IF('Figure C'!Q127>='Figure C'!$D$10-'Figure C'!$D$8*'Figure C'!$D$12,'Figure C'!$D$10-'Figure C'!$D$12*'Figure C'!$D$8,'Figure C'!Q127)) -> 790 | S127: =('Figure C'!$D$10-'Figure C'!$D$8*'Figure C'!$D$12-'Figure C'!$D$8*'Figure C'!Q127)/('Figure C'!$R$148-'Figure C'!$D$8) -> 785.2857143 | T127: =IF(Q127<'Figure C'!$D$10-'Figure C'!$D$12,'Figure C'!$D$10,IF(Q127>='Figure C'!$D$10-'Figure C'!$D$12*'Figure C'!$D$8,'Figure C'!$D$10-'Figure C'!$D$12*'Figure C'!$D$8,'Figure C'!S127)) -> 790 | U127: 815.8235233 | W127: 801 | X127: =IF(W127<'Figure C'!$H$10-'Figure C'!$H$12,'Figure C'!$H$10-'Figure C'!$H$12,IF('Figure C'!W127>='Figure C'!$H$10-'Figure C'!$H$8*'Figure C'!$H$12,'Figure C'!$H$10-'Figure C'!$H$12*'Figure C'!$H$8,'Figure C'!W127)) -> 790 | Y127: 815.8235233
Q128: 821 | R128: =IF(Q128<'Figure C'!$D$10-'Figure C'!$D$12,'Figure C'!$D$10-'Figure C'!$D$12,IF('Figure C'!Q128>='Figure C'!$D$10-'Figure C'!$D$8*'Figure C'!$D$12,'Figure C'!$D$10-'Figure C'!$D$12*'Figure C'!$D$8,'Figure C'!Q128)) -> 790 | S128: =('Figure C'!$D$10-'Figure C'!$D$8*'Figure C'!$D$12-'Figure C'!$D$8*'Figure C'!Q128)/('Figure C'!$R$148-'Figure C'!$D$8) -> 776.7142857 | T128: =IF(Q128<'Figure C'!$D$10-'Figure C'!$D$12,'Figure C'!$D$10,IF(Q128>='Figure C'!$D$10-'Figure C'!$D$12*'Figure C'!$D$8,'Figure C'!$D$10-'Figure C'!$D$12*'Figure C'!$D$8,'Figure C'!S128)) -> 790 | U128: 815.8235233 | W128: 821 | X128: =IF(W128<'Figure C'!$H$10-'Figure C'!$H$12,'Figure C'!$H$10-'Figure C'!$H$12,IF('Figure C'!W128>='Figure C'!$H$10-'Figure C'!$H$8*'Figure C'!$H$12,'Figure C'!$H$10-'Figure C'!$H$12*'Figure C'!$H$8,'Figure C'!W128)) -> 790 | Y128: 815.8235233
Q129: 841 | R129: =IF(Q129<'Figure C'!$D$10-'Figure C'!$D$12,'Figure C'!$D$10-'Figure C'!$D$12,IF('Figure C'!Q129>='Figure C'!$D$10-'Figure C'!$D$8*'Figure C'!$D$12,'Figure C'!$D$10-'Figure C'!$D$12*'Figure C'!$D$8,'Figure C'!Q129)) -> 790 | S129: =('Figure C'!$D$10-'Figure C'!$D$8*'Figure C'!$D$12-'Figure C'!$D$8*'Figure C'!Q129)/('Figure C'!$R$148-'Figure C'!$D$8) -> 768.1428571 | T129: =IF(Q129<'Figure C'!$D$10-'Figure C'!$D$12,'Figure C'!$D$10,IF(Q129>='Figure C'!$D$10-'Figure C'!$D$12*'Figure C'!$D$8,'Figure C'!$D$10-'Figure C'!$D$12*'Figure C'!$D$8,'Figure C'!S129)) -> 790 | U129: 815.8235233 | W129: 841 | X129: =IF(W129<'Figure C'!$H$10-'Figure C'!$H$12,'Figure C'!$H$10-'Figure C'!$H$12,IF('Figure C'!W129>='Figure C'!$H$10-'Figure C'!$H$8*'Figure C'!$H$12,'Figure C'!$H$10-'Figure C'!$H$12*'Figure C'!$H$8,'Figure C'!W129)) -> 790 | Y129: 815.8235233
Q130: 861 | R130: =IF(Q130<'Figure C'!$D$10-'Figure C'!$D$12,'Figure C'!$D$10-'Figure C'!$D$12,IF('Figure C'!Q130>='Figure C'!$D$10-'Figure C'!$D$8*'Figure C'!$D$12,'Figure C'!$D$10-'Figure C'!$D$12*'Figure C'!$D$8,'Figure C'!Q130)) -> 790 | S130: =('Figure C'!$D$10-'Figure C'!$D$8*'Figure C'!$D$12-'Figure C'!$D$8*'Figure C'!Q130)/('Figure C'!$R$148-'Figure C'!$D$8) -> 759.5714286 | T130: =IF(Q130<'Figure C'!$D$10-'Figure C'!$D$12,'Figure C'!$D$10,IF(Q130>='Figure C'!$D$10-'Figure C'!$D$12*'Figure C'!$D$8,'Figure C'!$D$10-'Figure C'!$D$12*'Figure C'!$D$8,'Figure C'!S130)) -> 790 | U130: 815.8235233 | W130: 861 | X130: =IF(W130<'Figure C'!$H$10-'Figure C'!$H$12,'Figure C'!$H$10-'Figure C'!$H$12,IF('Figure C'!W130>='Figure C'!$H$10-'Figure C'!$H$8*'Figure C'!$H$12,'Figure C'!$H$10-'Figure C'!$H$12*'Figure C'!$H$8,'Figure C'!W130)) -> 790 | Y130: 815.8235233
Q131: 881 | R131: =IF(Q131<'Figure C'!$D$10-'Figure C'!$D$12,'Figure C'!$D$10-'Figure C'!$D$12,IF('Figure C'!Q131>='Figure C'!$D$10-'Figure C'!$D$8*'Figure C'!$D$12,'Figure C'!$D$10-'Figure C'!$D$12*'Figure C'!$D$8,'Figure C'!Q131)) -> 790 | S131: =('Figure C'!$D$10-'Figure C'!$D$8*'Figure C'!$D$12-'Figure C'!$D$8*'Figure C'!Q131)/('Figure C'!$R$148-'Figure C'!$D$8) -> 751 | T131: =IF(Q131<'Figure C'!$D$10-'Figure C'!$D$12,'Figure C'!$D$10,IF(Q131>='Figure C'!$D$10-'Figure C'!$D$12*'Figure C'!$D$8,'Figure C'!$D$10-'Figure C'!$D$12*'Figure C'!$D$8,'Figure C'!S131)) -> 790 | U131: 815.8235233 | W131: 881 | X131: =IF(W131<'Figure C'!$H$10-'Figure C'!$H$12,'Figure C'!$H$10-'Figure C'!$H$12,IF('Figure C'!W131>='Figure C'!$H$10-'Figure C'!$H$8*'Figure C'!$H$12,'Figure C'!$H$10-'Figure C'!$H$12*'Figure C'!$H$8,'Figure C'!W131)) -> 790 | Y131: 815.8235233
Q132: 901 | R132: =IF(Q132<'Figure C'!$D$10-'Figure C'!$D$12,'Figure C'!$D$10-'Figure C'!$D$12,IF('Figure C'!Q132>='Figure C'!$D$10-'Figure C'!$D$8*'Figure C'!$D$12,'Figure C'!$D$10-'Figure C'!$D$12*'Figure C'!$D$8,'Figure C'!Q132)) -> 790 | S132: =('Figure C'!$D$10-'Figure C'!$D$8*'Figure C'!$D$12-'Figure C'!$D$8*'Figure C'!Q132)/('Figure C'!$R$148-'Figure C'!$D$8) -> 742.4285714 | T132: =IF(Q132<'Figure C'!$D$10-'Figure C'!$D$12,'Figure C'!$D$10,IF(Q132>='Figure C'!$D$10-'Figure C'!$D$12*'Figure C'!$D$8,'Figure C'!$D$10-'Figure C'!$D$12*'Figure C'!$D$8,'Figure C'!S132)) -> 790 | U132: 815.8235233 | W132: 901 | X132: =IF(W132<'Figure C'!$H$10-'Figure C'!$H$12,'Figure C'!$H$10-'Figure C'!$H$12,IF('Figure C'!W132>='Figure C'!$H$10-'Figure C'!$H$8*'Figure C'!$H$12,'Figure C'!$H$10-'Figure C'!$H$12*'Figure C'!$H$8,'Figure C'!W132)) -> 790 | Y132: 815.8235233
Q133: 921 | R133: =IF(Q133<'Figure C'!$D$10-'Figure C'!$D$12,'Figure C'!$D$10-'Figure C'!$D$12,IF('Figure C'!Q133>='Figure C'!$D$10-'Figure C'!$D$8*'Figure C'!$D$12,'Figure C'!$D$10-'Figure C'!$D$12*'Figure C'!$D$8,'Figure C'!Q133)) -> 790 | S133: =('Figure C'!$D$10-'Figure C'!$D$8*'Figure C'!$D$12-'Figure C'!$D$8*'Figure C'!Q133)/('Figure C'!$R$148-'Figure C'!$D$8) -> 733.8571429 | T133: =IF(Q133<'Figure C'!$D$10-'Figure C'!$D$12,'Figure C'!$D$10,IF(Q133>='Figure C'!$D$10-'Figure C'!$D$12*'Figure C'!$D$8,'Figure C'!$D$10-'Figure C'!$D$12*'Figure C'!$D$8,'Figure C'!S133)) -> 790 | U133: 815.8235233 | W133: 921 | X133: =IF(W133<'Figure C'!$H$10-'Figure C'!$H$12,'Figure C'!$H$10-'Figure C'!$H$12,IF('Figure C'!W133>='Figure C'!$H$10-'Figure C'!$H$8*'Figure C'!$H$12,'Figure C'!$H$10-'Figure C'!$H$12*'Figure C'!$H$8,'Figure C'!W133)) -> 790 | Y133: 815.8235233
Q134: 941 | R134: =IF(Q134<'Figure C'!$D$10-'Figure C'!$D$12,'Figure C'!$D$10-'Figure C'!$D$12,IF('Figure C'!Q134>='Figure C'!$D$10-'Figure C'!$D$8*'Figure C'!$D$12,'Figure C'!$D$10-'Figure C'!$D$12*'Figure C'!$D$8,'Figure C'!Q134)) -> 790 | S134: =('Figure C'!$D$10-'Figure C'!$D$8*'Figure C'!$D$12-'Figure C'!$D$8*'Figure C'!Q134)/('Figure C'!$R$148-'Figure C'!$D$8) -> 725.2857143 | T134: =IF(Q134<'Figure C'!$D$10-'Figure C'!$D$12,'Figure C'!$D$10,IF(Q134>='Figure C'!$D$10-'Figure C'!$D$12*'Figure C'!$D$8,'Figure C'!$D$10-'Figure C'!$D$12*'Figure C'!$D$8,'Figure C'!S134)) -> 790 | U134: 815.8235233 | W134: 941 | X134: =IF(W134<'Figure C'!$H$10-'Figure C'!$H$12,'Figure C'!$H$10-'Figure C'!$H$12,IF('Figure C'!W134>='Figure C'!$H$10-'Figure C'!$H$8*'Figure C'!$H$12,'Figure C'!$H$10-'Figure C'!$H$12*'Figure C'!$H$8,'Figure C'!W134)) -> 790 | Y134: 815.8235233
Q135: 961 | R135: =IF(Q135<'Figure C'!$D$10-'Figure C'!$D$12,'Figure C'!$D$10-'Figure C'!$D$12,IF('Figure C'!Q135>='Figure C'!$D$10-'Figure C'!$D$8*'Figure C'!$D$12,'Figure C'!$D$10-'Figure C'!$D$12*'Figure C'!$D$8,'Figure C'!Q135)) -> 790 | S135: =('Figure C'!$D$10-'Figure C'!$D$8*'Figure C'!$D$12-'Figure C'!$D$8*'Figure C'!Q135)/('Figure C'!$R$148-'Figure C'!$D$8) -> 716.7142857 | T135: =IF(Q135<'Figure C'!$D$10-'Figure C'!$D$12,'Figure C'!$D$10,IF(Q135>='Figure C'!$D$10-'Figure C'!$D$12*'Figure C'!$D$8,'Figure C'!$D$10-'Figure C'!$D$12*'Figure C'!$D$8,'Figure C'!S135)) -> 790 | U135: 815.8235233 | W135: 961 | X135: =IF(W135<'Figure C'!$H$10-'Figure C'!$H$12,'Figure C'!$H$10-'Figure C'!$H$12,IF('Figure C'!W135>='Figure C'!$H$10-'Figure C'!$H$8*'Figure C'!$H$12,'Figure C'!$H$10-'Figure C'!$H$12*'Figure C'!$H$8,'Figure C'!W135)) -> 790 | Y135: 815.8235233
Q136: 981 | R136: =IF(Q136<'Figure C'!$D$10-'Figure C'!$D$12,'Figure C'!$D$10-'Figure C'!$D$12,IF('Figure C'!Q136>='Figure C'!$D$10-'Figure C'!$D$8*'Figure C'!$D$12,'Figure C'!$D$10-'Figure C'!$D$12*'Figure C'!$D$8,'Figure C'!Q136)) -> 790 | S136: =('Figure C'!$D$10-'Figure C'!$D$8*'Figure C'!$D$12-'Figure C'!$D$8*'Figure C'!Q136)/('Figure C'!$R$148-'Figure C'!$D$8) -> 708.1428571 | T136: =IF(Q136<'Figure C'!$D$10-'Figure C'!$D$12,'Figure C'!$D$10,IF(Q136>='Figure C'!$D$10-'Figure C'!$D$12*'Figure C'!$D$8,'Figure C'!$D$10-'Figure C'!$D$12*'Figure C'!$D$8,'Figure C'!S136)) -> 790 | U136: 815.8235233 | W136: 981 | X136: =IF(W136<'Figure C'!$H$10-'Figure C'!$H$12,'Figure C'!$H$10-'Figure C'!$H$12,IF('Figure C'!W136>='Figure C'!$H$10-'Figure C'!$H$8*'Figure C'!$H$12,'Figure C'!$H$10-'Figure C'!$H$12*'Figure C'!$H$8,'Figure C'!W136)) -> 790 | Y136: 815.8235233
Q137: 1001 | R137: =IF(Q137<'Figure C'!$D$10-'Figure C'!$D$12,'Figure C'!$D$10-'Figure C'!$D$12,IF('Figure C'!Q137>='Figure C'!$D$10-'Figure C'!$D$8*'Figure C'!$D$12,'Figure C'!$D$10-'Figure C'!$D$12*'Figure C'!$D$8,'Figure C'!Q137)) -> 790 | S137: =('Figure C'!$D$10-'Figure C'!$D$8*'Figure C'!$D$12-'Figure C'!$D$8*'Figure C'!Q137)/('Figure C'!$R$148-'Figure C'!$D$8) -> 699.5714286 | T137: =IF(Q137<'Figure C'!$D$10-'Figure C'!$D$12,'Figure C'!$D$10,IF(Q137>='Figure C'!$D$10-'Figure C'!$D$12*'Figure C'!$D$8,'Figure C'!$D$10-'Figure C'!$D$12*'Figure C'!$D$8,'Figure C'!S137)) -> 790 | U137: 815.8235233 | W137: 1001 | X137: =IF(W137<'Figure C'!$H$10-'Figure C'!$H$12,'Figure C'!$H$10-'Figure C'!$H$12,IF('Figure C'!W137>='Figure C'!$H$10-'Figure C'!$H$8*'Figure C'!$H$12,'Figure C'!$H$10-'Figure C'!$H$12*'Figure C'!$H$8,'Figure C'!W137)) -> 790 | Y137: 815.8235233
Q138: 1021 | R138: =IF(Q138<'Figure C'!$D$10-'Figure C'!$D$12,'Figure C'!$D$10-'Figure C'!$D$12,IF('Figure C'!Q138>='Figure C'!$D$10-'Figure C'!$D$8*'Figure C'!$D$12,'Figure C'!$D$10-'Figure C'!$D$12*'Figure C'!$D$8,'Figure C'!Q138)) -> 790 | S138: =('Figure C'!$D$10-'Figure C'!$D$8*'Figure C'!$D$12-'Figure C'!$D$8*'Figure C'!Q138)/('Figure C'!$R$148-'Figure C'!$D$8) -> 691 | T138: =IF(Q138<'Figure C'!$D$10-'Figure C'!$D$12,'Figure C'!$D$10,IF(Q138>='Figure C'!$D$10-'Figure C'!$D$12*'Figure C'!$D$8,'Figure C'!$D$10-'Figure C'!$D$12*'Figure C'!$D$8,'Figure C'!S138)) -> 790 | U138: 815.8235233 | W138: 1021 | X138: =IF(W138<'Figure C'!$H$10-'Figure C'!$H$12,'Figure C'!$H$10-'Figure C'!$H$12,IF('Figure C'!W138>='Figure C'!$H$10-'Figure C'!$H$8*'Figure C'!$H$12,'Figure C'!$H$10-'Figure C'!$H$12*'Figure C'!$H$8,'Figure C'!W138)) -> 790 | Y138: 815.8235233
Q139: 1041 | R139: =IF(Q139<'Figure C'!$D$10-'Figure C'!$D$12,'Figure C'!$D$10-'Figure C'!$D$12,IF('Figure C'!Q139>='Figure C'!$D$10-'Figure C'!$D$8*'Figure C'!$D$12,'Figure C'!$D$10-'Figure C'!$D$12*'Figure C'!$D$8,'Figure C'!Q139)) -> 790 | S139: =('Figure C'!$D$10-'Figure C'!$D$8*'Figure C'!$D$12-'Figure C'!$D$8*'Figure C'!Q139)/('Figure C'!$R$148-'Figure C'!$D$8) -> 682.4285714 | T139: =IF(Q139<'Figure C'!$D$10-'Figure C'!$D$12,'Figure C'!$D$10,IF(Q139>='Figure C'!$D$10-'Figure C'!$D$12*'Figure C'!$D$8,'Figure C'!$D$10-'Figure C'!$D$12*'Figure C'!$D$8,'Figure C'!S139)) -> 790 | U139: 815.8235233 | W139: 1041 | X139: =IF(W139<'Figure C'!$H$10-'Figure C'!$H$12,'Figure C'!$H$10-'Figure C'!$H$12,IF('Figure C'!W139>='Figure C'!$H$10-'Figure C'!$H$8*'Figure C'!$H$12,'Figure C'!$H$10-'Figure C'!$H$12*'Figure C'!$H$8,'Figure C'!W139)) -> 790 | Y139: 815.8235233
Q140: 1061 | R140: =IF(Q140<'Figure C'!$D$10-'Figure C'!$D$12,'Figure C'!$D$10-'Figure C'!$D$12,IF('Figure C'!Q140>='Figure C'!$D$10-'Figure C'!$D$8*'Figure C'!$D$12,'Figure C'!$D$10-'Figure C'!$D$12*'Figure C'!$D$8,'Figure C'!Q140)) -> 790 | S140: =('Figure C'!$D$10-'Figure C'!$D$8*'Figure C'!$D$12-'Figure C'!$D$8*'Figure C'!Q140)/('Figure C'!$R$148-'Figure C'!$D$8) -> 673.8571429 | T140: =IF(Q140<'Figure C'!$D$10-'Figure C'!$D$12,'Figure C'!$D$10,IF(Q140>='Figure C'!$D$10-'Figure C'!$D$12*'Figure C'!$D$8,'Figure C'!$D$10-'Figure C'!$D$12*'Figure C'!$D$8,'Figure C'!S140)) -> 790 | U140: 815.8235233 | W140: 1061 | X140: =IF(W140<'Figure C'!$H$10-'Figure C'!$H$12,'Figure C'!$H$10-'Figure C'!$H$12,IF('Figure C'!W140>='Figure C'!$H$10-'Figure C'!$H$8*'Figure C'!$H$12,'Figure C'!$H$10-'Figure C'!$H$12*'Figure C'!$H$8,'Figure C'!W140)) -> 790 | Y140: 815.8235233
Q141: 1081 | R141: =IF(Q141<'Figure C'!$D$10-'Figure C'!$D$12,'Figure C'!$D$10-'Figure C'!$D$12,IF('Figure C'!Q141>='Figure C'!$D$10-'Figure C'!$D$8*'Figure C'!$D$12,'Figure C'!$D$10-'Figure C'!$D$12*'Figure C'!$D$8,'Figure C'!Q141)) -> 790 | S141: =('Figure C'!$D$10-'Figure C'!$D$8*'Figure C'!$D$12-'Figure C'!$D$8*'Figure C'!Q141)/('Figure C'!$R$148-'Figure C'!$D$8) -> 665.2857143 | T141: =IF(Q141<'Figure C'!$D$10-'Figure C'!$D$12,'Figure C'!$D$10,IF(Q141>='Figure C'!$D$10-'Figure C'!$D$12*'Figure C'!$D$8,'Figure C'!$D$10-'Figure C'!$D$12*'Figure C'!$D$8,'Figure C'!S141)) -> 790 | U141: 815.8235233 | W141: 1081 | X141: =IF(W141<'Figure C'!$H$10-'Figure C'!$H$12,'Figure C'!$H$10-'Figure C'!$H$12,IF('Figure C'!W141>='Figure C'!$H$10-'Figure C'!$H$8*'Figure C'!$H$12,'Figure C'!$H$10-'Figure C'!$H$12*'Figure C'!$H$8,'Figure C'!W141)) -> 790 | Y141: 815.8235233
Q142: 1101 | R142: =IF(Q142<'Figure C'!$D$10-'Figure C'!$D$12,'Figure C'!$D$10-'Figure C'!$D$12,IF('Figure C'!Q142>='Figure C'!$D$10-'Figure C'!$D$8*'Figure C'!$D$12,'Figure C'!$D$10-'Figure C'!$D$12*'Figure C'!$D$8,'Figure C'!Q142)) -> 790 | S142: =('Figure C'!$D$10-'Figure C'!$D$8*'Figure C'!$D$12-'Figure C'!$D$8*'Figure C'!Q142)/('Figure C'!$R$148-'Figure C'!$D$8) -> 656.7142857 | T142: =IF(Q142<'Figure C'!$D$10-'Figure C'!$D$12,'Figure C'!$D$10,IF(Q142>='Figure C'!$D$10-'Figure C'!$D$12*'Figure C'!$D$8,'Figure C'!$D$10-'Figure C'!$D$12*'Figure C'!$D$8,'Figure C'!S142)) -> 790 | U142: 815.8235233 | W142: 1101 | X142: =IF(W142<'Figure C'!$H$10-'Figure C'!$H$12,'Figure C'!$H$10-'Figure C'!$H$12,IF('Figure C'!W142>='Figure C'!$H$10-'Figure C'!$H$8*'Figure C'!$H$12,'Figure C'!$H$10-'Figure C'!$H$12*'Figure C'!$H$8,'Figure C'!W142)) -> 790 | Y142: 815.8235233
Q143: 1121 | R143: =IF(Q143<'Figure C'!$D$10-'Figure C'!$D$12,'Figure C'!$D$10-'Figure C'!$D$12,IF('Figure C'!Q143>='Figure C'!$D$10-'Figure C'!$D$8*'Figure C'!$D$12,'Figure C'!$D$10-'Figure C'!$D$12*'Figure C'!$D$8,'Figure C'!Q143)) -> 790 | S143: =('Figure C'!$D$10-'Figure C'!$D$8*'Figure C'!$D$12-'Figure C'!$D$8*'Figure C'!Q143)/('Figure C'!$R$148-'Figure C'!$D$8) -> 648.1428571 | T143: =IF(Q143<'Figure C'!$D$10-'Figure C'!$D$12,'Figure C'!$D$10,IF(Q143>='Figure C'!$D$10-'Figure C'!$D$12*'Figure C'!$D$8,'Figure C'!$D$10-'Figure C'!$D$12*'Figure C'!$D$8,'Figure C'!S143)) -> 790 | U143: 815.8235233 | W143: 1121 | X143: =IF(W143<'Figure C'!$H$10-'Figure C'!$H$12,'Figure C'!$H$10-'Figure C'!$H$12,IF('Figure C'!W143>='Figure C'!$H$10-'Figure C'!$H$8*'Figure C'!$H$12,'Figure C'!$H$10-'Figure C'!$H$12*'Figure C'!$H$8,'Figure C'!W143)) -> 790 | Y143: 815.8235233
Q144: 1141 | R144: =IF(Q144<'Figure C'!$D$10-'Figure C'!$D$12,'Figure C'!$D$10-'Figure C'!$D$12,IF('Figure C'!Q144>='Figure C'!$D$10-'Figure C'!$D$8*'Figure C'!$D$12,'Figure C'!$D$10-'Figure C'!$D$12*'Figure C'!$D$8,'Figure C'!Q144)) -> 790 | S144: =('Figure C'!$D$10-'Figure C'!$D$8*'Figure C'!$D$12-'Figure C'!$D$8*'Figure C'!Q144)/('Figure C'!$R$148-'Figure C'!$D$8) -> 639.5714286 | T144: =IF(Q144<'Figure C'!$D$10-'Figure C'!$D$12,'Figure C'!$D$10,IF(Q144>='Figure C'!$D$10-'Figure C'!$D$12*'Figure C'!$D$8,'Figure C'!$D$10-'Figure C'!$D$12*'Figure C'!$D$8,'Figure C'!S144)) -> 790 | U144: 815.8235233 | W144: 1141 | X144: =IF(W144<'Figure C'!$H$10-'Figure C'!$H$12,'Figure C'!$H$10-'Figure C'!$H$12,IF('Figure C'!W144>='Figure C'!$H$10-'Figure C'!$H$8*'Figure C'!$H$12,'Figure C'!$H$10-'Figure C'!$H$12*'Figure C'!$H$8,'Figure C'!W144)) -> 790 | Y144: 815.8235233
Q145: 1161 | R145: =IF(Q145<'Figure C'!$D$10-'Figure C'!$D$12,'Figure C'!$D$10-'Figure C'!$D$12,IF('Figure C'!Q145>='Figure C'!$D$10-'Figure C'!$D$8*'Figure C'!$D$12,'Figure C'!$D$10-'Figure C'!$D$12*'Figure C'!$D$8,'Figure C'!Q145)) -> 790 | S145: =('Figure C'!$D$10-'Figure C'!$D$8*'Figure C'!$D$12-'Figure C'!$D$8*'Figure C'!Q145)/('Figure C'!$R$148-'Figure C'!$D$8) -> 631 | T145: =IF(Q145<'Figure C'!$D$10-'Figure C'!$D$12,'Figure C'!$D$10,IF(Q145>='Figure C'!$D$10-'Figure C'!$D$12*'Figure C'!$D$8,'Figure C'!$D$10-'Figure C'!$D$12*'Figure C'!$D$8,'Figure C'!S145)) -> 790 | U145: 815.8235233 | W145: 1161 | X145: =IF(W145<'Figure C'!$H$10-'Figure C'!$H$12,'Figure C'!$H$10-'Figure C'!$H$12,IF('Figure C'!W145>='Figure C'!$H$10-'Figure C'!$H$8*'Figure C'!$H$12,'Figure C'!$H$10-'Figure C'!$H$12*'Figure C'!$H$8,'Figure C'!W145)) -> 790 | Y145: 815.8235233
Q146: 1181 | R146: =IF(Q146<'Figure C'!$D$10-'Figure C'!$D$12,'Figure C'!$D$10-'Figure C'!$D$12,IF('Figure C'!Q146>='Figure C'!$D$10-'Figure C'!$D$8*'Figure C'!$D$12,'Figure C'!$D$10-'Figure C'!$D$12*'Figure C'!$D$8,'Figure C'!Q146)) -> 790 | S146: =('Figure C'!$D$10-'Figure C'!$D$8*'Figure C'!$D$12-'Figure C'!$D$8*'Figure C'!Q146)/('Figure C'!$R$148-'Figure C'!$D$8) -> 622.4285714 | T146: =IF(Q146<'Figure C'!$D$10-'Figure C'!$D$12,'Figure C'!$D$10,IF(Q146>='Figure C'!$D$10-'Figure C'!$D$12*'Figure C'!$D$8,'Figure C'!$D$10-'Figure C'!$D$12*'Figure C'!$D$8,'Figure C'!S146)) -> 790 | U146: 815.8235233 | W146: 1181 | X146: =IF(W146<'Figure C'!$H$10-'Figure C'!$H$12,'Figure C'!$H$10-'Figure C'!$H$12,IF('Figure C'!W146>='Figure C'!$H$10-'Figure C'!$H$8*'Figure C'!$H$12,'Figure C'!$H$10-'Figure C'!$H$12*'Figure C'!$H$8,'Figure C'!W146)) -> 790 | Y146: 815.8235233
Q148: β | R148: 1
R149: c1 | S149: c2 | W149: c1 | X149: c2 | Z149: restriccion
R150: ='Figure C'!D16 -> 526.6666708 | S150: 0 | W150: ='Figure C'!$H$16 -> 526.6666627 | X150: 0 | Z150: ='Figure C'!H10-'Figure C'!H12 -> 300 | AA150: ='Figure C'!H10 -> 1000
R151: ='Figure C'!D16 -> 526.6666708 | S151: ='Figure C'!D17 -> 902.8571411 | W151: ='Figure C'!$H$16 -> 526.6666627 | X151: ='Figure C'!$H$17 -> 902.8571445 | Z151: ='Figure C'!H10-'Figure C'!H12*'Figure C'!H8 -> 790 | AA151: ='Figure C'!H10-'Figure C'!H12*'Figure C'!H8 -> 790
R153: c1 | S153: c2 | W153: c1 | X153: c2
R154: 0 | S154: ='Figure C'!D17 -> 902.8571411 | W154: 0 | X154: ='Figure C'!$H$17 -> 902.8571445
R155: ='Figure C'!D16 -> 526.6666708 | S155: ='Figure C'!D17 -> 902.8571411 | W155: ='Figure C'!$H$16 -> 526.6666627 | X155: ='Figure C'!$H$17 -> 902.8571445
R158: y1 | S158: y2
R159: ='Figure C'!#REF! ->  | S159: ='Figure C'!D10 -> 1000 | W159: y1 | X159: y2
R160: ='Figure C'!D8 -> 0.3 | S160: ='Figure C'!D10 -> 1000 | W160: 0 | X160: ='Figure C'!$H$10 -> 1000
W161: ='Figure C'!$H$8 -> 0.3 | X161: ='Figure C'!$H$10 -> 1000
R162: y1 | S162: y2
R163: ='Figure C'!D8 -> 0.3 | S163: 0 | W163: y1 | X163: y2
R164: ='Figure C'!D8 -> 0.3 | S164: ='Figure C'!D10 -> 1000 | W164: ='Figure C'!$H$8 -> 0.3 | X164: 0
W165: ='Figure C'!$H$8 -> 0.3 | X165: ='Figure C'!$H$10 -> 1000

Sheet log (hidden)
B2: Repeteri figura 5 pero con la siguiente función de utilidad esperada
B4: π*ln(w1)+(1-π)*ln(w2)
B9: Incluír el scroll bars
B10: 0.1≤π≤1
B11: 0.1≤p≤0.9
B13: 500≤l≤750
B14: 850≤w ≤1150

Sheet Figure D (hidden)
C3: Table I: Initial solution | G3: Table II: Comparative Analysis
C5: Parameters | G5: Parameters
B6: 2 | C6: π | D6: =B6/10 -> 0.2 | F6: 2 | G6: π | H6: =F6/10 -> 0.2
B8: 3 | C8: p | D8: =B8/10 -> 0.3 | F8: 3 | G8: p | H8: =F8/10 -> 0.3
C10: w0 | D10: 1000 | G10: w0 | H10: 1000
B12: 3 | C12: σ | D12: =B12/10 -> 0.3 | F12: 3 | G12: σ | H12: =IF(F13=1, 1.05, F14) -> 0.3
F13: =+F12/10 -> 0.3
C14: l | D14: 700 | F14: =+F12/10 -> 0.3 | G14: l | H14: 700
C17: Variables | G17: Variables
C18: w1 | D18: 300 | G18: w1 | H18: 300
C19: w2 | D19: 1000 | G19: w2 | H19: 1000
C21: Constraints | G21: Constraints
C22: p*w1+(1-p)*w2-w0+pl=0 | D22: =+D8*D18+(1-D8)*D19-D10+D8*D14 -> 0 | G22: p*w1+(1-p)*w2-w0+pl=0 | H22: =+H8*H18+(1-H8)*H19-H10+H8*H14 -> 0
C23: w0-l-w1≤0 | D23: =+D10-D14-D18 -> 0 | G23: w0-l-w1≤0 | H23: =+H10-H14-H18 -> 0
C24: wo-w1-p*l≥0 | D24: =+D10-D18-D8*D14 -> 490 | G24: wo-w1-p*l≥0 | H24: =+H10-H18-H8*H14 -> 490
C25: wo-pl-w2≤0 | D25: =+D10-D8*D14-D19 -> -210 | G25: wo-pl-w2≤0 | H25: =+H10-H8*H14-H19 -> -210
C26: w0-w2≥0 | D26: =+D10-D19 -> 0 | G26: w0-w2≥0 | H26: =+H10-H19 -> 0
C28: Quantity of q | G28: Quantity of q
C29: q=(w0-w2)/p | D29: =+(D10-D19)/D8 -> 0 | G29: q=(w0-w2)/p | H29: =+(H10-H19)/H8 -> 0
C31: Expected utility function | G31: Expected utility function
C32: π*(w1^(1-σ)/(1-σ))+(1-π)*(w2^(1-σ)/(1-σ)) | D32: =D6*(D18^(1-D12)/(1-D12))+(1-D6)*(D19^(1-D12)/(1-D12)) -> 159.3623905 | G32: π*(w1^(1-σ)/(1-σ))+(1-π)*(w2^(1-σ)/(1-σ)) | H32: =H6*(H18^(1-H12)/(1-H12))+(1-H6)*(H19^(1-H12)/(1-H12)) -> 159.3623905
C34: This option considers an isoelastic utility function with σ≠1. Use the scroll bars to modify the parameters of the insurance problem. Then, call Solver and click Solve in the Solver Parameters window.
C35: For example, use the scroll bar below the probability of a robbery π in cell H6, adjusting it from π=0.2 to π=0.4. Then call Solver and, click Solve in the Solver Parameters window.
C36: Change the letter H for D in all cells of the Solver Parameters window if you modify the parameters of Table I.
C37: If Solver shows a message "Solver encountered an error value in the Objective Cell or a Constraint cell" just change the initial values of the variables to, for example 100.
C38: π= probability of robbery
C39: p= insurance premium rate
C40: w0= initial wealth
C41: σ= parameter of the expected utility function
C42: l= amount of wealth stolen if robbery
C43: w1= agent’s wealth if robbery
C44: w2= agent’s wealth if no robbery
C45: q= amount of insurance
S87: Initial solution | W87: Final solution
P88: 20 | Q88: w1 | R88: w1prime | S88: w2budget | T88: w2prime | U88: C2utility | W88: w1 | X88: w1prime | Y88: C2utility
P89: =((1-D$12)*(D$32-D$6*(R89^(1-D$12)/(1-D$12)))/(1-D$6))^(1/(1-D$12)) -> 1000 | Q89: 1 | R89: =IF(Q89<'Figure D'!$D$10-'Figure D'!$D$14,'Figure D'!$D$10-'Figure D'!$D$14,IF('Figure D'!Q89>='Figure D'!$D$10-'Figure D'!$D$8*'Figure D'!$D$14,'Figure D'!$D$10-'Figure D'!$D$14*'Figure D'!$D$8,'Figure D'!Q89)) -> 300 | S89: =('Figure D'!$D$10-'Figure D'!$D$8*'Figure D'!$D$14-'Figure D'!$D$8*'Figure D'!Q89)/('Figure D'!$R$150-'Figure D'!$D$8) -> 1128.142857 | T89: =IF(Q89<'Figure D'!$D$10-'Figure D'!$D$14,'Figure D'!$D$10,IF(Q89>='Figure D'!$D$10-'Figure D'!$D$14*'Figure D'!$D$8,'Figure D'!$D$10-'Figure D'!$D$14*'Figure D'!$D$8,'Figure D'!S89)) -> 1000 | U89: =((1-D$12)*(D$32-D$6*(R89^(1-D$12)/(1-D$12)))/(1-D$6))^(1/(1-D$12)) -> 1000 | W89: 1 | X89: =IF(W89<'Figure D'!$H$10-'Figure D'!$H$14,'Figure D'!$H$10-'Figure D'!$H$14,IF('Figure D'!W89>='Figure D'!$H$10-'Figure D'!$H$8*'Figure D'!$H$14,'Figure D'!$H$10-'Figure D'!$H$14*'Figure D'!$H$8,'Figure D'!W89)) -> 300 | Y89: =((1-H$12)*(H$32-H$6*(X89^(1-H$12)/(1-H$12)))/(1-H$6))^(1/(1-H$12)) -> 1000 | AA89: =(1-H$12)*(H$32-H$6*(X89^(1-H$12)/(1-H$12))) -> 100.7140329
P90: =((1-D$12)*(D$32-D$6*(R90^(1-D$12)/(1-D$12)))/(1-D$6))^(1/(1-D$12)) -> 1000 | Q90: =+Q89+P$88 -> 21 | R90: =IF(Q90<'Figure D'!$D$10-'Figure D'!$D$14,'Figure D'!$D$10-'Figure D'!$D$14,IF('Figure D'!Q90>='Figure D'!$D$10-'Figure D'!$D$8*'Figure D'!$D$14,'Figure D'!$D$10-'Figure D'!$D$14*'Figure D'!$D$8,'Figure D'!Q90)) -> 300 | S90: =('Figure D'!$D$10-'Figure D'!$D$8*'Figure D'!$D$14-'Figure D'!$D$8*'Figure D'!Q90)/('Figure D'!$R$150-'Figure D'!$D$8) -> 1119.571429 | T90: =IF(Q90<'Figure D'!$D$10-'Figure D'!$D$14,'Figure D'!$D$10,IF(Q90>='Figure D'!$D$10-'Figure D'!$D$14*'Figure D'!$D$8,'Figure D'!$D$10-'Figure D'!$D$14*'Figure D'!$D$8,'Figure D'!S90)) -> 1000 | U90: =((1-D$12)*(D$32-D$6*(R90^(1-D$12)/(1-D$12)))/(1-D$6))^(1/(1-D$12)) -> 1000 | W90: =+W89+P$88 -> 21 | X90: =IF(W90<'Figure D'!$H$10-'Figure D'!$H$14,'Figure D'!$H$10-'Figure D'!$H$14,IF('Figure D'!W90>='Figure D'!$H$10-'Figure D'!$H$8*'Figure D'!$H$14,'Figure D'!$H$10-'Figure D'!$H$14*'Figure D'!$H$8,'Figure D'!W90)) -> 300 | Y90: =((1-H$12)*(H$32-H$6*(X90^(1-H$12)/(1-H$12)))/(1-H$6))^(1/(1-H$12)) -> 1000
P91: 1000 | Q91: 41 | R91: =IF(Q91<'Figure D'!$D$10-'Figure D'!$D$14,'Figure D'!$D$10-'Figure D'!$D$14,IF('Figure D'!Q91>='Figure D'!$D$10-'Figure D'!$D$8*'Figure D'!$D$14,'Figure D'!$D$10-'Figure D'!$D$14*'Figure D'!$D$8,'Figure D'!Q91)) -> 300 | S91: =('Figure D'!$D$10-'Figure D'!$D$8*'Figure D'!$D$14-'Figure D'!$D$8*'Figure D'!Q91)/('Figure D'!$R$150-'Figure D'!$D$8) -> 1111 | T91: =IF(Q91<'Figure D'!$D$10-'Figure D'!$D$14,'Figure D'!$D$10,IF(Q91>='Figure D'!$D$10-'Figure D'!$D$14*'Figure D'!$D$8,'Figure D'!$D$10-'Figure D'!$D$14*'Figure D'!$D$8,'Figure D'!S91)) -> 1000 | U91: 1000 | W91: 41 | X91: =IF(W91<'Figure D'!$H$10-'Figure D'!$H$14,'Figure D'!$H$10-'Figure D'!$H$14,IF('Figure D'!W91>='Figure D'!$H$10-'Figure D'!$H$8*'Figure D'!$H$14,'Figure D'!$H$10-'Figure D'!$H$14*'Figure D'!$H$8,'Figure D'!W91)) -> 300 | Y91: =((1-H$12)*(H$32-H$6*(X91^(1-H$12)/(1-H$12)))/(1-H$6))^(1/(1-H$12)) -> 1000
P92: 1000 | Q92: 61 | R92: =IF(Q92<'Figure D'!$D$10-'Figure D'!$D$14,'Figure D'!$D$10-'Figure D'!$D$14,IF('Figure D'!Q92>='Figure D'!$D$10-'Figure D'!$D$8*'Figure D'!$D$14,'Figure D'!$D$10-'Figure D'!$D$14*'Figure D'!$D$8,'Figure D'!Q92)) -> 300 | S92: =('Figure D'!$D$10-'Figure D'!$D$8*'Figure D'!$D$14-'Figure D'!$D$8*'Figure D'!Q92)/('Figure D'!$R$150-'Figure D'!$D$8) -> 1102.428571 | T92: =IF(Q92<'Figure D'!$D$10-'Figure D'!$D$14,'Figure D'!$D$10,IF(Q92>='Figure D'!$D$10-'Figure D'!$D$14*'Figure D'!$D$8,'Figure D'!$D$10-'Figure D'!$D$14*'Figure D'!$D$8,'Figure D'!S92)) -> 1000 | U92: 1000 | W92: 61 | X92: =IF(W92<'Figure D'!$H$10-'Figure D'!$H$14,'Figure D'!$H$10-'Figure D'!$H$14,IF('Figure D'!W92>='Figure D'!$H$10-'Figure D'!$H$8*'Figure D'!$H$14,'Figure D'!$H$10-'Figure D'!$H$14*'Figure D'!$H$8,'Figure D'!W92)) -> 300 | Y92: 1000
P93: 1000 | Q93: 81 | R93: =IF(Q93<'Figure D'!$D$10-'Figure D'!$D$14,'Figure D'!$D$10-'Figure D'!$D$14,IF('Figure D'!Q93>='Figure D'!$D$10-'Figure D'!$D$8*'Figure D'!$D$14,'Figure D'!$D$10-'Figure D'!$D$14*'Figure D'!$D$8,'Figure D'!Q93)) -> 300 | S93: =('Figure D'!$D$10-'Figure D'!$D$8*'Figure D'!$D$14-'Figure D'!$D$8*'Figure D'!Q93)/('Figure D'!$R$150-'Figure D'!$D$8) -> 1093.857143 | T93: =IF(Q93<'Figure D'!$D$10-'Figure D'!$D$14,'Figure D'!$D$10,IF(Q93>='Figure D'!$D$10-'Figure D'!$D$14*'Figure D'!$D$8,'Figure D'!$D$10-'Figure D'!$D$14*'Figure D'!$D$8,'Figure D'!S93)) -> 1000 | U93: 1000 | W93: 81 | X93: =IF(W93<'Figure D'!$H$10-'Figure D'!$H$14,'Figure D'!$H$10-'Figure D'!$H$14,IF('Figure D'!W93>='Figure D'!$H$10-'Figure D'!$H$8*'Figure D'!$H$14,'Figure D'!$H$10-'Figure D'!$H$14*'Figure D'!$H$8,'Figure D'!W93)) -> 300 | Y93: 1000
P94: 1000 | Q94: 101 | R94: =IF(Q94<'Figure D'!$D$10-'Figure D'!$D$14,'Figure D'!$D$10-'Figure D'!$D$14,IF('Figure D'!Q94>='Figure D'!$D$10-'Figure D'!$D$8*'Figure D'!$D$14,'Figure D'!$D$10-'Figure D'!$D$14*'Figure D'!$D$8,'Figure D'!Q94)) -> 300 | S94: =('Figure D'!$D$10-'Figure D'!$D$8*'Figure D'!$D$14-'Figure D'!$D$8*'Figure D'!Q94)/('Figure D'!$R$150-'Figure D'!$D$8) -> 1085.285714 | T94: =IF(Q94<'Figure D'!$D$10-'Figure D'!$D$14,'Figure D'!$D$10,IF(Q94>='Figure D'!$D$10-'Figure D'!$D$14*'Figure D'!$D$8,'Figure D'!$D$10-'Figure D'!$D$14*'Figure D'!$D$8,'Figure D'!S94)) -> 1000 | U94: 1000 | W94: 101 | X94: =IF(W94<'Figure D'!$H$10-'Figure D'!$H$14,'Figure D'!$H$10-'Figure D'!$H$14,IF('Figure D'!W94>='Figure D'!$H$10-'Figure D'!$H$8*'Figure D'!$H$14,'Figure D'!$H$10-'Figure D'!$H$14*'Figure D'!$H$8,'Figure D'!W94)) -> 300 | Y94: 1000
P95: 1000 | Q95: 121 | R95: =IF(Q95<'Figure D'!$D$10-'Figure D'!$D$14,'Figure D'!$D$10-'Figure D'!$D$14,IF('Figure D'!Q95>='Figure D'!$D$10-'Figure D'!$D$8*'Figure D'!$D$14,'Figure D'!$D$10-'Figure D'!$D$14*'Figure D'!$D$8,'Figure D'!Q95)) -> 300 | S95: =('Figure D'!$D$10-'Figure D'!$D$8*'Figure D'!$D$14-'Figure D'!$D$8*'Figure D'!Q95)/('Figure D'!$R$150-'Figure D'!$D$8) -> 1076.714286 | T95: =IF(Q95<'Figure D'!$D$10-'Figure D'!$D$14,'Figure D'!$D$10,IF(Q95>='Figure D'!$D$10-'Figure D'!$D$14*'Figure D'!$D$8,'Figure D'!$D$10-'Figure D'!$D$14*'Figure D'!$D$8,'Figure D'!S95)) -> 1000 | U95: 1000 | W95: 121 | X95: =IF(W95<'Figure D'!$H$10-'Figure D'!$H$14,'Figure D'!$H$10-'Figure D'!$H$14,IF('Figure D'!W95>='Figure D'!$H$10-'Figure D'!$H$8*'Figure D'!$H$14,'Figure D'!$H$10-'Figure D'!$H$14*'Figure D'!$H$8,'Figure D'!W95)) -> 300 | Y95: 1000
P96: 1000 | Q96: 141 | R96: =IF(Q96<'Figure D'!$D$10-'Figure D'!$D$14,'Figure D'!$D$10-'Figure D'!$D$14,IF('Figure D'!Q96>='Figure D'!$D$10-'Figure D'!$D$8*'Figure D'!$D$14,'Figure D'!$D$10-'Figure D'!$D$14*'Figure D'!$D$8,'Figure D'!Q96)) -> 300 | S96: =('Figure D'!$D$10-'Figure D'!$D$8*'Figure D'!$D$14-'Figure D'!$D$8*'Figure D'!Q96)/('Figure D'!$R$150-'Figure D'!$D$8) -> 1068.142857 | T96: =IF(Q96<'Figure D'!$D$10-'Figure D'!$D$14,'Figure D'!$D$10,IF(Q96>='Figure D'!$D$10-'Figure D'!$D$14*'Figure D'!$D$8,'Figure D'!$D$10-'Figure D'!$D$14*'Figure D'!$D$8,'Figure D'!S96)) -> 1000 | U96: 1000 | W96: 141 | X96: =IF(W96<'Figure D'!$H$10-'Figure D'!$H$14,'Figure D'!$H$10-'Figure D'!$H$14,IF('Figure D'!W96>='Figure D'!$H$10-'Figure D'!$H$8*'Figure D'!$H$14,'Figure D'!$H$10-'Figure D'!$H$14*'Figure D'!$H$8,'Figure D'!W96)) -> 300 | Y96: 1000
P97: 1000 | Q97: 161 | R97: =IF(Q97<'Figure D'!$D$10-'Figure D'!$D$14,'Figure D'!$D$10-'Figure D'!$D$14,IF('Figure D'!Q97>='Figure D'!$D$10-'Figure D'!$D$8*'Figure D'!$D$14,'Figure D'!$D$10-'Figure D'!$D$14*'Figure D'!$D$8,'Figure D'!Q97)) -> 300 | S97: =('Figure D'!$D$10-'Figure D'!$D$8*'Figure D'!$D$14-'Figure D'!$D$8*'Figure D'!Q97)/('Figure D'!$R$150-'Figure D'!$D$8) -> 1059.571429 | T97: =IF(Q97<'Figure D'!$D$10-'Figure D'!$D$14,'Figure D'!$D$10,IF(Q97>='Figure D'!$D$10-'Figure D'!$D$14*'Figure D'!$D$8,'Figure D'!$D$10-'Figure D'!$D$14*'Figure D'!$D$8,'Figure D'!S97)) -> 1000 | U97: 1000 | W97: 161 | X97: =IF(W97<'Figure D'!$H$10-'Figure D'!$H$14,'Figure D'!$H$10-'Figure D'!$H$14,IF('Figure D'!W97>='Figure D'!$H$10-'Figure D'!$H$8*'Figure D'!$H$14,'Figure D'!$H$10-'Figure D'!$H$14*'Figure D'!$H$8,'Figure D'!W97)) -> 300 | Y97: 1000
P98: 1000 | Q98: 181 | R98: =IF(Q98<'Figure D'!$D$10-'Figure D'!$D$14,'Figure D'!$D$10-'Figure D'!$D$14,IF('Figure D'!Q98>='Figure D'!$D$10-'Figure D'!$D$8*'Figure D'!$D$14,'Figure D'!$D$10-'Figure D'!$D$14*'Figure D'!$D$8,'Figure D'!Q98)) -> 300 | S98: =('Figure D'!$D$10-'Figure D'!$D$8*'Figure D'!$D$14-'Figure D'!$D$8*'Figure D'!Q98)/('Figure D'!$R$150-'Figure D'!$D$8) -> 1051 | T98: =IF(Q98<'Figure D'!$D$10-'Figure D'!$D$14,'Figure D'!$D$10,IF(Q98>='Figure D'!$D$10-'Figure D'!$D$14*'Figure D'!$D$8,'Figure D'!$D$10-'Figure D'!$D$14*'Figure D'!$D$8,'Figure D'!S98)) -> 1000 | U98: 1000 | W98: 181 | X98: =IF(W98<'Figure D'!$H$10-'Figure D'!$H$14,'Figure D'!$H$10-'Figure D'!$H$14,IF('Figure D'!W98>='Figure D'!$H$10-'Figure D'!$H$8*'Figure D'!$H$14,'Figure D'!$H$10-'Figure D'!$H$14*'Figure D'!$H$8,'Figure D'!W98)) -> 300 | Y98: 1000
P99: 1000 | Q99: 201 | R99: =IF(Q99<'Figure D'!$D$10-'Figure D'!$D$14,'Figure D'!$D$10-'Figure D'!$D$14,IF('Figure D'!Q99>='Figure D'!$D$10-'Figure D'!$D$8*'Figure D'!$D$14,'Figure D'!$D$10-'Figure D'!$D$14*'Figure D'!$D$8,'Figure D'!Q99)) -> 300 | S99: =('Figure D'!$D$10-'Figure D'!$D$8*'Figure D'!$D$14-'Figure D'!$D$8*'Figure D'!Q99)/('Figure D'!$R$150-'Figure D'!$D$8) -> 1042.428571 | T99: =IF(Q99<'Figure D'!$D$10-'Figure D'!$D$14,'Figure D'!$D$10,IF(Q99>='Figure D'!$D$10-'Figure D'!$D$14*'Figure D'!$D$8,'Figure D'!$D$10-'Figure D'!$D$14*'Figure D'!$D$8,'Figure D'!S99)) -> 1000 | U99: 1000 | W99: 201 | X99: =IF(W99<'Figure D'!$H$10-'Figure D'!$H$14,'Figure D'!$H$10-'Figure D'!$H$14,IF('Figure D'!W99>='Figure D'!$H$10-'Figure D'!$H$8*'Figure D'!$H$14,'Figure D'!$H$10-'Figure D'!$H$14*'Figure D'!$H$8,'Figure D'!W99)) -> 300 | Y99: 1000
P100: 1000 | Q100: 221 | R100: =IF(Q100<'Figure D'!$D$10-'Figure D'!$D$14,'Figure D'!$D$10-'Figure D'!$D$14,IF('Figure D'!Q100>='Figure D'!$D$10-'Figure D'!$D$8*'Figure D'!$D$14,'Figure D'!$D$10-'Figure D'!$D$14*'Figure D'!$D$8,'Figure D'!Q100)) -> 300 | S100: =('Figure D'!$D$10-'Figure D'!$D$8*'Figure D'!$D$14-'Figure D'!$D$8*'Figure D'!Q100)/('Figure D'!$R$150-'Figure D'!$D$8) -> 1033.857143 | T100: =IF(Q100<'Figure D'!$D$10-'Figure D'!$D$14,'Figure D'!$D$10,IF(Q100>='Figure D'!$D$10-'Figure D'!$D$14*'Figure D'!$D$8,'Figure D'!$D$10-'Figure D'!$D$14*'Figure D'!$D$8,'Figure D'!S100)) -> 1000 | U100: 1000 | W100: 221 | X100: =IF(W100<'Figure D'!$H$10-'Figure D'!$H$14,'Figure D'!$H$10-'Figure D'!$H$14,IF('Figure D'!W100>='Figure D'!$H$10-'Figure D'!$H$8*'Figure D'!$H$14,'Figure D'!$H$10-'Figure D'!$H$14*'Figure D'!$H$8,'Figure D'!W100)) -> 300 | Y100: 1000
P101: 1000 | Q101: 241 | R101: =IF(Q101<'Figure D'!$D$10-'Figure D'!$D$14,'Figure D'!$D$10-'Figure D'!$D$14,IF('Figure D'!Q101>='Figure D'!$D$10-'Figure D'!$D$8*'Figure D'!$D$14,'Figure D'!$D$10-'Figure D'!$D$14*'Figure D'!$D$8,'Figure D'!Q101)) -> 300 | S101: =('Figure D'!$D$10-'Figure D'!$D$8*'Figure D'!$D$14-'Figure D'!$D$8*'Figure D'!Q101)/('Figure D'!$R$150-'Figure D'!$D$8) -> 1025.285714 | T101: =IF(Q101<'Figure D'!$D$10-'Figure D'!$D$14,'Figure D'!$D$10,IF(Q101>='Figure D'!$D$10-'Figure D'!$D$14*'Figure D'!$D$8,'Figure D'!$D$10-'Figure D'!$D$14*'Figure D'!$D$8,'Figure D'!S101)) -> 1000 | U101: 1000 | W101: 241 | X101: =IF(W101<'Figure D'!$H$10-'Figure D'!$H$14,'Figure D'!$H$10-'Figure D'!$H$14,IF('Figure D'!W101>='Figure D'!$H$10-'Figure D'!$H$8*'Figure D'!$H$14,'Figure D'!$H$10-'Figure D'!$H$14*'Figure D'!$H$8,'Figure D'!W101)) -> 300 | Y101: 1000
P102: 1000 | Q102: 261 | R102: =IF(Q102<'Figure D'!$D$10-'Figure D'!$D$14,'Figure D'!$D$10-'Figure D'!$D$14,IF('Figure D'!Q102>='Figure D'!$D$10-'Figure D'!$D$8*'Figure D'!$D$14,'Figure D'!$D$10-'Figure D'!$D$14*'Figure D'!$D$8,'Figure D'!Q102)) -> 300 | S102: =('Figure D'!$D$10-'Figure D'!$D$8*'Figure D'!$D$14-'Figure D'!$D$8*'Figure D'!Q102)/('Figure D'!$R$150-'Figure D'!$D$8) -> 1016.714286 | T102: =IF(Q102<'Figure D'!$D$10-'Figure D'!$D$14,'Figure D'!$D$10,IF(Q102>='Figure D'!$D$10-'Figure D'!$D$14*'Figure D'!$D$8,'Figure D'!$D$10-'Figure D'!$D$14*'Figure D'!$D$8,'Figure D'!S102)) -> 1000 | U102: 1000 | W102: 261 | X102: =IF(W102<'Figure D'!$H$10-'Figure D'!$H$14,'Figure D'!$H$10-'Figure D'!$H$14,IF('Figure D'!W102>='Figure D'!$H$10-'Figure D'!$H$8*'Figure D'!$H$14,'Figure D'!$H$10-'Figure D'!$H$14*'Figure D'!$H$8,'Figure D'!W102)) -> 300 | Y102: 1000
P103: 1000 | Q103: 281 | R103: =IF(Q103<'Figure D'!$D$10-'Figure D'!$D$14,'Figure D'!$D$10-'Figure D'!$D$14,IF('Figure D'!Q103>='Figure D'!$D$10-'Figure D'!$D$8*'Figure D'!$D$14,'Figure D'!$D$10-'Figure D'!$D$14*'Figure D'!$D$8,'Figure D'!Q103)) -> 300 | S103: =('Figure D'!$D$10-'Figure D'!$D$8*'Figure D'!$D$14-'Figure D'!$D$8*'Figure D'!Q103)/('Figure D'!$R$150-'Figure D'!$D$8) -> 1008.142857 | T103: =IF(Q103<'Figure D'!$D$10-'Figure D'!$D$14,'Figure D'!$D$10,IF(Q103>='Figure D'!$D$10-'Figure D'!$D$14*'Figure D'!$D$8,'Figure D'!$D$10-'Figure D'!$D$14*'Figure D'!$D$8,'Figure D'!S103)) -> 1000 | U103: 1000 | W103: 281 | X103: =IF(W103<'Figure D'!$H$10-'Figure D'!$H$14,'Figure D'!$H$10-'Figure D'!$H$14,IF('Figure D'!W103>='Figure D'!$H$10-'Figure D'!$H$8*'Figure D'!$H$14,'Figure D'!$H$10-'Figure D'!$H$14*'Figure D'!$H$8,'Figure D'!W103)) -> 300 | Y103: 1000
P104: 999.6414387 | Q104: 301 | R104: =IF(Q104<'Figure D'!$D$10-'Figure D'!$D$14,'Figure D'!$D$10-'Figure D'!$D$14,IF('Figure D'!Q104>='Figure D'!$D$10-'Figure D'!$D$8*'Figure D'!$D$14,'Figure D'!$D$10-'Figure D'!$D$14*'Figure D'!$D$8,'Figure D'!Q104)) -> 301 | S104: =('Figure D'!$D$10-'Figure D'!$D$8*'Figure D'!$D$14-'Figure D'!$D$8*'Figure D'!Q104)/('Figure D'!$R$150-'Figure D'!$D$8) -> 999.5714286 | T104: =IF(Q104<'Figure D'!$D$10-'Figure D'!$D$14,'Figure D'!$D$10,IF(Q104>='Figure D'!$D$10-'Figure D'!$D$14*'Figure D'!$D$8,'Figure D'!$D$10-'Figure D'!$D$14*'Figure D'!$D$8,'Figure D'!S104)) -> 999.5714286 | U104: 999.6414387 | W104: 301 | X104: =IF(W104<'Figure D'!$H$10-'Figure D'!$H$14,'Figure D'!$H$10-'Figure D'!$H$14,IF('Figure D'!W104>='Figure D'!$H$10-'Figure D'!$H$8*'Figure D'!$H$14,'Figure D'!$H$10-'Figure D'!$H$14*'Figure D'!$H$8,'Figure D'!W104)) -> 301 | Y104: 999.6414387
P105: 992.5511956 | Q105: 321 | R105: =IF(Q105<'Figure D'!$D$10-'Figure D'!$D$14,'Figure D'!$D$10-'Figure D'!$D$14,IF('Figure D'!Q105>='Figure D'!$D$10-'Figure D'!$D$8*'Figure D'!$D$14,'Figure D'!$D$10-'Figure D'!$D$14*'Figure D'!$D$8,'Figure D'!Q105)) -> 321 | S105: =('Figure D'!$D$10-'Figure D'!$D$8*'Figure D'!$D$14-'Figure D'!$D$8*'Figure D'!Q105)/('Figure D'!$R$150-'Figure D'!$D$8) -> 991 | T105: =IF(Q105<'Figure D'!$D$10-'Figure D'!$D$14,'Figure D'!$D$10,IF(Q105>='Figure D'!$D$10-'Figure D'!$D$14*'Figure D'!$D$8,'Figure D'!$D$10-'Figure D'!$D$14*'Figure D'!$D$8,'Figure D'!S105)) -> 991 | U105: 992.5511956 | W105: 321 | X105: =IF(W105<'Figure D'!$H$10-'Figure D'!$H$14,'Figure D'!$H$10-'Figure D'!$H$14,IF('Figure D'!W105>='Figure D'!$H$10-'Figure D'!$H$8*'Figure D'!$H$14,'Figure D'!$H$10-'Figure D'!$H$14*'Figure D'!$H$8,'Figure D'!W105)) -> 321 | Y105: 992.5511956
P106: 985.6070895 | Q106: 341 | R106: =IF(Q106<'Figure D'!$D$10-'Figure D'!$D$14,'Figure D'!$D$10-'Figure D'!$D$14,IF('Figure D'!Q106>='Figure D'!$D$10-'Figure D'!$D$8*'Figure D'!$D$14,'Figure D'!$D$10-'Figure D'!$D$14*'Figure D'!$D$8,'Figure D'!Q106)) -> 341 | S106: =('Figure D'!$D$10-'Figure D'!$D$8*'Figure D'!$D$14-'Figure D'!$D$8*'Figure D'!Q106)/('Figure D'!$R$150-'Figure D'!$D$8) -> 982.4285714 | T106: =IF(Q106<'Figure D'!$D$10-'Figure D'!$D$14,'Figure D'!$D$10,IF(Q106>='Figure D'!$D$10-'Figure D'!$D$14*'Figure D'!$D$8,'Figure D'!$D$10-'Figure D'!$D$14*'Figure D'!$D$8,'Figure D'!S106)) -> 982.4285714 | U106: 985.6070895 | W106: 341 | X106: =IF(W106<'Figure D'!$H$10-'Figure D'!$H$14,'Figure D'!$H$10-'Figure D'!$H$14,IF('Figure D'!W106>='Figure D'!$H$10-'Figure D'!$H$8*'Figure D'!$H$14,'Figure D'!$H$10-'Figure D'!$H$14*'Figure D'!$H$8,'Figure D'!W106)) -> 341 | Y106: 985.6070895
P107: 978.7984429 | Q107: 361 | R107: =IF(Q107<'Figure D'!$D$10-'Figure D'!$D$14,'Figure D'!$D$10-'Figure D'!$D$14,IF('Figure D'!Q107>='Figure D'!$D$10-'Figure D'!$D$8*'Figure D'!$D$14,'Figure D'!$D$10-'Figure D'!$D$14*'Figure D'!$D$8,'Figure D'!Q107)) -> 361 | S107: =('Figure D'!$D$10-'Figure D'!$D$8*'Figure D'!$D$14-'Figure D'!$D$8*'Figure D'!Q107)/('Figure D'!$R$150-'Figure D'!$D$8) -> 973.8571429 | T107: =IF(Q107<'Figure D'!$D$10-'Figure D'!$D$14,'Figure D'!$D$10,IF(Q107>='Figure D'!$D$10-'Figure D'!$D$14*'Figure D'!$D$8,'Figure D'!$D$10-'Figure D'!$D$14*'Figure D'!$D$8,'Figure D'!S107)) -> 973.8571429 | U107: 978.7984429 | W107: 361 | X107: =IF(W107<'Figure D'!$H$10-'Figure D'!$H$14,'Figure D'!$H$10-'Figure D'!$H$14,IF('Figure D'!W107>='Figure D'!$H$10-'Figure D'!$H$8*'Figure D'!$H$14,'Figure D'!$H$10-'Figure D'!$H$14*'Figure D'!$H$8,'Figure D'!W107)) -> 361 | Y107: 978.7984429
P108: 972.1159197 | Q108: 381 | R108: =IF(Q108<'Figure D'!$D$10-'Figure D'!$D$14,'Figure D'!$D$10-'Figure D'!$D$14,IF('Figure D'!Q108>='Figure D'!$D$10-'Figure D'!$D$8*'Figure D'!$D$14,'Figure D'!$D$10-'Figure D'!$D$14*'Figure D'!$D$8,'Figure D'!Q108)) -> 381 | S108: =('Figure D'!$D$10-'Figure D'!$D$8*'Figure D'!$D$14-'Figure D'!$D$8*'Figure D'!Q108)/('Figure D'!$R$150-'Figure D'!$D$8) -> 965.2857143 | T108: =IF(Q108<'Figure D'!$D$10-'Figure D'!$D$14,'Figure D'!$D$10,IF(Q108>='Figure D'!$D$10-'Figure D'!$D$14*'Figure D'!$D$8,'Figure D'!$D$10-'Figure D'!$D$14*'Figure D'!$D$8,'Figure D'!S108)) -> 965.2857143 | U108: 972.1159197 | W108: 381 | X108: =IF(W108<'Figure D'!$H$10-'Figure D'!$H$14,'Figure D'!$H$10-'Figure D'!$H$14,IF('Figure D'!W108>='Figure D'!$H$10-'Figure D'!$H$8*'Figure D'!$H$14,'Figure D'!$H$10-'Figure D'!$H$14*'Figure D'!$H$8,'Figure D'!W108)) -> 381 | Y108: 972.1159197
P109: 965.5512953 | Q109: 401 | R109: =IF(Q109<'Figure D'!$D$10-'Figure D'!$D$14,'Figure D'!$D$10-'Figure D'!$D$14,IF('Figure D'!Q109>='Figure D'!$D$10-'Figure D'!$D$8*'Figure D'!$D$14,'Figure D'!$D$10-'Figure D'!$D$14*'Figure D'!$D$8,'Figure D'!Q109)) -> 401 | S109: =('Figure D'!$D$10-'Figure D'!$D$8*'Figure D'!$D$14-'Figure D'!$D$8*'Figure D'!Q109)/('Figure D'!$R$150-'Figure D'!$D$8) -> 956.7142857 | T109: =IF(Q109<'Figure D'!$D$10-'Figure D'!$D$14,'Figure D'!$D$10,IF(Q109>='Figure D'!$D$10-'Figure D'!$D$14*'Figure D'!$D$8,'Figure D'!$D$10-'Figure D'!$D$14*'Figure D'!$D$8,'Figure D'!S109)) -> 956.7142857 | U109: 965.5512953 | W109: 401 | X109: =IF(W109<'Figure D'!$H$10-'Figure D'!$H$14,'Figure D'!$H$10-'Figure D'!$H$14,IF('Figure D'!W109>='Figure D'!$H$10-'Figure D'!$H$8*'Figure D'!$H$14,'Figure D'!$H$10-'Figure D'!$H$14*'Figure D'!$H$8,'Figure D'!W109)) -> 401 | Y109: 965.5512953
P110: 959.0972756 | Q110: 421 | R110: =IF(Q110<'Figure D'!$D$10-'Figure D'!$D$14,'Figure D'!$D$10-'Figure D'!$D$14,IF('Figure D'!Q110>='Figure D'!$D$10-'Figure D'!$D$8*'Figure D'!$D$14,'Figure D'!$D$10-'Figure D'!$D$14*'Figure D'!$D$8,'Figure D'!Q110)) -> 421 | S110: =('Figure D'!$D$10-'Figure D'!$D$8*'Figure D'!$D$14-'Figure D'!$D$8*'Figure D'!Q110)/('Figure D'!$R$150-'Figure D'!$D$8) -> 948.1428571 | T110: =IF(Q110<'Figure D'!$D$10-'Figure D'!$D$14,'Figure D'!$D$10,IF(Q110>='Figure D'!$D$10-'Figure D'!$D$14*'Figure D'!$D$8,'Figure D'!$D$10-'Figure D'!$D$14*'Figure D'!$D$8,'Figure D'!S110)) -> 948.1428571 | U110: 959.0972756 | W110: 421 | X110: =IF(W110<'Figure D'!$H$10-'Figure D'!$H$14,'Figure D'!$H$10-'Figure D'!$H$14,IF('Figure D'!W110>='Figure D'!$H$10-'Figure D'!$H$8*'Figure D'!$H$14,'Figure D'!$H$10-'Figure D'!$H$14*'Figure D'!$H$8,'Figure D'!W110)) -> 421 | Y110: 959.0972756
P111: 952.7473521 | Q111: 441 | R111: =IF(Q111<'Figure D'!$D$10-'Figure D'!$D$14,'Figure D'!$D$10-'Figure D'!$D$14,IF('Figure D'!Q111>='Figure D'!$D$10-'Figure D'!$D$8*'Figure D'!$D$14,'Figure D'!$D$10-'Figure D'!$D$14*'Figure D'!$D$8,'Figure D'!Q111)) -> 441 | S111: =('Figure D'!$D$10-'Figure D'!$D$8*'Figure D'!$D$14-'Figure D'!$D$8*'Figure D'!Q111)/('Figure D'!$R$150-'Figure D'!$D$8) -> 939.5714286 | T111: =IF(Q111<'Figure D'!$D$10-'Figure D'!$D$14,'Figure D'!$D$10,IF(Q111>='Figure D'!$D$10-'Figure D'!$D$14*'Figure D'!$D$8,'Figure D'!$D$10-'Figure D'!$D$14*'Figure D'!$D$8,'Figure D'!S111)) -> 939.5714286 | U111: 952.7473521 | W111: 441 | X111: =IF(W111<'Figure D'!$H$10-'Figure D'!$H$14,'Figure D'!$H$10-'Figure D'!$H$14,IF('Figure D'!W111>='Figure D'!$H$10-'Figure D'!$H$8*'Figure D'!$H$14,'Figure D'!$H$10-'Figure D'!$H$14*'Figure D'!$H$8,'Figure D'!W111)) -> 441 | Y111: 952.7473521
P112: 946.4956859 | Q112: 461 | R112: =IF(Q112<'Figure D'!$D$10-'Figure D'!$D$14,'Figure D'!$D$10-'Figure D'!$D$14,IF('Figure D'!Q112>='Figure D'!$D$10-'Figure D'!$D$8*'Figure D'!$D$14,'Figure D'!$D$10-'Figure D'!$D$14*'Figure D'!$D$8,'Figure D'!Q112)) -> 461 | S112: =('Figure D'!$D$10-'Figure D'!$D$8*'Figure D'!$D$14-'Figure D'!$D$8*'Figure D'!Q112)/('Figure D'!$R$150-'Figure D'!$D$8) -> 931 | T112: =IF(Q112<'Figure D'!$D$10-'Figure D'!$D$14,'Figure D'!$D$10,IF(Q112>='Figure D'!$D$10-'Figure D'!$D$14*'Figure D'!$D$8,'Figure D'!$D$10-'Figure D'!$D$14*'Figure D'!$D$8,'Figure D'!S112)) -> 931 | U112: 946.4956859 | W112: 461 | X112: =IF(W112<'Figure D'!$H$10-'Figure D'!$H$14,'Figure D'!$H$10-'Figure D'!$H$14,IF('Figure D'!W112>='Figure D'!$H$10-'Figure D'!$H$8*'Figure D'!$H$14,'Figure D'!$H$10-'Figure D'!$H$14*'Figure D'!$H$8,'Figure D'!W112)) -> 461 | Y112: 946.4956859
P113: 940.3370124 | Q113: 481 | R113: =IF(Q113<'Figure D'!$D$10-'Figure D'!$D$14,'Figure D'!$D$10-'Figure D'!$D$14,IF('Figure D'!Q113>='Figure D'!$D$10-'Figure D'!$D$8*'Figure D'!$D$14,'Figure D'!$D$10-'Figure D'!$D$14*'Figure D'!$D$8,'Figure D'!Q113)) -> 481 | S113: =('Figure D'!$D$10-'Figure D'!$D$8*'Figure D'!$D$14-'Figure D'!$D$8*'Figure D'!Q113)/('Figure D'!$R$150-'Figure D'!$D$8) -> 922.4285714 | T113: =IF(Q113<'Figure D'!$D$10-'Figure D'!$D$14,'Figure D'!$D$10,IF(Q113>='Figure D'!$D$10-'Figure D'!$D$14*'Figure D'!$D$8,'Figure D'!$D$10-'Figure D'!$D$14*'Figure D'!$D$8,'Figure D'!S113)) -> 922.4285714 | U113: 940.3370124 | W113: 481 | X113: =IF(W113<'Figure D'!$H$10-'Figure D'!$H$14,'Figure D'!$H$10-'Figure D'!$H$14,IF('Figure D'!W113>='Figure D'!$H$10-'Figure D'!$H$8*'Figure D'!$H$14,'Figure D'!$H$10-'Figure D'!$H$14*'Figure D'!$H$8,'Figure D'!W113)) -> 481 | Y113: 940.3370124
P114: 934.2665636 | Q114: 501 | R114: =IF(Q114<'Figure D'!$D$10-'Figure D'!$D$14,'Figure D'!$D$10-'Figure D'!$D$14,IF('Figure D'!Q114>='Figure D'!$D$10-'Figure D'!$D$8*'Figure D'!$D$14,'Figure D'!$D$10-'Figure D'!$D$14*'Figure D'!$D$8,'Figure D'!Q114)) -> 501 | S114: =('Figure D'!$D$10-'Figure D'!$D$8*'Figure D'!$D$14-'Figure D'!$D$8*'Figure D'!Q114)/('Figure D'!$R$150-'Figure D'!$D$8) -> 913.8571429 | T114: =IF(Q114<'Figure D'!$D$10-'Figure D'!$D$14,'Figure D'!$D$10,IF(Q114>='Figure D'!$D$10-'Figure D'!$D$14*'Figure D'!$D$8,'Figure D'!$D$10-'Figure D'!$D$14*'Figure D'!$D$8,'Figure D'!S114)) -> 913.8571429 | U114: 934.2665636 | W114: 501 | X114: =IF(W114<'Figure D'!$H$10-'Figure D'!$H$14,'Figure D'!$H$10-'Figure D'!$H$14,IF('Figure D'!W114>='Figure D'!$H$10-'Figure D'!$H$8*'Figure D'!$H$14,'Figure D'!$H$10-'Figure D'!$H$14*'Figure D'!$H$8,'Figure D'!W114)) -> 501 | Y114: 934.2665636
P115: 928.2800028 | Q115: 521 | R115: =IF(Q115<'Figure D'!$D$10-'Figure D'!$D$14,'Figure D'!$D$10-'Figure D'!$D$14,IF('Figure D'!Q115>='Figure D'!$D$10-'Figure D'!$D$8*'Figure D'!$D$14,'Figure D'!$D$10-'Figure D'!$D$14*'Figure D'!$D$8,'Figure D'!Q115)) -> 521 | S115: =('Figure D'!$D$10-'Figure D'!$D$8*'Figure D'!$D$14-'Figure D'!$D$8*'Figure D'!Q115)/('Figure D'!$R$150-'Figure D'!$D$8) -> 905.2857143 | T115: =IF(Q115<'Figure D'!$D$10-'Figure D'!$D$14,'Figure D'!$D$10,IF(Q115>='Figure D'!$D$10-'Figure D'!$D$14*'Figure D'!$D$8,'Figure D'!$D$10-'Figure D'!$D$14*'Figure D'!$D$8,'Figure D'!S115)) -> 905.2857143 | U115: 928.2800028 | W115: 521 | X115: =IF(W115<'Figure D'!$H$10-'Figure D'!$H$14,'Figure D'!$H$10-'Figure D'!$H$14,IF('Figure D'!W115>='Figure D'!$H$10-'Figure D'!$H$8*'Figure D'!$H$14,'Figure D'!$H$10-'Figure D'!$H$14*'Figure D'!$H$8,'Figure D'!W115)) -> 521 | Y115: 928.2800028
P116: 922.373371 | Q116: 541 | R116: =IF(Q116<'Figure D'!$D$10-'Figure D'!$D$14,'Figure D'!$D$10-'Figure D'!$D$14,IF('Figure D'!Q116>='Figure D'!$D$10-'Figure D'!$D$8*'Figure D'!$D$14,'Figure D'!$D$10-'Figure D'!$D$14*'Figure D'!$D$8,'Figure D'!Q116)) -> 541 | S116: =('Figure D'!$D$10-'Figure D'!$D$8*'Figure D'!$D$14-'Figure D'!$D$8*'Figure D'!Q116)/('Figure D'!$R$150-'Figure D'!$D$8) -> 896.7142857 | T116: =IF(Q116<'Figure D'!$D$10-'Figure D'!$D$14,'Figure D'!$D$10,IF(Q116>='Figure D'!$D$10-'Figure D'!$D$14*'Figure D'!$D$8,'Figure D'!$D$10-'Figure D'!$D$14*'Figure D'!$D$8,'Figure D'!S116)) -> 896.7142857 | U116: 922.373371 | W116: 541 | X116: =IF(W116<'Figure D'!$H$10-'Figure D'!$H$14,'Figure D'!$H$10-'Figure D'!$H$14,IF('Figure D'!W116>='Figure D'!$H$10-'Figure D'!$H$8*'Figure D'!$H$14,'Figure D'!$H$10-'Figure D'!$H$14*'Figure D'!$H$8,'Figure D'!W116)) -> 541 | Y116: 922.373371
P117: 916.5430409 | Q117: 561 | R117: =IF(Q117<'Figure D'!$D$10-'Figure D'!$D$14,'Figure D'!$D$10-'Figure D'!$D$14,IF('Figure D'!Q117>='Figure D'!$D$10-'Figure D'!$D$8*'Figure D'!$D$14,'Figure D'!$D$10-'Figure D'!$D$14*'Figure D'!$D$8,'Figure D'!Q117)) -> 561 | S117: =('Figure D'!$D$10-'Figure D'!$D$8*'Figure D'!$D$14-'Figure D'!$D$8*'Figure D'!Q117)/('Figure D'!$R$150-'Figure D'!$D$8) -> 888.1428571 | T117: =IF(Q117<'Figure D'!$D$10-'Figure D'!$D$14,'Figure D'!$D$10,IF(Q117>='Figure D'!$D$10-'Figure D'!$D$14*'Figure D'!$D$8,'Figure D'!$D$10-'Figure D'!$D$14*'Figure D'!$D$8,'Figure D'!S117)) -> 888.1428571 | U117: 916.5430409 | W117: 561 | X117: =IF(W117<'Figure D'!$H$10-'Figure D'!$H$14,'Figure D'!$H$10-'Figure D'!$H$14,IF('Figure D'!W117>='Figure D'!$H$10-'Figure D'!$H$8*'Figure D'!$H$14,'Figure D'!$H$10-'Figure D'!$H$14*'Figure D'!$H$8,'Figure D'!W117)) -> 561 | Y117: 916.5430409
P118: 910.7856787 | Q118: 581 | R118: =IF(Q118<'Figure D'!$D$10-'Figure D'!$D$14,'Figure D'!$D$10-'Figure D'!$D$14,IF('Figure D'!Q118>='Figure D'!$D$10-'Figure D'!$D$8*'Figure D'!$D$14,'Figure D'!$D$10-'Figure D'!$D$14*'Figure D'!$D$8,'Figure D'!Q118)) -> 581 | S118: =('Figure D'!$D$10-'Figure D'!$D$8*'Figure D'!$D$14-'Figure D'!$D$8*'Figure D'!Q118)/('Figure D'!$R$150-'Figure D'!$D$8) -> 879.5714286 | T118: =IF(Q118<'Figure D'!$D$10-'Figure D'!$D$14,'Figure D'!$D$10,IF(Q118>='Figure D'!$D$10-'Figure D'!$D$14*'Figure D'!$D$8,'Figure D'!$D$10-'Figure D'!$D$14*'Figure D'!$D$8,'Figure D'!S118)) -> 879.5714286 | U118: 910.7856787 | W118: 581 | X118: =IF(W118<'Figure D'!$H$10-'Figure D'!$H$14,'Figure D'!$H$10-'Figure D'!$H$14,IF('Figure D'!W118>='Figure D'!$H$10-'Figure D'!$H$8*'Figure D'!$H$14,'Figure D'!$H$10-'Figure D'!$H$14*'Figure D'!$H$8,'Figure D'!W118)) -> 581 | Y118: 910.7856787
P119: 905.0982104 | Q119: 601 | R119: =IF(Q119<'Figure D'!$D$10-'Figure D'!$D$14,'Figure D'!$D$10-'Figure D'!$D$14,IF('Figure D'!Q119>='Figure D'!$D$10-'Figure D'!$D$8*'Figure D'!$D$14,'Figure D'!$D$10-'Figure D'!$D$14*'Figure D'!$D$8,'Figure D'!Q119)) -> 601 | S119: =('Figure D'!$D$10-'Figure D'!$D$8*'Figure D'!$D$14-'Figure D'!$D$8*'Figure D'!Q119)/('Figure D'!$R$150-'Figure D'!$D$8) -> 871 | T119: =IF(Q119<'Figure D'!$D$10-'Figure D'!$D$14,'Figure D'!$D$10,IF(Q119>='Figure D'!$D$10-'Figure D'!$D$14*'Figure D'!$D$8,'Figure D'!$D$10-'Figure D'!$D$14*'Figure D'!$D$8,'Figure D'!S119)) -> 871 | U119: 905.0982104 | W119: 601 | X119: =IF(W119<'Figure D'!$H$10-'Figure D'!$H$14,'Figure D'!$H$10-'Figure D'!$H$14,IF('Figure D'!W119>='Figure D'!$H$10-'Figure D'!$H$8*'Figure D'!$H$14,'Figure D'!$H$10-'Figure D'!$H$14*'Figure D'!$H$8,'Figure D'!W119)) -> 601 | Y119: 905.0982104
P120: 899.4777941 | Q120: 621 | R120: =IF(Q120<'Figure D'!$D$10-'Figure D'!$D$14,'Figure D'!$D$10-'Figure D'!$D$14,IF('Figure D'!Q120>='Figure D'!$D$10-'Figure D'!$D$8*'Figure D'!$D$14,'Figure D'!$D$10-'Figure D'!$D$14*'Figure D'!$D$8,'Figure D'!Q120)) -> 621 | S120: =('Figure D'!$D$10-'Figure D'!$D$8*'Figure D'!$D$14-'Figure D'!$D$8*'Figure D'!Q120)/('Figure D'!$R$150-'Figure D'!$D$8) -> 862.4285714 | T120: =IF(Q120<'Figure D'!$D$10-'Figure D'!$D$14,'Figure D'!$D$10,IF(Q120>='Figure D'!$D$10-'Figure D'!$D$14*'Figure D'!$D$8,'Figure D'!$D$10-'Figure D'!$D$14*'Figure D'!$D$8,'Figure D'!S120)) -> 862.4285714 | U120: 899.4777941 | W120: 621 | X120: =IF(W120<'Figure D'!$H$10-'Figure D'!$H$14,'Figure D'!$H$10-'Figure D'!$H$14,IF('Figure D'!W120>='Figure D'!$H$10-'Figure D'!$H$8*'Figure D'!$H$14,'Figure D'!$H$10-'Figure D'!$H$14*'Figure D'!$H$8,'Figure D'!W120)) -> 621 | Y120: 899.4777941
P121: 893.9217954 | Q121: 641 | R121: =IF(Q121<'Figure D'!$D$10-'Figure D'!$D$14,'Figure D'!$D$10-'Figure D'!$D$14,IF('Figure D'!Q121>='Figure D'!$D$10-'Figure D'!$D$8*'Figure D'!$D$14,'Figure D'!$D$10-'Figure D'!$D$14*'Figure D'!$D$8,'Figure D'!Q121)) -> 641 | S121: =('Figure D'!$D$10-'Figure D'!$D$8*'Figure D'!$D$14-'Figure D'!$D$8*'Figure D'!Q121)/('Figure D'!$R$150-'Figure D'!$D$8) -> 853.8571429 | T121: =IF(Q121<'Figure D'!$D$10-'Figure D'!$D$14,'Figure D'!$D$10,IF(Q121>='Figure D'!$D$10-'Figure D'!$D$14*'Figure D'!$D$8,'Figure D'!$D$10-'Figure D'!$D$14*'Figure D'!$D$8,'Figure D'!S121)) -> 853.8571429 | U121: 893.9217954 | W121: 641 | X121: =IF(W121<'Figure D'!$H$10-'Figure D'!$H$14,'Figure D'!$H$10-'Figure D'!$H$14,IF('Figure D'!W121>='Figure D'!$H$10-'Figure D'!$H$8*'Figure D'!$H$14,'Figure D'!$H$10-'Figure D'!$H$14*'Figure D'!$H$8,'Figure D'!W121)) -> 641 | Y121: 893.9217954
P122: 888.4277661 | Q122: 661 | R122: =IF(Q122<'Figure D'!$D$10-'Figure D'!$D$14,'Figure D'!$D$10-'Figure D'!$D$14,IF('Figure D'!Q122>='Figure D'!$D$10-'Figure D'!$D$8*'Figure D'!$D$14,'Figure D'!$D$10-'Figure D'!$D$14*'Figure D'!$D$8,'Figure D'!Q122)) -> 661 | S122: =('Figure D'!$D$10-'Figure D'!$D$8*'Figure D'!$D$14-'Figure D'!$D$8*'Figure D'!Q122)/('Figure D'!$R$150-'Figure D'!$D$8) -> 845.2857143 | T122: =IF(Q122<'Figure D'!$D$10-'Figure D'!$D$14,'Figure D'!$D$10,IF(Q122>='Figure D'!$D$10-'Figure D'!$D$14*'Figure D'!$D$8,'Figure D'!$D$10-'Figure D'!$D$14*'Figure D'!$D$8,'Figure D'!S122)) -> 845.2857143 | U122: 888.4277661 | W122: 661 | X122: =IF(W122<'Figure D'!$H$10-'Figure D'!$H$14,'Figure D'!$H$10-'Figure D'!$H$14,IF('Figure D'!W122>='Figure D'!$H$10-'Figure D'!$H$8*'Figure D'!$H$14,'Figure D'!$H$10-'Figure D'!$H$14*'Figure D'!$H$8,'Figure D'!W122)) -> 661 | Y122: 888.4277661
P123: 882.9934261 | Q123: 681 | R123: =IF(Q123<'Figure D'!$D$10-'Figure D'!$D$14,'Figure D'!$D$10-'Figure D'!$D$14,IF('Figure D'!Q123>='Figure D'!$D$10-'Figure D'!$D$8*'Figure D'!$D$14,'Figure D'!$D$10-'Figure D'!$D$14*'Figure D'!$D$8,'Figure D'!Q123)) -> 681 | S123: =('Figure D'!$D$10-'Figure D'!$D$8*'Figure D'!$D$14-'Figure D'!$D$8*'Figure D'!Q123)/('Figure D'!$R$150-'Figure D'!$D$8) -> 836.7142857 | T123: =IF(Q123<'Figure D'!$D$10-'Figure D'!$D$14,'Figure D'!$D$10,IF(Q123>='Figure D'!$D$10-'Figure D'!$D$14*'Figure D'!$D$8,'Figure D'!$D$10-'Figure D'!$D$14*'Figure D'!$D$8,'Figure D'!S123)) -> 836.7142857 | U123: 882.9934261 | W123: 681 | X123: =IF(W123<'Figure D'!$H$10-'Figure D'!$H$14,'Figure D'!$H$10-'Figure D'!$H$14,IF('Figure D'!W123>='Figure D'!$H$10-'Figure D'!$H$8*'Figure D'!$H$14,'Figure D'!$H$10-'Figure D'!$H$14*'Figure D'!$H$8,'Figure D'!W123)) -> 681 | Y123: 882.9934261
P124: 877.616647 | Q124: 701 | R124: =IF(Q124<'Figure D'!$D$10-'Figure D'!$D$14,'Figure D'!$D$10-'Figure D'!$D$14,IF('Figure D'!Q124>='Figure D'!$D$10-'Figure D'!$D$8*'Figure D'!$D$14,'Figure D'!$D$10-'Figure D'!$D$14*'Figure D'!$D$8,'Figure D'!Q124)) -> 701 | S124: =('Figure D'!$D$10-'Figure D'!$D$8*'Figure D'!$D$14-'Figure D'!$D$8*'Figure D'!Q124)/('Figure D'!$R$150-'Figure D'!$D$8) -> 828.1428571 | T124: =IF(Q124<'Figure D'!$D$10-'Figure D'!$D$14,'Figure D'!$D$10,IF(Q124>='Figure D'!$D$10-'Figure D'!$D$14*'Figure D'!$D$8,'Figure D'!$D$10-'Figure D'!$D$14*'Figure D'!$D$8,'Figure D'!S124)) -> 828.1428571 | U124: 877.616647 | W124: 701 | X124: =IF(W124<'Figure D'!$H$10-'Figure D'!$H$14,'Figure D'!$H$10-'Figure D'!$H$14,IF('Figure D'!W124>='Figure D'!$H$10-'Figure D'!$H$8*'Figure D'!$H$14,'Figure D'!$H$10-'Figure D'!$H$14*'Figure D'!$H$8,'Figure D'!W124)) -> 701 | Y124: 877.616647
P125: 872.295438 | Q125: 721 | R125: =IF(Q125<'Figure D'!$D$10-'Figure D'!$D$14,'Figure D'!$D$10-'Figure D'!$D$14,IF('Figure D'!Q125>='Figure D'!$D$10-'Figure D'!$D$8*'Figure D'!$D$14,'Figure D'!$D$10-'Figure D'!$D$14*'Figure D'!$D$8,'Figure D'!Q125)) -> 721 | S125: =('Figure D'!$D$10-'Figure D'!$D$8*'Figure D'!$D$14-'Figure D'!$D$8*'Figure D'!Q125)/('Figure D'!$R$150-'Figure D'!$D$8) -> 819.5714286 | T125: =IF(Q125<'Figure D'!$D$10-'Figure D'!$D$14,'Figure D'!$D$10,IF(Q125>='Figure D'!$D$10-'Figure D'!$D$14*'Figure D'!$D$8,'Figure D'!$D$10-'Figure D'!$D$14*'Figure D'!$D$8,'Figure D'!S125)) -> 819.5714286 | U125: 872.295438 | W125: 721 | X125: =IF(W125<'Figure D'!$H$10-'Figure D'!$H$14,'Figure D'!$H$10-'Figure D'!$H$14,IF('Figure D'!W125>='Figure D'!$H$10-'Figure D'!$H$8*'Figure D'!$H$14,'Figure D'!$H$10-'Figure D'!$H$14*'Figure D'!$H$8,'Figure D'!W125)) -> 721 | Y125: 872.295438
P126: 867.0279335 | Q126: 741 | R126: =IF(Q126<'Figure D'!$D$10-'Figure D'!$D$14,'Figure D'!$D$10-'Figure D'!$D$14,IF('Figure D'!Q126>='Figure D'!$D$10-'Figure D'!$D$8*'Figure D'!$D$14,'Figure D'!$D$10-'Figure D'!$D$14*'Figure D'!$D$8,'Figure D'!Q126)) -> 741 | S126: =('Figure D'!$D$10-'Figure D'!$D$8*'Figure D'!$D$14-'Figure D'!$D$8*'Figure D'!Q126)/('Figure D'!$R$150-'Figure D'!$D$8) -> 811 | T126: =IF(Q126<'Figure D'!$D$10-'Figure D'!$D$14,'Figure D'!$D$10,IF(Q126>='Figure D'!$D$10-'Figure D'!$D$14*'Figure D'!$D$8,'Figure D'!$D$10-'Figure D'!$D$14*'Figure D'!$D$8,'Figure D'!S126)) -> 811 | U126: 867.0279335 | W126: 741 | X126: =IF(W126<'Figure D'!$H$10-'Figure D'!$H$14,'Figure D'!$H$10-'Figure D'!$H$14,IF('Figure D'!W126>='Figure D'!$H$10-'Figure D'!$H$8*'Figure D'!$H$14,'Figure D'!$H$10-'Figure D'!$H$14*'Figure D'!$H$8,'Figure D'!W126)) -> 741 | Y126: 867.0279335
P127: 861.812382 | Q127: 761 | R127: =IF(Q127<'Figure D'!$D$10-'Figure D'!$D$14,'Figure D'!$D$10-'Figure D'!$D$14,IF('Figure D'!Q127>='Figure D'!$D$10-'Figure D'!$D$8*'Figure D'!$D$14,'Figure D'!$D$10-'Figure D'!$D$14*'Figure D'!$D$8,'Figure D'!Q127)) -> 761 | S127: =('Figure D'!$D$10-'Figure D'!$D$8*'Figure D'!$D$14-'Figure D'!$D$8*'Figure D'!Q127)/('Figure D'!$R$150-'Figure D'!$D$8) -> 802.4285714 | T127: =IF(Q127<'Figure D'!$D$10-'Figure D'!$D$14,'Figure D'!$D$10,IF(Q127>='Figure D'!$D$10-'Figure D'!$D$14*'Figure D'!$D$8,'Figure D'!$D$10-'Figure D'!$D$14*'Figure D'!$D$8,'Figure D'!S127)) -> 802.4285714 | U127: 861.812382 | W127: 761 | X127: =IF(W127<'Figure D'!$H$10-'Figure D'!$H$14,'Figure D'!$H$10-'Figure D'!$H$14,IF('Figure D'!W127>='Figure D'!$H$10-'Figure D'!$H$8*'Figure D'!$H$14,'Figure D'!$H$10-'Figure D'!$H$14*'Figure D'!$H$8,'Figure D'!W127)) -> 761 | Y127: 861.812382
P128: 856.6471364 | Q128: 781 | R128: =IF(Q128<'Figure D'!$D$10-'Figure D'!$D$14,'Figure D'!$D$10-'Figure D'!$D$14,IF('Figure D'!Q128>='Figure D'!$D$10-'Figure D'!$D$8*'Figure D'!$D$14,'Figure D'!$D$10-'Figure D'!$D$14*'Figure D'!$D$8,'Figure D'!Q128)) -> 781 | S128: =('Figure D'!$D$10-'Figure D'!$D$8*'Figure D'!$D$14-'Figure D'!$D$8*'Figure D'!Q128)/('Figure D'!$R$150-'Figure D'!$D$8) -> 793.8571429 | T128: =IF(Q128<'Figure D'!$D$10-'Figure D'!$D$14,'Figure D'!$D$10,IF(Q128>='Figure D'!$D$10-'Figure D'!$D$14*'Figure D'!$D$8,'Figure D'!$D$10-'Figure D'!$D$14*'Figure D'!$D$8,'Figure D'!S128)) -> 793.8571429 | U128: 856.6471364 | W128: 781 | X128: =IF(W128<'Figure D'!$H$10-'Figure D'!$H$14,'Figure D'!$H$10-'Figure D'!$H$14,IF('Figure D'!W128>='Figure D'!$H$10-'Figure D'!$H$8*'Figure D'!$H$14,'Figure D'!$H$10-'Figure D'!$H$14*'Figure D'!$H$8,'Figure D'!W128)) -> 781 | Y128: 856.6471364
P129: 854.3387714 | Q129: 801 | R129: =IF(Q129<'Figure D'!$D$10-'Figure D'!$D$14,'Figure D'!$D$10-'Figure D'!$D$14,IF('Figure D'!Q129>='Figure D'!$D$10-'Figure D'!$D$8*'Figure D'!$D$14,'Figure D'!$D$10-'Figure D'!$D$14*'Figure D'!$D$8,'Figure D'!Q129)) -> 790 | S129: =('Figure D'!$D$10-'Figure D'!$D$8*'Figure D'!$D$14-'Figure D'!$D$8*'Figure D'!Q129)/('Figure D'!$R$150-'Figure D'!$D$8) -> 785.2857143 | T129: =IF(Q129<'Figure D'!$D$10-'Figure D'!$D$14,'Figure D'!$D$10,IF(Q129>='Figure D'!$D$10-'Figure D'!$D$14*'Figure D'!$D$8,'Figure D'!$D$10-'Figure D'!$D$14*'Figure D'!$D$8,'Figure D'!S129)) -> 790 | U129: 854.3387714 | W129: 801 | X129: =IF(W129<'Figure D'!$H$10-'Figure D'!$H$14,'Figure D'!$H$10-'Figure D'!$H$14,IF('Figure D'!W129>='Figure D'!$H$10-'Figure D'!$H$8*'Figure D'!$H$14,'Figure D'!$H$10-'Figure D'!$H$14*'Figure D'!$H$8,'Figure D'!W129)) -> 790 | Y129: 854.3387714
P130: 854.3387714 | Q130: 821 | R130: =IF(Q130<'Figure D'!$D$10-'Figure D'!$D$14,'Figure D'!$D$10-'Figure D'!$D$14,IF('Figure D'!Q130>='Figure D'!$D$10-'Figure D'!$D$8*'Figure D'!$D$14,'Figure D'!$D$10-'Figure D'!$D$14*'Figure D'!$D$8,'Figure D'!Q130)) -> 790 | S130: =('Figure D'!$D$10-'Figure D'!$D$8*'Figure D'!$D$14-'Figure D'!$D$8*'Figure D'!Q130)/('Figure D'!$R$150-'Figure D'!$D$8) -> 776.7142857 | T130: =IF(Q130<'Figure D'!$D$10-'Figure D'!$D$14,'Figure D'!$D$10,IF(Q130>='Figure D'!$D$10-'Figure D'!$D$14*'Figure D'!$D$8,'Figure D'!$D$10-'Figure D'!$D$14*'Figure D'!$D$8,'Figure D'!S130)) -> 790 | U130: 854.3387714 | W130: 821 | X130: =IF(W130<'Figure D'!$H$10-'Figure D'!$H$14,'Figure D'!$H$10-'Figure D'!$H$14,IF('Figure D'!W130>='Figure D'!$H$10-'Figure D'!$H$8*'Figure D'!$H$14,'Figure D'!$H$10-'Figure D'!$H$14*'Figure D'!$H$8,'Figure D'!W130)) -> 790 | Y130: 854.3387714
P131: 854.3387714 | Q131: 841 | R131: =IF(Q131<'Figure D'!$D$10-'Figure D'!$D$14,'Figure D'!$D$10-'Figure D'!$D$14,IF('Figure D'!Q131>='Figure D'!$D$10-'Figure D'!$D$8*'Figure D'!$D$14,'Figure D'!$D$10-'Figure D'!$D$14*'Figure D'!$D$8,'Figure D'!Q131)) -> 790 | S131: =('Figure D'!$D$10-'Figure D'!$D$8*'Figure D'!$D$14-'Figure D'!$D$8*'Figure D'!Q131)/('Figure D'!$R$150-'Figure D'!$D$8) -> 768.1428571 | T131: =IF(Q131<'Figure D'!$D$10-'Figure D'!$D$14,'Figure D'!$D$10,IF(Q131>='Figure D'!$D$10-'Figure D'!$D$14*'Figure D'!$D$8,'Figure D'!$D$10-'Figure D'!$D$14*'Figure D'!$D$8,'Figure D'!S131)) -> 790 | U131: 854.3387714 | W131: 841 | X131: =IF(W131<'Figure D'!$H$10-'Figure D'!$H$14,'Figure D'!$H$10-'Figure D'!$H$14,IF('Figure D'!W131>='Figure D'!$H$10-'Figure D'!$H$8*'Figure D'!$H$14,'Figure D'!$H$10-'Figure D'!$H$14*'Figure D'!$H$8,'Figure D'!W131)) -> 790 | Y131: 854.3387714
P132: 854.3387714 | Q132: 861 | R132: =IF(Q132<'Figure D'!$D$10-'Figure D'!$D$14,'Figure D'!$D$10-'Figure D'!$D$14,IF('Figure D'!Q132>='Figure D'!$D$10-'Figure D'!$D$8*'Figure D'!$D$14,'Figure D'!$D$10-'Figure D'!$D$14*'Figure D'!$D$8,'Figure D'!Q132)) -> 790 | S132: =('Figure D'!$D$10-'Figure D'!$D$8*'Figure D'!$D$14-'Figure D'!$D$8*'Figure D'!Q132)/('Figure D'!$R$150-'Figure D'!$D$8) -> 759.5714286 | T132: =IF(Q132<'Figure D'!$D$10-'Figure D'!$D$14,'Figure D'!$D$10,IF(Q132>='Figure D'!$D$10-'Figure D'!$D$14*'Figure D'!$D$8,'Figure D'!$D$10-'Figure D'!$D$14*'Figure D'!$D$8,'Figure D'!S132)) -> 790 | U132: 854.3387714 | W132: 861 | X132: =IF(W132<'Figure D'!$H$10-'Figure D'!$H$14,'Figure D'!$H$10-'Figure D'!$H$14,IF('Figure D'!W132>='Figure D'!$H$10-'Figure D'!$H$8*'Figure D'!$H$14,'Figure D'!$H$10-'Figure D'!$H$14*'Figure D'!$H$8,'Figure D'!W132)) -> 790 | Y132: 854.3387714
P133: 854.3387714 | Q133: 881 | R133: =IF(Q133<'Figure D'!$D$10-'Figure D'!$D$14,'Figure D'!$D$10-'Figure D'!$D$14,IF('Figure D'!Q133>='Figure D'!$D$10-'Figure D'!$D$8*'Figure D'!$D$14,'Figure D'!$D$10-'Figure D'!$D$14*'Figure D'!$D$8,'Figure D'!Q133)) -> 790 | S133: =('Figure D'!$D$10-'Figure D'!$D$8*'Figure D'!$D$14-'Figure D'!$D$8*'Figure D'!Q133)/('Figure D'!$R$150-'Figure D'!$D$8) -> 751 | T133: =IF(Q133<'Figure D'!$D$10-'Figure D'!$D$14,'Figure D'!$D$10,IF(Q133>='Figure D'!$D$10-'Figure D'!$D$14*'Figure D'!$D$8,'Figure D'!$D$10-'Figure D'!$D$14*'Figure D'!$D$8,'Figure D'!S133)) -> 790 | U133: 854.3387714 | W133: 881 | X133: =IF(W133<'Figure D'!$H$10-'Figure D'!$H$14,'Figure D'!$H$10-'Figure D'!$H$14,IF('Figure D'!W133>='Figure D'!$H$10-'Figure D'!$H$8*'Figure D'!$H$14,'Figure D'!$H$10-'Figure D'!$H$14*'Figure D'!$H$8,'Figure D'!W133)) -> 790 | Y133: 854.3387714
P134: 854.3387714 | Q134: 901 | R134: =IF(Q134<'Figure D'!$D$10-'Figure D'!$D$14,'Figure D'!$D$10-'Figure D'!$D$14,IF('Figure D'!Q134>='Figure D'!$D$10-'Figure D'!$D$8*'Figure D'!$D$14,'Figure D'!$D$10-'Figure D'!$D$14*'Figure D'!$D$8,'Figure D'!Q134)) -> 790 | S134: =('Figure D'!$D$10-'Figure D'!$D$8*'Figure D'!$D$14-'Figure D'!$D$8*'Figure D'!Q134)/('Figure D'!$R$150-'Figure D'!$D$8) -> 742.4285714 | T134: =IF(Q134<'Figure D'!$D$10-'Figure D'!$D$14,'Figure D'!$D$10,IF(Q134>='Figure D'!$D$10-'Figure D'!$D$14*'Figure D'!$D$8,'Figure D'!$D$10-'Figure D'!$D$14*'Figure D'!$D$8,'Figure D'!S134)) -> 790 | U134: 854.3387714 | W134: 901 | X134: =IF(W134<'Figure D'!$H$10-'Figure D'!$H$14,'Figure D'!$H$10-'Figure D'!$H$14,IF('Figure D'!W134>='Figure D'!$H$10-'Figure D'!$H$8*'Figure D'!$H$14,'Figure D'!$H$10-'Figure D'!$H$14*'Figure D'!$H$8,'Figure D'!W134)) -> 790 | Y134: 854.3387714
P135: 854.3387714 | Q135: 921 | R135: =IF(Q135<'Figure D'!$D$10-'Figure D'!$D$14,'Figure D'!$D$10-'Figure D'!$D$14,IF('Figure D'!Q135>='Figure D'!$D$10-'Figure D'!$D$8*'Figure D'!$D$14,'Figure D'!$D$10-'Figure D'!$D$14*'Figure D'!$D$8,'Figure D'!Q135)) -> 790 | S135: =('Figure D'!$D$10-'Figure D'!$D$8*'Figure D'!$D$14-'Figure D'!$D$8*'Figure D'!Q135)/('Figure D'!$R$150-'Figure D'!$D$8) -> 733.8571429 | T135: =IF(Q135<'Figure D'!$D$10-'Figure D'!$D$14,'Figure D'!$D$10,IF(Q135>='Figure D'!$D$10-'Figure D'!$D$14*'Figure D'!$D$8,'Figure D'!$D$10-'Figure D'!$D$14*'Figure D'!$D$8,'Figure D'!S135)) -> 790 | U135: 854.3387714 | W135: 921 | X135: =IF(W135<'Figure D'!$H$10-'Figure D'!$H$14,'Figure D'!$H$10-'Figure D'!$H$14,IF('Figure D'!W135>='Figure D'!$H$10-'Figure D'!$H$8*'Figure D'!$H$14,'Figure D'!$H$10-'Figure D'!$H$14*'Figure D'!$H$8,'Figure D'!W135)) -> 790 | Y135: 854.3387714
P136: 854.3387714 | Q136: 941 | R136: =IF(Q136<'Figure D'!$D$10-'Figure D'!$D$14,'Figure D'!$D$10-'Figure D'!$D$14,IF('Figure D'!Q136>='Figure D'!$D$10-'Figure D'!$D$8*'Figure D'!$D$14,'Figure D'!$D$10-'Figure D'!$D$14*'Figure D'!$D$8,'Figure D'!Q136)) -> 790 | S136: =('Figure D'!$D$10-'Figure D'!$D$8*'Figure D'!$D$14-'Figure D'!$D$8*'Figure D'!Q136)/('Figure D'!$R$150-'Figure D'!$D$8) -> 725.2857143 | T136: =IF(Q136<'Figure D'!$D$10-'Figure D'!$D$14,'Figure D'!$D$10,IF(Q136>='Figure D'!$D$10-'Figure D'!$D$14*'Figure D'!$D$8,'Figure D'!$D$10-'Figure D'!$D$14*'Figure D'!$D$8,'Figure D'!S136)) -> 790 | U136: 854.3387714 | W136: 941 | X136: =IF(W136<'Figure D'!$H$10-'Figure D'!$H$14,'Figure D'!$H$10-'Figure D'!$H$14,IF('Figure D'!W136>='Figure D'!$H$10-'Figure D'!$H$8*'Figure D'!$H$14,'Figure D'!$H$10-'Figure D'!$H$14*'Figure D'!$H$8,'Figure D'!W136)) -> 790 | Y136: 854.3387714
P137: 854.3387714 | Q137: 961 | R137: =IF(Q137<'Figure D'!$D$10-'Figure D'!$D$14,'Figure D'!$D$10-'Figure D'!$D$14,IF('Figure D'!Q137>='Figure D'!$D$10-'Figure D'!$D$8*'Figure D'!$D$14,'Figure D'!$D$10-'Figure D'!$D$14*'Figure D'!$D$8,'Figure D'!Q137)) -> 790 | S137: =('Figure D'!$D$10-'Figure D'!$D$8*'Figure D'!$D$14-'Figure D'!$D$8*'Figure D'!Q137)/('Figure D'!$R$150-'Figure D'!$D$8) -> 716.7142857 | T137: =IF(Q137<'Figure D'!$D$10-'Figure D'!$D$14,'Figure D'!$D$10,IF(Q137>='Figure D'!$D$10-'Figure D'!$D$14*'Figure D'!$D$8,'Figure D'!$D$10-'Figure D'!$D$14*'Figure D'!$D$8,'Figure D'!S137)) -> 790 | U137: 854.3387714 | W137: 961 | X137: =IF(W137<'Figure D'!$H$10-'Figure D'!$H$14,'Figure D'!$H$10-'Figure D'!$H$14,IF('Figure D'!W137>='Figure D'!$H$10-'Figure D'!$H$8*'Figure D'!$H$14,'Figure D'!$H$10-'Figure D'!$H$14*'Figure D'!$H$8,'Figure D'!W137)) -> 790 | Y137: 854.3387714
P138: 854.3387714 | Q138: 981 | R138: =IF(Q138<'Figure D'!$D$10-'Figure D'!$D$14,'Figure D'!$D$10-'Figure D'!$D$14,IF('Figure D'!Q138>='Figure D'!$D$10-'Figure D'!$D$8*'Figure D'!$D$14,'Figure D'!$D$10-'Figure D'!$D$14*'Figure D'!$D$8,'Figure D'!Q138)) -> 790 | S138: =('Figure D'!$D$10-'Figure D'!$D$8*'Figure D'!$D$14-'Figure D'!$D$8*'Figure D'!Q138)/('Figure D'!$R$150-'Figure D'!$D$8) -> 708.1428571 | T138: =IF(Q138<'Figure D'!$D$10-'Figure D'!$D$14,'Figure D'!$D$10,IF(Q138>='Figure D'!$D$10-'Figure D'!$D$14*'Figure D'!$D$8,'Figure D'!$D$10-'Figure D'!$D$14*'Figure D'!$D$8,'Figure D'!S138)) -> 790 | U138: 854.3387714 | W138: 981 | X138: =IF(W138<'Figure D'!$H$10-'Figure D'!$H$14,'Figure D'!$H$10-'Figure D'!$H$14,IF('Figure D'!W138>='Figure D'!$H$10-'Figure D'!$H$8*'Figure D'!$H$14,'Figure D'!$H$10-'Figure D'!$H$14*'Figure D'!$H$8,'Figure D'!W138)) -> 790 | Y138: 854.3387714
P139: 854.3387714 | Q139: 1001 | R139: =IF(Q139<'Figure D'!$D$10-'Figure D'!$D$14,'Figure D'!$D$10-'Figure D'!$D$14,IF('Figure D'!Q139>='Figure D'!$D$10-'Figure D'!$D$8*'Figure D'!$D$14,'Figure D'!$D$10-'Figure D'!$D$14*'Figure D'!$D$8,'Figure D'!Q139)) -> 790 | S139: =('Figure D'!$D$10-'Figure D'!$D$8*'Figure D'!$D$14-'Figure D'!$D$8*'Figure D'!Q139)/('Figure D'!$R$150-'Figure D'!$D$8) -> 699.5714286 | T139: =IF(Q139<'Figure D'!$D$10-'Figure D'!$D$14,'Figure D'!$D$10,IF(Q139>='Figure D'!$D$10-'Figure D'!$D$14*'Figure D'!$D$8,'Figure D'!$D$10-'Figure D'!$D$14*'Figure D'!$D$8,'Figure D'!S139)) -> 790 | U139: 854.3387714 | W139: 1001 | X139: =IF(W139<'Figure D'!$H$10-'Figure D'!$H$14,'Figure D'!$H$10-'Figure D'!$H$14,IF('Figure D'!W139>='Figure D'!$H$10-'Figure D'!$H$8*'Figure D'!$H$14,'Figure D'!$H$10-'Figure D'!$H$14*'Figure D'!$H$8,'Figure D'!W139)) -> 790 | Y139: 854.3387714
P140: 854.3387714 | Q140: 1021 | R140: =IF(Q140<'Figure D'!$D$10-'Figure D'!$D$14,'Figure D'!$D$10-'Figure D'!$D$14,IF('Figure D'!Q140>='Figure D'!$D$10-'Figure D'!$D$8*'Figure D'!$D$14,'Figure D'!$D$10-'Figure D'!$D$14*'Figure D'!$D$8,'Figure D'!Q140)) -> 790 | S140: =('Figure D'!$D$10-'Figure D'!$D$8*'Figure D'!$D$14-'Figure D'!$D$8*'Figure D'!Q140)/('Figure D'!$R$150-'Figure D'!$D$8) -> 691 | T140: =IF(Q140<'Figure D'!$D$10-'Figure D'!$D$14,'Figure D'!$D$10,IF(Q140>='Figure D'!$D$10-'Figure D'!$D$14*'Figure D'!$D$8,'Figure D'!$D$10-'Figure D'!$D$14*'Figure D'!$D$8,'Figure D'!S140)) -> 790 | U140: 854.3387714 | W140: 1021 | X140: =IF(W140<'Figure D'!$H$10-'Figure D'!$H$14,'Figure D'!$H$10-'Figure D'!$H$14,IF('Figure D'!W140>='Figure D'!$H$10-'Figure D'!$H$8*'Figure D'!$H$14,'Figure D'!$H$10-'Figure D'!$H$14*'Figure D'!$H$8,'Figure D'!W140)) -> 790 | Y140: 854.3387714
P141: 854.3387714 | Q141: 1041 | R141: =IF(Q141<'Figure D'!$D$10-'Figure D'!$D$14,'Figure D'!$D$10-'Figure D'!$D$14,IF('Figure D'!Q141>='Figure D'!$D$10-'Figure D'!$D$8*'Figure D'!$D$14,'Figure D'!$D$10-'Figure D'!$D$14*'Figure D'!$D$8,'Figure D'!Q141)) -> 790 | S141: =('Figure D'!$D$10-'Figure D'!$D$8*'Figure D'!$D$14-'Figure D'!$D$8*'Figure D'!Q141)/('Figure D'!$R$150-'Figure D'!$D$8) -> 682.4285714 | T141: =IF(Q141<'Figure D'!$D$10-'Figure D'!$D$14,'Figure D'!$D$10,IF(Q141>='Figure D'!$D$10-'Figure D'!$D$14*'Figure D'!$D$8,'Figure D'!$D$10-'Figure D'!$D$14*'Figure D'!$D$8,'Figure D'!S141)) -> 790 | U141: 854.3387714 | W141: 1041 | X141: =IF(W141<'Figure D'!$H$10-'Figure D'!$H$14,'Figure D'!$H$10-'Figure D'!$H$14,IF('Figure D'!W141>='Figure D'!$H$10-'Figure D'!$H$8*'Figure D'!$H$14,'Figure D'!$H$10-'Figure D'!$H$14*'Figure D'!$H$8,'Figure D'!W141)) -> 790 | Y141: 854.3387714
P142: 854.3387714 | Q142: 1061 | R142: =IF(Q142<'Figure D'!$D$10-'Figure D'!$D$14,'Figure D'!$D$10-'Figure D'!$D$14,IF('Figure D'!Q142>='Figure D'!$D$10-'Figure D'!$D$8*'Figure D'!$D$14,'Figure D'!$D$10-'Figure D'!$D$14*'Figure D'!$D$8,'Figure D'!Q142)) -> 790 | S142: =('Figure D'!$D$10-'Figure D'!$D$8*'Figure D'!$D$14-'Figure D'!$D$8*'Figure D'!Q142)/('Figure D'!$R$150-'Figure D'!$D$8) -> 673.8571429 | T142: =IF(Q142<'Figure D'!$D$10-'Figure D'!$D$14,'Figure D'!$D$10,IF(Q142>='Figure D'!$D$10-'Figure D'!$D$14*'Figure D'!$D$8,'Figure D'!$D$10-'Figure D'!$D$14*'Figure D'!$D$8,'Figure D'!S142)) -> 790 | U142: 854.3387714 | W142: 1061 | X142: =IF(W142<'Figure D'!$H$10-'Figure D'!$H$14,'Figure D'!$H$10-'Figure D'!$H$14,IF('Figure D'!W142>='Figure D'!$H$10-'Figure D'!$H$8*'Figure D'!$H$14,'Figure D'!$H$10-'Figure D'!$H$14*'Figure D'!$H$8,'Figure D'!W142)) -> 790 | Y142: 854.3387714
P143: 854.3387714 | Q143: 1081 | R143: =IF(Q143<'Figure D'!$D$10-'Figure D'!$D$14,'Figure D'!$D$10-'Figure D'!$D$14,IF('Figure D'!Q143>='Figure D'!$D$10-'Figure D'!$D$8*'Figure D'!$D$14,'Figure D'!$D$10-'Figure D'!$D$14*'Figure D'!$D$8,'Figure D'!Q143)) -> 790 | S143: =('Figure D'!$D$10-'Figure D'!$D$8*'Figure D'!$D$14-'Figure D'!$D$8*'Figure D'!Q143)/('Figure D'!$R$150-'Figure D'!$D$8) -> 665.2857143 | T143: =IF(Q143<'Figure D'!$D$10-'Figure D'!$D$14,'Figure D'!$D$10,IF(Q143>='Figure D'!$D$10-'Figure D'!$D$14*'Figure D'!$D$8,'Figure D'!$D$10-'Figure D'!$D$14*'Figure D'!$D$8,'Figure D'!S143)) -> 790 | U143: 854.3387714 | W143: 1081 | X143: =IF(W143<'Figure D'!$H$10-'Figure D'!$H$14,'Figure D'!$H$10-'Figure D'!$H$14,IF('Figure D'!W143>='Figure D'!$H$10-'Figure D'!$H$8*'Figure D'!$H$14,'Figure D'!$H$10-'Figure D'!$H$14*'Figure D'!$H$8,'Figure D'!W143)) -> 790 | Y143: 854.3387714
P144: 854.3387714 | Q144: 1101 | R144: =IF(Q144<'Figure D'!$D$10-'Figure D'!$D$14,'Figure D'!$D$10-'Figure D'!$D$14,IF('Figure D'!Q144>='Figure D'!$D$10-'Figure D'!$D$8*'Figure D'!$D$14,'Figure D'!$D$10-'Figure D'!$D$14*'Figure D'!$D$8,'Figure D'!Q144)) -> 790 | S144: =('Figure D'!$D$10-'Figure D'!$D$8*'Figure D'!$D$14-'Figure D'!$D$8*'Figure D'!Q144)/('Figure D'!$R$150-'Figure D'!$D$8) -> 656.7142857 | T144: =IF(Q144<'Figure D'!$D$10-'Figure D'!$D$14,'Figure D'!$D$10,IF(Q144>='Figure D'!$D$10-'Figure D'!$D$14*'Figure D'!$D$8,'Figure D'!$D$10-'Figure D'!$D$14*'Figure D'!$D$8,'Figure D'!S144)) -> 790 | U144: 854.3387714 | W144: 1101 | X144: =IF(W144<'Figure D'!$H$10-'Figure D'!$H$14,'Figure D'!$H$10-'Figure D'!$H$14,IF('Figure D'!W144>='Figure D'!$H$10-'Figure D'!$H$8*'Figure D'!$H$14,'Figure D'!$H$10-'Figure D'!$H$14*'Figure D'!$H$8,'Figure D'!W144)) -> 790 | Y144: 854.3387714
P145: 854.3387714 | Q145: 1121 | R145: =IF(Q145<'Figure D'!$D$10-'Figure D'!$D$14,'Figure D'!$D$10-'Figure D'!$D$14,IF('Figure D'!Q145>='Figure D'!$D$10-'Figure D'!$D$8*'Figure D'!$D$14,'Figure D'!$D$10-'Figure D'!$D$14*'Figure D'!$D$8,'Figure D'!Q145)) -> 790 | S145: =('Figure D'!$D$10-'Figure D'!$D$8*'Figure D'!$D$14-'Figure D'!$D$8*'Figure D'!Q145)/('Figure D'!$R$150-'Figure D'!$D$8) -> 648.1428571 | T145: =IF(Q145<'Figure D'!$D$10-'Figure D'!$D$14,'Figure D'!$D$10,IF(Q145>='Figure D'!$D$10-'Figure D'!$D$14*'Figure D'!$D$8,'Figure D'!$D$10-'Figure D'!$D$14*'Figure D'!$D$8,'Figure D'!S145)) -> 790 | U145: 854.3387714 | W145: 1121 | X145: =IF(W145<'Figure D'!$H$10-'Figure D'!$H$14,'Figure D'!$H$10-'Figure D'!$H$14,IF('Figure D'!W145>='Figure D'!$H$10-'Figure D'!$H$8*'Figure D'!$H$14,'Figure D'!$H$10-'Figure D'!$H$14*'Figure D'!$H$8,'Figure D'!W145)) -> 790 | Y145: 854.3387714
P146: 854.3387714 | Q146: 1141 | R146: =IF(Q146<'Figure D'!$D$10-'Figure D'!$D$14,'Figure D'!$D$10-'Figure D'!$D$14,IF('Figure D'!Q146>='Figure D'!$D$10-'Figure D'!$D$8*'Figure D'!$D$14,'Figure D'!$D$10-'Figure D'!$D$14*'Figure D'!$D$8,'Figure D'!Q146)) -> 790 | S146: =('Figure D'!$D$10-'Figure D'!$D$8*'Figure D'!$D$14-'Figure D'!$D$8*'Figure D'!Q146)/('Figure D'!$R$150-'Figure D'!$D$8) -> 639.5714286 | T146: =IF(Q146<'Figure D'!$D$10-'Figure D'!$D$14,'Figure D'!$D$10,IF(Q146>='Figure D'!$D$10-'Figure D'!$D$14*'Figure D'!$D$8,'Figure D'!$D$10-'Figure D'!$D$14*'Figure D'!$D$8,'Figure D'!S146)) -> 790 | U146: 854.3387714 | W146: 1141 | X146: =IF(W146<'Figure D'!$H$10-'Figure D'!$H$14,'Figure D'!$H$10-'Figure D'!$H$14,IF('Figure D'!W146>='Figure D'!$H$10-'Figure D'!$H$8*'Figure D'!$H$14,'Figure D'!$H$10-'Figure D'!$H$14*'Figure D'!$H$8,'Figure D'!W146)) -> 790 | Y146: 854.3387714
P147: 854.3387714 | Q147: 1161 | R147: =IF(Q147<'Figure D'!$D$10-'Figure D'!$D$14,'Figure D'!$D$10-'Figure D'!$D$14,IF('Figure D'!Q147>='Figure D'!$D$10-'Figure D'!$D$8*'Figure D'!$D$14,'Figure D'!$D$10-'Figure D'!$D$14*'Figure D'!$D$8,'Figure D'!Q147)) -> 790 | S147: =('Figure D'!$D$10-'Figure D'!$D$8*'Figure D'!$D$14-'Figure D'!$D$8*'Figure D'!Q147)/('Figure D'!$R$150-'Figure D'!$D$8) -> 631 | T147: =IF(Q147<'Figure D'!$D$10-'Figure D'!$D$14,'Figure D'!$D$10,IF(Q147>='Figure D'!$D$10-'Figure D'!$D$14*'Figure D'!$D$8,'Figure D'!$D$10-'Figure D'!$D$14*'Figure D'!$D$8,'Figure D'!S147)) -> 790 | U147: 854.3387714 | W147: 1161 | X147: =IF(W147<'Figure D'!$H$10-'Figure D'!$H$14,'Figure D'!$H$10-'Figure D'!$H$14,IF('Figure D'!W147>='Figure D'!$H$10-'Figure D'!$H$8*'Figure D'!$H$14,'Figure D'!$H$10-'Figure D'!$H$14*'Figure D'!$H$8,'Figure D'!W147)) -> 790 | Y147: 854.3387714
P148: 854.3387714 | Q148: 1181 | R148: =IF(Q148<'Figure D'!$D$10-'Figure D'!$D$14,'Figure D'!$D$10-'Figure D'!$D$14,IF('Figure D'!Q148>='Figure D'!$D$10-'Figure D'!$D$8*'Figure D'!$D$14,'Figure D'!$D$10-'Figure D'!$D$14*'Figure D'!$D$8,'Figure D'!Q148)) -> 790 | S148: =('Figure D'!$D$10-'Figure D'!$D$8*'Figure D'!$D$14-'Figure D'!$D$8*'Figure D'!Q148)/('Figure D'!$R$150-'Figure D'!$D$8) -> 622.4285714 | T148: =IF(Q148<'Figure D'!$D$10-'Figure D'!$D$14,'Figure D'!$D$10,IF(Q148>='Figure D'!$D$10-'Figure D'!$D$14*'Figure D'!$D$8,'Figure D'!$D$10-'Figure D'!$D$14*'Figure D'!$D$8,'Figure D'!S148)) -> 790 | U148: 854.3387714 | W148: 1181 | X148: =IF(W148<'Figure D'!$H$10-'Figure D'!$H$14,'Figure D'!$H$10-'Figure D'!$H$14,IF('Figure D'!W148>='Figure D'!$H$10-'Figure D'!$H$8*'Figure D'!$H$14,'Figure D'!$H$10-'Figure D'!$H$14*'Figure D'!$H$8,'Figure D'!W148)) -> 790 | Y148: 854.3387714
Q150: β | R150: 1
R151: c1 | S151: c2 | W151: c1 | X151: c2 | Z151: restriccion
R152: ='Figure D'!D18 -> 300 | S152: 0 | W152: ='Figure D'!$H$18 -> 300 | X152: 0 | Z152: ='Figure D'!H10-'Figure D'!H14 -> 300 | AA152: ='Figure D'!H10 -> 1000
R153: ='Figure D'!D18 -> 300 | S153: ='Figure D'!D19 -> 1000 | W153: ='Figure D'!$H$18 -> 300 | X153: ='Figure D'!$H$19 -> 1000 | Z153: ='Figure D'!H10-'Figure D'!H14*'Figure D'!H8 -> 790 | AA153: ='Figure D'!H10-'Figure D'!H14*'Figure D'!H8 -> 790
R155: c1 | S155: c2 | W155: c1 | X155: c2
R156: 0 | S156: ='Figure D'!D19 -> 1000 | W156: 0 | X156: ='Figure D'!$H$19 -> 1000
R157: ='Figure D'!D18 -> 300 | S157: ='Figure D'!D19 -> 1000 | W157: ='Figure D'!$H$18 -> 300 | X157: ='Figure D'!$H$19 -> 1000
R160: y1 | S160: y2
R161: ='Figure D'!#REF! ->  | S161: ='Figure D'!D10 -> 1000 | W161: y1 | X161: y2
R162: ='Figure D'!D8 -> 0.3 | S162: ='Figure D'!D10 -> 1000 | W162: 0 | X162: ='Figure D'!$H$10 -> 1000
W163: ='Figure D'!$H$8 -> 0.3 | X163: ='Figure D'!$H$10 -> 1000
R164: y1 | S164: y2
R165: ='Figure D'!D8 -> 0.3 | S165: 0 | W165: y1 | X165: y2
R166: ='Figure D'!D8 -> 0.3 | S166: ='Figure D'!D10 -> 1000 | W166: ='Figure D'!$H$8 -> 0.3 | X166: 0
W167: ='Figure D'!$H$8 -> 0.3 | X167: ='Figure D'!$H$10 -> 1000

Sheet DARA (hidden)
C5: Repeteri figura 5 pero con la siguiente función de utilidad esperada
C7: π*(w1^(1-σ)/(1-σ))+(1-π)*(w2^(1-σ)/(1-σ))
C11: Incluír el scroll bars
C12: 0.1≤π≤1
C13: 0.1≤p≤0.9
C14: 1≤σ≤4
C15: 500≤l≤750
C16: 850≤w ≤1150

Sheet Hoja1
